Body Name,Mapped No,Cleansed Supplier Name,Family Category,Sub Category,Ap Net Value,Ap Tax Valve,Ap Gross Value,Paid Date,Cleansed Portfolio
Nottinghamshire County Council,04-06202,1-2-3 TAXIS,Transport And Travel,Taxi,649.23,129.85,779.08,21-Jul-11,CHILDREN & YOUNG PEOPLE
Nottinghamshire County Council,04-07462,1-2-3 TAXIS,Transport And Travel,Taxi,478.38,95.68,574.06,29-Jul-11,CHILDREN & YOUNG PEOPLE
Nottinghamshire County Council,04-02198,1-2-3 TAXIS,Transport And Travel,Taxi,"1,482.00",296.4,"1,778.40",14-Jul-11,CHILDREN & YOUNG PEOPLE
Nottinghamshire County Council,04-02199,1-2-3 TAXIS,Transport And Travel,Taxi,430.4,86.08,516.48,14-Jul-11,CHILDREN & YOUNG PEOPLE
Nottinghamshire County Council,04-07461,1-2-3 TAXIS,Transport And Travel,Taxi,741,148.2,889.2,29-Jul-11,CHILDREN & YOUNG PEOPLE
Nottinghamshire County Council,04-07462,1-2-3 TAXIS,Transport And Travel,Taxi,0,-0.01,-0.01,29-Jul-11,RESOURCES
Nottinghamshire County Council,04-01586,1ST CALL COMMUNICATIONS LIMITED,ICT,Telecommunications And Media,658.36,131.67,790.03,25-Jul-11,COMMUNITIES
Nottinghamshire County Council,04-02098,200 CARS,Transport And Travel,Taxi,579.4,115.88,695.28,20-Jul-11,ADULT SOCIAL CARE & HEALTH
Nottinghamshire County Council,04-02099,200 CARS,Transport And Travel,Taxi,"1,294.30",258.86,"1,553.16",20-Jul-11,ADULT SOCIAL CARE & HEALTH
Nottinghamshire County Council,04-02100,200 CARS,Transport And Travel,Taxi,"1,047.95",209.59,"1,257.54",20-Jul-11,ADULT SOCIAL CARE & HEALTH
Nottinghamshire County Council,04-06759,200 CARS,Transport And Travel,Taxi,968.55,193.71,"1,162.26",27-Jul-11,ADULT SOCIAL CARE & HEALTH
Nottinghamshire County Council,04-06392,3M UNITED KINGDOM PLC,Soft Facilities Management,Office Supplies And Machines (Non It),462.08,92.42,554.5,26-Jul-11,RESOURCES
Nottinghamshire County Council,04-06608,7KS CORPORATE AND FINANCE,Professional Services,Financial And Insurance Services,"2,379.60",475.92,"2,855.52",28-Jul-11,CHILDREN & YOUNG PEOPLE
Nottinghamshire County Council,04-06006,A 2 B CARS (NOTTINGHAM) LIMITED,Transport And Travel,Taxi,"1,494.40",298.88,"1,793.28",25-Jul-11,ADULT SOCIAL CARE & HEALTH
Nottinghamshire County Council,04-06566,A 2 B CARS (NOTTINGHAM) LIMITED,Transport And Travel,Taxi,"1,158.00",231.6,"1,389.60",28-Jul-11,ADULT SOCIAL CARE & HEALTH
Nottinghamshire County Council,04-06646,A 2 B CARS (NOTTINGHAM) LIMITED,Transport And Travel,Taxi,"1,443.10",288.62,"1,731.72",27-Jul-11,ADULT SOCIAL CARE & HEALTH
Nottinghamshire County Council,04-06755,A 2 B CARS (NOTTINGHAM) LIMITED,Transport And Travel,Taxi,"1,255.40",251.08,"1,506.48",27-Jul-11,ADULT SOCIAL CARE & HEALTH
Nottinghamshire County Council,04-01859,A AND T ACTIVE RECRUITMENT LIMITED,People,Recruitment,691.59,138.32,829.91,13-Jul-11,RESOURCES
Nottinghamshire County Council,04-06683,A AND T ACTIVE RECRUITMENT LIMITED,People,Recruitment,"1,217.65",243.53,"1,461.18",26-Jul-11,RESOURCES
Nottinghamshire County Council,04-06683,A AND T ACTIVE RECRUITMENT LIMITED,People,Recruitment,660.08,132.02,792.1,26-Jul-11,RESOURCES
Nottinghamshire County Council,04-06689,A AND V SQUIRES PLANT CO,External Services (Highways And Culture),Construction Plant And Equipment,423,84.6,507.6,29-Jul-11,COMMUNITIES
Nottinghamshire County Council,04-07046,A AND V SQUIRES PLANT CO,External Services (Highways And Culture),Construction Plant And Equipment,"1,041.00",208.2,"1,249.20",29-Jul-11,COMMUNITIES
Nottinghamshire County Council,04-00113,A AND V SQUIRES PLANT CO,External Services (Highways And Culture),Construction Plant And Equipment,796,159.2,955.2,25-Jul-11,COMMUNITIES
Nottinghamshire County Council,04-01220,A AND V SQUIRES PLANT CO,External Services (Highways And Culture),Construction Plant And Equipment,790,158,948,07-Jul-11,COMMUNITIES
Nottinghamshire County Council,04-01219,A AND V SQUIRES PLANT CO,External Services (Highways And Culture),Construction Plant And Equipment,"1,607.00",321.4,"1,928.40",07-Jul-11,COMMUNITIES
Nottinghamshire County Council,04-01762,A AND V SQUIRES PLANT CO,External Services (Highways And Culture),Construction Plant And Equipment,790,158,948,18-Jul-11,COMMUNITIES
Nottinghamshire County Council,04-00413,A AND V SQUIRES PLANT CO,External Services (Highways And Culture),Construction Plant And Equipment,"1,722.00",344.4,"2,066.40",05-Jul-11,COMMUNITIES
Nottinghamshire County Council,04-01237,A AND V SQUIRES PLANT CO,External Services (Highways And Culture),Construction Plant And Equipment,"1,722.00",344.4,"2,066.40",07-Jul-11,COMMUNITIES
Nottinghamshire County Council,04-06688,A AND V SQUIRES PLANT CO,External Services (Highways And Culture),Construction Plant And Equipment,"1,776.00",355.2,"2,131.20",29-Jul-11,COMMUNITIES
Nottinghamshire County Council,04-07051,A AND V SQUIRES PLANT CO,External Services (Highways And Culture),Construction Plant And Equipment,"1,590.00",318,"1,908.00",29-Jul-11,COMMUNITIES
Nottinghamshire County Council,04-01761,A AND V SQUIRES PLANT CO,External Services (Highways And Culture),Construction Plant And Equipment,834,166.8,"1,000.80",14-Jul-11,COMMUNITIES
Nottinghamshire County Council,04-00412,A AND V SQUIRES PLANT CO,External Services (Highways And Culture),Construction Plant And Equipment,"1,269.00",253.8,"1,522.80",04-Jul-11,COMMUNITIES
Nottinghamshire County Council,04-01760,A AND V SQUIRES PLANT CO,External Services (Highways And Culture),Construction Plant And Equipment,"1,269.00",253.8,"1,522.80",14-Jul-11,COMMUNITIES
Nottinghamshire County Council,04-06689,A AND V SQUIRES PLANT CO,External Services (Highways And Culture),Construction Plant And Equipment,846,169.2,"1,015.20",29-Jul-11,COMMUNITIES
Nottinghamshire County Council,04-00411,A AND V SQUIRES PLANT CO,External Services (Highways And Culture),Construction Plant And Equipment,"1,269.00",253.8,"1,522.80",25-Jul-11,COMMUNITIES
Nottinghamshire County Council,04-01229,A AND V SQUIRES PLANT CO,External Services (Highways And Culture),Construction Plant And Equipment,"1,269.00",253.8,"1,522.80",25-Jul-11,COMMUNITIES
Nottinghamshire County Council,04-01765,A AND V SQUIRES PLANT CO,External Services (Highways And Culture),Construction Plant And Equipment,"1,041.00",208.2,"1,249.20",25-Jul-11,COMMUNITIES
Nottinghamshire County Council,04-01228,A AND V SQUIRES PLANT CO,External Services (Highways And Culture),Construction Plant And Equipment,828,165.6,993.6,14-Jul-11,TBC
Nottinghamshire County Council,04-00133,A AND V SQUIRES PLANT CO,External Services (Highways And Culture),Construction Plant And Equipment,804,160.8,964.8,04-Jul-11,COMMUNITIES
Nottinghamshire County Council,04-00410,A AND V SQUIRES PLANT CO,External Services (Highways And Culture),Construction Plant And Equipment,"1,026.00",205.2,"1,231.20",04-Jul-11,COMMUNITIES
Nottinghamshire County Council,04-01759,A AND V SQUIRES PLANT CO,External Services (Highways And Culture),Construction Plant And Equipment,"1,026.00",205.2,"1,231.20",14-Jul-11,TBC
Nottinghamshire County Council,04-06081,A C TAXIS,Transport And Travel,Taxi,570,0,570,21-Jul-11,CHILDREN & YOUNG PEOPLE
Nottinghamshire County Council,04-02476,A E COLLINS,Grants And Loans                        ,Grants And Loans                        ,692.41,0,692.41,21-Jul-11,ADULT SOCIAL CARE & HEALTH
Nottinghamshire County Council,04-02264,A G D SYSTEMS LIMITED,External Services (Highways And Culture),Highways And Works,520,104,624,25-Jul-11,TBC
Nottinghamshire County Council,04-02264,A G D SYSTEMS LIMITED,External Services (Highways And Culture),Highways And Works,610,122,732,25-Jul-11,TBC
Nottinghamshire County Council,04-02264,A G D SYSTEMS LIMITED,External Services (Highways And Culture),Highways And Works,670,134,804,25-Jul-11,TBC
Nottinghamshire County Council,04-02264,A G D SYSTEMS LIMITED,External Services (Highways And Culture),Highways And Works,"1,298.00",259.6,"1,557.60",25-Jul-11,TBC
Nottinghamshire County Council,04-04372,A HENDERSON,Care,Residential Care,565.67,0,565.67,20-Jul-11,ADULT SOCIAL CARE & HEALTH
Nottinghamshire County Council,04-00026,A I AND F W COCKAYNE AND SONS,Soft Facilities Management,Fresh Fruit And Veg,990,198,"1,188.00",12-Jul-11,COMMUNITIES
Nottinghamshire County Council,04-01871,A J TRAVEL,Transport And Travel,Travel Agencies And Booking,"1,811.27",0,"1,811.27",15-Jul-11,ADULT SOCIAL CARE & HEALTH
Nottinghamshire County Council,04-00868,A P PAVERS,External Services (Highways And Culture),Construction Plant And Equipment,690,138,828,04-Jul-11,COMMUNITIES
Nottinghamshire County Council,04-00925,A P PAVERS,External Services (Highways And Culture),Construction Plant And Equipment,970,194,"1,164.00",05-Jul-11,COMMUNITIES
Nottinghamshire County Council,04-02050,A P PAVERS,External Services (Highways And Culture),Construction Plant And Equipment,925,185,"1,110.00",21-Jul-11,COMMUNITIES
Nottinghamshire County Council,04-04389,A PARKIN,Care,Residential Care,842.12,0,842.12,20-Jul-11,ADULT SOCIAL CARE & HEALTH
Nottinghamshire County Council,04-00426,A R MUSSON AGRICULTURAL CONTRACTOR,External Services (Highways & Culture),Agricultural & Forestry & Landscape Machinery & Equipment,"3,393.00",678.6,"4,071.60",12-Jul-11,COMMUNITIES
Nottinghamshire County Council,04-05526,A TURNER,Care,Residential Care,"1,062.28",0,"1,062.28",20-Jul-11,ADULT SOCIAL CARE & HEALTH
Nottinghamshire County Council,04-05527,A TURNER,Care,Residential Care,"1,024.32",0,"1,024.32",20-Jul-11,ADULT SOCIAL CARE & HEALTH
Nottinghamshire County Council,04-01884,A YOUNG,Grants And Loans                        ,Grants And Loans                        ,842.8,0,842.8,15-Jul-11,COMMUNITIES
Nottinghamshire County Council,04-02259,A1 BRIDGE FLUE SYSTEMS,Professional Services,Professional Engineering Services,"1,066.00",213.2,"1,279.20",28-Jul-11,RESOURCES
Nottinghamshire County Council,04-00705,A1 CLAIMS SOLUTIONS,Professional Services,Legal Services,"1,091.00",0,"1,091.00",04-Jul-11,RESOURCES
Nottinghamshire County Council,04-06543,A1 HOUSING,Care,Residential Care,"1,275.16",0,"1,275.16",25-Jul-11,ADULT SOCIAL CARE & HEALTH
Nottinghamshire County Council,04-01470,A4E CONSULT LIMITED,Professional Services,Consultancy,0,"1,183.90","1,183.90",20-Jul-11,TBC
Nottinghamshire County Council,04-01470,A4E CONSULT LIMITED,Professional Services,Consultancy,"3,788.48",0,"3,788.48",20-Jul-11,CHILDREN & YOUNG PEOPLE
Nottinghamshire County Council,04-01470,A4E CONSULT LIMITED,Professional Services,Consultancy,"2,131.02",0,"2,131.02",20-Jul-11,CHILDREN & YOUNG PEOPLE
Nottinghamshire County Council,04-06237,AAA TAXIS,Transport And Travel,Taxi,"1,208.52",0,"1,208.52",21-Jul-11,CHILDREN & YOUNG PEOPLE
Nottinghamshire County Council,04-07344,AAA TAXIS,Transport And Travel,Taxi,"1,074.24",0,"1,074.24",28-Jul-11,CHILDREN & YOUNG PEOPLE
Nottinghamshire County Council,04-06232,AAA TAXIS,Transport And Travel,Taxi,"1,866.60",0,"1,866.60",21-Jul-11,CHILDREN & YOUNG PEOPLE
Nottinghamshire County Council,04-06235,AAA TAXIS,Transport And Travel,Taxi,"1,856.80",0,"1,856.80",21-Jul-11,CHILDREN & YOUNG PEOPLE
Nottinghamshire County Council,04-06236,AAA TAXIS,Transport And Travel,Taxi,675.2,0,675.2,21-Jul-11,CHILDREN & YOUNG PEOPLE
Nottinghamshire County Council,04-06238,AAA TAXIS,Transport And Travel,Taxi,"1,235.00",0,"1,235.00",21-Jul-11,CHILDREN & YOUNG PEOPLE
Nottinghamshire County Council,04-07341,AAA TAXIS,Transport And Travel,Taxi,"1,012.80",0,"1,012.80",28-Jul-11,CHILDREN & YOUNG PEOPLE
Nottinghamshire County Council,04-07343,AAA TAXIS,Transport And Travel,Taxi,975,0,975,28-Jul-11,CHILDREN & YOUNG PEOPLE
Nottinghamshire County Council,04-07477,AAA TAXIS,Transport And Travel,Taxi,"1,659.20",0,"1,659.20",29-Jul-11,CHILDREN & YOUNG PEOPLE
Nottinghamshire County Council,04-06233,AAA TAXIS,Transport And Travel,Taxi,"1,111.50",0,"1,111.50",21-Jul-11,CHILDREN & YOUNG PEOPLE
Nottinghamshire County Council,04-07342,AAA TAXIS,Transport And Travel,Taxi,819,0,819,28-Jul-11,CHILDREN & YOUNG PEOPLE
Nottinghamshire County Council,04-06234,AAA TAXIS,Transport And Travel,Taxi,"1,231.20",0,"1,231.20",21-Jul-11,CHILDREN & YOUNG PEOPLE
Nottinghamshire County Council,04-07478,AAA TAXIS,Transport And Travel,Taxi,972,0,972,29-Jul-11,CHILDREN & YOUNG PEOPLE
Nottinghamshire County Council,04-06565,AAERON CARS,Transport And Travel,Taxi,498.3,99.66,597.96,28-Jul-11,ADULT SOCIAL CARE & HEALTH
Nottinghamshire County Council,04-06707,AAERON CARS,Transport And Travel,Taxi,422.4,84.48,506.88,27-Jul-11,ADULT SOCIAL CARE & HEALTH
Nottinghamshire County Council,04-06708,AAERON CARS,Transport And Travel,Taxi,"1,705.75",341.15,"2,046.90",27-Jul-11,ADULT SOCIAL CARE & HEALTH
Nottinghamshire County Council,04-06709,AAERON CARS,Transport And Travel,Taxi,654,130.8,784.8,27-Jul-11,ADULT SOCIAL CARE & HEALTH
Nottinghamshire County Council,04-00036,AARON PLANT SERVICES LIMITED,External Services (Highways And Culture),Construction Plant And Equipment,"3,023.50",604.7,"3,628.20",12-Jul-11,COMMUNITIES
Nottinghamshire County Council,04-00760,ABACUS CARE,Care,Domiciliary Care,529.2,0,529.2,04-Jul-11,ADULT SOCIAL CARE & HEALTH
Nottinghamshire County Council,04-00760,ABACUS CARE,Care,Domiciliary Care,827.93,0,827.93,04-Jul-11,ADULT SOCIAL CARE & HEALTH
Nottinghamshire County Council,04-01620,ABACUS CARE,Care,Domiciliary Care,720.56,0,720.56,11-Jul-11,ADULT SOCIAL CARE & HEALTH
Nottinghamshire County Council,04-01620,ABACUS CARE,Care,Domiciliary Care,792.75,0,792.75,11-Jul-11,ADULT SOCIAL CARE & HEALTH
Nottinghamshire County Council,04-02323,ABACUS CARE,Care,Domiciliary Care,"1,340.33",0,"1,340.33",18-Jul-11,ADULT SOCIAL CARE & HEALTH
Nottinghamshire County Council,04-02323,ABACUS CARE,Care,Domiciliary Care,555.71,0,555.71,18-Jul-11,ADULT SOCIAL CARE & HEALTH
Nottinghamshire County Council,04-06523,ABACUS CARE,Care,Domiciliary Care,760.46,0,760.46,25-Jul-11,ADULT SOCIAL CARE & HEALTH
Nottinghamshire County Council,04-06523,ABACUS CARE,Care,Domiciliary Care,557.55,0,557.55,25-Jul-11,ADULT SOCIAL CARE & HEALTH
Nottinghamshire County Council,04-01620,ABACUS CARE,Care,Domiciliary Care,65.36,0,65.36,11-Jul-11,ADULT SOCIAL CARE & HEALTH
Nottinghamshire County Council,04-02323,ABACUS CARE,Care,Domiciliary Care,114.19,0,114.19,18-Jul-11,ADULT SOCIAL CARE & HEALTH
Nottinghamshire County Council,04-06523,ABACUS CARE,Care,Domiciliary Care,114.19,0,114.19,25-Jul-11,ADULT SOCIAL CARE & HEALTH
Nottinghamshire County Council,04-00760,ABACUS CARE,Care,Domiciliary Care,98.01,0,98.01,04-Jul-11,ADULT SOCIAL CARE & HEALTH
Nottinghamshire County Council,04-01620,ABACUS CARE,Care,Domiciliary Care,379.95,0,379.95,11-Jul-11,ADULT SOCIAL CARE & HEALTH
Nottinghamshire County Council,04-02323,ABACUS CARE,Care,Domiciliary Care,297.1,0,297.1,18-Jul-11,ADULT SOCIAL CARE & HEALTH
Nottinghamshire County Council,04-06523,ABACUS CARE,Care,Domiciliary Care,299.45,0,299.45,25-Jul-11,ADULT SOCIAL CARE & HEALTH
Nottinghamshire County Council,04-02334,ABACUS CARE,Care,Domiciliary Care,"1,257.08",0,"1,257.08",18-Jul-11,ADULT SOCIAL CARE & HEALTH
Nottinghamshire County Council,04-02334,ABACUS CARE,Care,Domiciliary Care,291.38,0,291.38,18-Jul-11,ADULT SOCIAL CARE & HEALTH
Nottinghamshire County Council,04-06499,ABACUS CARE,Care,Domiciliary Care,"1,058.22",0,"1,058.22",25-Jul-11,ADULT SOCIAL CARE & HEALTH
Nottinghamshire County Council,04-06499,ABACUS CARE,Care,Domiciliary Care,259.88,0,259.88,25-Jul-11,ADULT SOCIAL CARE & HEALTH
Nottinghamshire County Council,04-02334,ABACUS CARE,Care,Domiciliary Care,571.99,0,571.99,18-Jul-11,ADULT SOCIAL CARE & HEALTH
Nottinghamshire County Council,04-06499,ABACUS CARE,Care,Domiciliary Care,538.39,0,538.39,25-Jul-11,ADULT SOCIAL CARE & HEALTH
Nottinghamshire County Council,04-00587,ABACUS CARS,Transport And Travel,Taxi,"8,187.00",0,"8,187.00",07-Jul-11,ADULT SOCIAL CARE & HEALTH
Nottinghamshire County Council,04-06686,ABBACAS CONSULTING LIMITED,Professional Services,Consultancy,"2,280.00",456,"2,736.00",29-Jul-11,RESOURCES
Nottinghamshire County Council,04-05569,ABBEYSIDE NURSING HOME,Care,Residential Care,"1,896.64",0,"1,896.64",20-Jul-11,ADULT SOCIAL CARE & HEALTH
Nottinghamshire County Council,04-04615,ABELARD NURSING HOME,Care,Residential Care,"1,392.00",0,"1,392.00",20-Jul-11,ADULT SOCIAL CARE & HEALTH
Nottinghamshire County Council,04-04611,ABELARD NURSING HOME,Care,Residential Care,"1,392.00",0,"1,392.00",20-Jul-11,ADULT SOCIAL CARE & HEALTH
Nottinghamshire County Council,04-04612,ABELARD NURSING HOME,Care,Residential Care,-546.86,0,-546.86,20-Jul-11,ADULT SOCIAL CARE & HEALTH
Nottinghamshire County Council,04-04616,ABELARD NURSING HOME,Care,Residential Care,"1,392.00",0,"1,392.00",20-Jul-11,ADULT SOCIAL CARE & HEALTH
Nottinghamshire County Council,04-04617,ABELARD NURSING HOME,Care,Residential Care,"1,212.00",0,"1,212.00",20-Jul-11,ADULT SOCIAL CARE & HEALTH
Nottinghamshire County Council,04-04618,ABELARD NURSING HOME,Care,Residential Care,"1,544.00",0,"1,544.00",20-Jul-11,ADULT SOCIAL CARE & HEALTH
Nottinghamshire County Council,04-04610,ABELARD NURSING HOME,Care,Residential Care,"1,504.00",0,"1,504.00",20-Jul-11,ADULT SOCIAL CARE & HEALTH
Nottinghamshire County Council,04-04613,ABELARD NURSING HOME,Care,Residential Care,"1,504.00",0,"1,504.00",20-Jul-11,ADULT SOCIAL CARE & HEALTH
Nottinghamshire County Council,04-04614,ABELARD NURSING HOME,Care,Residential Care,"1,504.00",0,"1,504.00",20-Jul-11,ADULT SOCIAL CARE & HEALTH
Nottinghamshire County Council,04-04619,ABELARD NURSING HOME,Care,Residential Care,"1,504.00",0,"1,504.00",20-Jul-11,ADULT SOCIAL CARE & HEALTH
Nottinghamshire County Council,04-04609,ABELARD NURSING HOME,Care,Residential Care,-807.49,0,-807.49,20-Jul-11,ADULT SOCIAL CARE & HEALTH
Nottinghamshire County Council,04-04610,ABELARD NURSING HOME,Care,Residential Care,434.8,0,434.8,20-Jul-11,ADULT SOCIAL CARE & HEALTH
Nottinghamshire County Council,04-04613,ABELARD NURSING HOME,Care,Residential Care,434.8,0,434.8,20-Jul-11,ADULT SOCIAL CARE & HEALTH
Nottinghamshire County Council,04-04614,ABELARD NURSING HOME,Care,Residential Care,434.8,0,434.8,20-Jul-11,ADULT SOCIAL CARE & HEALTH
Nottinghamshire County Council,04-04618,ABELARD NURSING HOME,Care,Residential Care,434.8,0,434.8,20-Jul-11,ADULT SOCIAL CARE & HEALTH
Nottinghamshire County Council,04-04619,ABELARD NURSING HOME,Care,Residential Care,434.8,0,434.8,20-Jul-11,ADULT SOCIAL CARE & HEALTH
Nottinghamshire County Council,04-02566,ABLE COMMUNITY CARE,Care,Residential Care,"2,437.00",0,"2,437.00",20-Jul-11,ADULT SOCIAL CARE & HEALTH
Nottinghamshire County Council,04-02566,ABLE COMMUNITY CARE,Care,Residential Care,336,67.2,403.2,20-Jul-11,ADULT SOCIAL CARE & HEALTH
Nottinghamshire County Council,04-02845,ACACIA CARE CENTRE,Care,Residential Care,"1,851.71",0,"1,851.71",20-Jul-11,ADULT SOCIAL CARE & HEALTH
Nottinghamshire County Council,04-02844,ACACIA CARE CENTRE,Care,Residential Care,"1,851.71",0,"1,851.71",20-Jul-11,ADULT SOCIAL CARE & HEALTH
Nottinghamshire County Council,04-07484,ACACIA RADIO ASSOCIATION,ICT,Telecommunications & Media,"1,000.00",0,"1,000.00",29-Jul-11,RESOURCES
Nottinghamshire County Council,04-01205,ACCESS TRAINING (EAST MIDLANDS) LIMITED,People,Vocational Training,500,0,500,06-Jul-11,CHILDREN & YOUNG PEOPLE
Nottinghamshire County Council,04-01205,ACCESS TRAINING (EAST MIDLANDS) LIMITED,People,Vocational Training,475,0,475,06-Jul-11,CHILDREN & YOUNG PEOPLE
Nottinghamshire County Council,04-00873,ACCO U K LIMITED SERVICES DIVISION,Soft Facilities Management,Office Supplies And Machines (Non It),"1,403.70",280.74,"1,684.44",05-Jul-11,RESOURCES
Nottinghamshire County Council,04-00903,ACCO U K LIMITED SERVICES DIVISION,Soft Facilities Management,Office Supplies And Machines (Non It),641,128.2,769.2,05-Jul-11,RESOURCES
Nottinghamshire County Council,04-01532,ACCO U K LIMITED SERVICES DIVISION,Soft Facilities Management,Office Supplies And Machines (Non It),947.7,189.54,"1,137.24",08-Jul-11,RESOURCES
Nottinghamshire County Council,04-01875,ACCO U K LIMITED SERVICES DIVISION,Soft Facilities Management,Office Supplies And Machines (Non It),580,116,696,15-Jul-11,RESOURCES
Nottinghamshire County Council,04-02497,ACCORDIAL UK,TBC,TBC,800,0,800,29-Jul-11,CHILDREN & YOUNG PEOPLE
Nottinghamshire County Council,04-01886,ACCOUNTANT GENERAL OF THE SUPREME COURT,Professional Services,Politics And Civic Affairs,"1,800.00",0,"1,800.00",13-Jul-11,RESOURCES
Nottinghamshire County Council,04-06627,ACE ABC TAXIS MANSFIELD,Transport And Travel,Taxi,"10,408.50","2,081.70","12,490.20",29-Jul-11,ADULT SOCIAL CARE & HEALTH
Nottinghamshire County Council,04-07381,ACE OF MANSFIELD LIMITED,Transport And Travel,Taxi,960,192,"1,152.00",29-Jul-11,CHILDREN & YOUNG PEOPLE
Nottinghamshire County Council,04-02139,ACE OF MANSFIELD LIMITED,Transport And Travel,Taxi,750,150,900,14-Jul-11,CHILDREN & YOUNG PEOPLE
Nottinghamshire County Council,04-02138,ACE OF MANSFIELD LIMITED,Transport And Travel,Taxi,774.25,154.85,929.1,14-Jul-11,CHILDREN & YOUNG PEOPLE
Nottinghamshire County Council,04-07380,ACE OF MANSFIELD LIMITED,Transport And Travel,Taxi,611.25,122.25,733.5,29-Jul-11,CHILDREN & YOUNG PEOPLE
Nottinghamshire County Council,04-02140,ACE OF MANSFIELD LIMITED,Transport And Travel,Taxi,"1,140.00",228,"1,368.00",14-Jul-11,CHILDREN & YOUNG PEOPLE
Nottinghamshire County Council,04-02141,ACE OF MANSFIELD LIMITED,Transport And Travel,Taxi,"1,295.00",259,"1,554.00",14-Jul-11,CHILDREN & YOUNG PEOPLE
Nottinghamshire County Council,04-07382,ACE OF MANSFIELD LIMITED,Transport And Travel,Taxi,980,196,"1,176.00",29-Jul-11,CHILDREN & YOUNG PEOPLE
Nottinghamshire County Council,04-06099,ACE OF MANSFIELD LIMITED,Transport And Travel,Taxi,608,121.6,729.6,21-Jul-11,CHILDREN & YOUNG PEOPLE
Nottinghamshire County Council,04-07383,ACE OF MANSFIELD LIMITED,Transport And Travel,Taxi,480,96,576,29-Jul-11,CHILDREN & YOUNG PEOPLE
Nottinghamshire County Council,04-06435,ACORN FOSTERING SERVICES LIMITED,Care,Fostering Services,"3,171.43",0,"3,171.43",25-Jul-11,CHILDREN & YOUNG PEOPLE
Nottinghamshire County Council,04-02270,ACORN FOSTERING SERVICES LIMITED,Care,Fostering Services,"3,492.86",0,"3,492.86",18-Jul-11,CHILDREN & YOUNG PEOPLE
Nottinghamshire County Council,04-02271,ACORN FOSTERING SERVICES LIMITED,Care,Fostering Services,"3,609.29",0,"3,609.29",18-Jul-11,CHILDREN & YOUNG PEOPLE
Nottinghamshire County Council,04-02272,ACORN FOSTERING SERVICES LIMITED,Care,Fostering Services,"3,492.86",0,"3,492.86",18-Jul-11,CHILDREN & YOUNG PEOPLE
Nottinghamshire County Council,04-00771,ACORN HOME CARE LIMITED,Care,Domiciliary Care,937.33,0,937.33,04-Jul-11,ADULT SOCIAL CARE & HEALTH
Nottinghamshire County Council,04-01635,ACORN HOME CARE LIMITED,Care,Domiciliary Care,954.45,0,954.45,11-Jul-11,ADULT SOCIAL CARE & HEALTH
Nottinghamshire County Council,04-02319,ACORN HOME CARE LIMITED,Care,Domiciliary Care,925.25,0,925.25,18-Jul-11,ADULT SOCIAL CARE & HEALTH
Nottinghamshire County Council,04-06510,ACORN HOME CARE LIMITED,Care,Domiciliary Care,926.25,0,926.25,25-Jul-11,ADULT SOCIAL CARE & HEALTH
Nottinghamshire County Council,04-00771,ACORN HOME CARE LIMITED,Care,Domiciliary Care,"3,143.62",0,"3,143.62",04-Jul-11,ADULT SOCIAL CARE & HEALTH
Nottinghamshire County Council,04-00771,ACORN HOME CARE LIMITED,Care,Domiciliary Care,222.16,0,222.16,04-Jul-11,ADULT SOCIAL CARE & HEALTH
Nottinghamshire County Council,04-01635,ACORN HOME CARE LIMITED,Care,Domiciliary Care,"3,263.31",0,"3,263.31",11-Jul-11,ADULT SOCIAL CARE & HEALTH
Nottinghamshire County Council,04-01635,ACORN HOME CARE LIMITED,Care,Domiciliary Care,218.12,0,218.12,11-Jul-11,ADULT SOCIAL CARE & HEALTH
Nottinghamshire County Council,04-02319,ACORN HOME CARE LIMITED,Care,Domiciliary Care,"3,021.50",0,"3,021.50",18-Jul-11,ADULT SOCIAL CARE & HEALTH
Nottinghamshire County Council,04-02319,ACORN HOME CARE LIMITED,Care,Domiciliary Care,289.41,0,289.41,18-Jul-11,ADULT SOCIAL CARE & HEALTH
Nottinghamshire County Council,04-06510,ACORN HOME CARE LIMITED,Care,Domiciliary Care,"3,175.94",0,"3,175.94",25-Jul-11,ADULT SOCIAL CARE & HEALTH
Nottinghamshire County Council,04-06510,ACORN HOME CARE LIMITED,Care,Domiciliary Care,407.94,0,407.94,25-Jul-11,ADULT SOCIAL CARE & HEALTH
Nottinghamshire County Council,04-00771,ACORN HOME CARE LIMITED,Care,Domiciliary Care,98.74,0,98.74,04-Jul-11,ADULT SOCIAL CARE & HEALTH
Nottinghamshire County Council,04-01635,ACORN HOME CARE LIMITED,Care,Domiciliary Care,100.02,0,100.02,11-Jul-11,ADULT SOCIAL CARE & HEALTH
Nottinghamshire County Council,04-01635,ACORN HOME CARE LIMITED,Care,Domiciliary Care,50.22,0,50.22,11-Jul-11,ADULT SOCIAL CARE & HEALTH
Nottinghamshire County Council,04-02319,ACORN HOME CARE LIMITED,Care,Domiciliary Care,85.76,0,85.76,18-Jul-11,ADULT SOCIAL CARE & HEALTH
Nottinghamshire County Council,04-02319,ACORN HOME CARE LIMITED,Care,Domiciliary Care,84.06,0,84.06,18-Jul-11,ADULT SOCIAL CARE & HEALTH
Nottinghamshire County Council,04-06510,ACORN HOME CARE LIMITED,Care,Domiciliary Care,85.12,0,85.12,25-Jul-11,ADULT SOCIAL CARE & HEALTH
Nottinghamshire County Council,04-06510,ACORN HOME CARE LIMITED,Care,Domiciliary Care,80.44,0,80.44,25-Jul-11,ADULT SOCIAL CARE & HEALTH
Nottinghamshire County Council,04-00771,ACORN HOME CARE LIMITED,Care,Domiciliary Care,124.49,0,124.49,04-Jul-11,ADULT SOCIAL CARE & HEALTH
Nottinghamshire County Council,04-01635,ACORN HOME CARE LIMITED,Care,Domiciliary Care,133.64,0,133.64,11-Jul-11,ADULT SOCIAL CARE & HEALTH
Nottinghamshire County Council,04-02319,ACORN HOME CARE LIMITED,Care,Domiciliary Care,158.32,0,158.32,18-Jul-11,ADULT SOCIAL CARE & HEALTH
Nottinghamshire County Council,04-06510,ACORN HOME CARE LIMITED,Care,Domiciliary Care,131.72,0,131.72,25-Jul-11,ADULT SOCIAL CARE & HEALTH
Nottinghamshire County Council,04-00769,ACORN HOME CARE LIMITED,Care,Domiciliary Care,852.26,0,852.26,04-Jul-11,ADULT SOCIAL CARE & HEALTH
Nottinghamshire County Council,04-00769,ACORN HOME CARE LIMITED,Care,Domiciliary Care,167.26,0,167.26,04-Jul-11,ADULT SOCIAL CARE & HEALTH
Nottinghamshire County Council,04-01634,ACORN HOME CARE LIMITED,Care,Domiciliary Care,821.2,0,821.2,11-Jul-11,ADULT SOCIAL CARE & HEALTH
Nottinghamshire County Council,04-01634,ACORN HOME CARE LIMITED,Care,Domiciliary Care,221.1,0,221.1,11-Jul-11,ADULT SOCIAL CARE & HEALTH
Nottinghamshire County Council,04-02317,ACORN HOME CARE LIMITED,Care,Domiciliary Care,768.85,0,768.85,18-Jul-11,ADULT SOCIAL CARE & HEALTH
Nottinghamshire County Council,04-02317,ACORN HOME CARE LIMITED,Care,Domiciliary Care,175.56,0,175.56,18-Jul-11,ADULT SOCIAL CARE & HEALTH
Nottinghamshire County Council,04-06515,ACORN HOME CARE LIMITED,Care,Domiciliary Care,620.52,0,620.52,25-Jul-11,ADULT SOCIAL CARE & HEALTH
Nottinghamshire County Council,04-06515,ACORN HOME CARE LIMITED,Care,Domiciliary Care,167.05,0,167.05,25-Jul-11,ADULT SOCIAL CARE & HEALTH
Nottinghamshire County Council,04-00769,ACORN HOME CARE LIMITED,Care,Domiciliary Care,147.68,0,147.68,04-Jul-11,ADULT SOCIAL CARE & HEALTH
Nottinghamshire County Council,04-01634,ACORN HOME CARE LIMITED,Care,Domiciliary Care,218.55,0,218.55,11-Jul-11,ADULT SOCIAL CARE & HEALTH
Nottinghamshire County Council,04-02317,ACORN HOME CARE LIMITED,Care,Domiciliary Care,186.63,0,186.63,18-Jul-11,ADULT SOCIAL CARE & HEALTH
Nottinghamshire County Council,04-06515,ACORN HOME CARE LIMITED,Care,Domiciliary Care,180.88,0,180.88,25-Jul-11,ADULT SOCIAL CARE & HEALTH
Nottinghamshire County Council,04-00769,ACORN HOME CARE LIMITED,Care,Domiciliary Care,39.58,0,39.58,04-Jul-11,ADULT SOCIAL CARE & HEALTH
Nottinghamshire County Council,04-01634,ACORN HOME CARE LIMITED,Care,Domiciliary Care,36.18,0,36.18,11-Jul-11,ADULT SOCIAL CARE & HEALTH
Nottinghamshire County Council,04-02317,ACORN HOME CARE LIMITED,Care,Domiciliary Care,42.77,0,42.77,18-Jul-11,ADULT SOCIAL CARE & HEALTH
Nottinghamshire County Council,04-06515,ACORN HOME CARE LIMITED,Care,Domiciliary Care,36.18,0,36.18,25-Jul-11,ADULT SOCIAL CARE & HEALTH
Nottinghamshire County Council,04-07063,ACTION FOR CHILDREN,Care,Infant Or Child Daycare Services,800,140,940,27-Jul-11,CHILDREN & YOUNG PEOPLE
Nottinghamshire County Council,04-06657,ACTION REPLAY,Care,Community And Social Services,500,0,500,26-Jul-11,CHILDREN & YOUNG PEOPLE
Nottinghamshire County Council,04-05101,ADAMS HOUSE,Care,Residential Care,"8,832.00",0,"8,832.00",20-Jul-11,ADULT SOCIAL CARE & HEALTH
Nottinghamshire County Council,04-05103,ADAMS HOUSE,Care,Residential Care,"8,120.00",0,"8,120.00",20-Jul-11,ADULT SOCIAL CARE & HEALTH
Nottinghamshire County Council,04-05105,ADAMS HOUSE,Care,Residential Care,"6,000.00",0,"6,000.00",20-Jul-11,ADULT SOCIAL CARE & HEALTH
Nottinghamshire County Council,04-05102,ADAMS HOUSE,Care,Residential Care,"7,616.00",0,"7,616.00",20-Jul-11,ADULT SOCIAL CARE & HEALTH
Nottinghamshire County Council,04-05100,ADAMS HOUSE,Care,Residential Care,"9,040.00",0,"9,040.00",20-Jul-11,ADULT SOCIAL CARE & HEALTH
Nottinghamshire County Council,04-05104,ADAMS HOUSE,Care,Residential Care,"7,836.00",0,"7,836.00",20-Jul-11,ADULT SOCIAL CARE & HEALTH
Nottinghamshire County Council,04-04578,ADBOLTON HALL NURSING HOME,Care,Residential Care,"1,632.00",0,"1,632.00",20-Jul-11,ADULT SOCIAL CARE & HEALTH
Nottinghamshire County Council,04-04585,ADBOLTON HALL NURSING HOME,Care,Residential Care,"1,632.00",0,"1,632.00",20-Jul-11,ADULT SOCIAL CARE & HEALTH
Nottinghamshire County Council,04-04571,ADBOLTON HALL NURSING HOME,Care,Residential Care,"1,800.00",0,"1,800.00",20-Jul-11,ADULT SOCIAL CARE & HEALTH
Nottinghamshire County Council,04-04579,ADBOLTON HALL NURSING HOME,Care,Residential Care,"1,800.00",0,"1,800.00",20-Jul-11,ADULT SOCIAL CARE & HEALTH
Nottinghamshire County Council,04-04581,ADBOLTON HALL NURSING HOME,Care,Residential Care,"1,800.00",0,"1,800.00",20-Jul-11,ADULT SOCIAL CARE & HEALTH
Nottinghamshire County Council,04-04588,ADBOLTON HALL NURSING HOME,Care,Residential Care,"1,800.00",0,"1,800.00",20-Jul-11,ADULT SOCIAL CARE & HEALTH
Nottinghamshire County Council,04-04572,ADBOLTON HALL NURSING HOME,Care,Residential Care,"1,816.00",0,"1,816.00",20-Jul-11,ADULT SOCIAL CARE & HEALTH
Nottinghamshire County Council,04-04574,ADBOLTON HALL NURSING HOME,Care,Residential Care,"1,816.00",0,"1,816.00",20-Jul-11,ADULT SOCIAL CARE & HEALTH
Nottinghamshire County Council,04-04580,ADBOLTON HALL NURSING HOME,Care,Residential Care,"1,816.00",0,"1,816.00",20-Jul-11,ADULT SOCIAL CARE & HEALTH
Nottinghamshire County Council,04-04582,ADBOLTON HALL NURSING HOME,Care,Residential Care,"1,816.00",0,"1,816.00",20-Jul-11,ADULT SOCIAL CARE & HEALTH
Nottinghamshire County Council,04-04584,ADBOLTON HALL NURSING HOME,Care,Residential Care,"1,816.00",0,"1,816.00",20-Jul-11,ADULT SOCIAL CARE & HEALTH
Nottinghamshire County Council,04-04586,ADBOLTON HALL NURSING HOME,Care,Residential Care,"1,816.00",0,"1,816.00",20-Jul-11,ADULT SOCIAL CARE & HEALTH
Nottinghamshire County Council,04-04587,ADBOLTON HALL NURSING HOME,Care,Residential Care,"1,964.00",0,"1,964.00",20-Jul-11,ADULT SOCIAL CARE & HEALTH
Nottinghamshire County Council,04-04573,ADBOLTON HALL NURSING HOME,Care,Residential Care,"2,455.00",0,"2,455.00",20-Jul-11,ADULT SOCIAL CARE & HEALTH
Nottinghamshire County Council,04-04575,ADBOLTON HALL NURSING HOME,Care,Residential Care,"1,964.00",0,"1,964.00",20-Jul-11,ADULT SOCIAL CARE & HEALTH
Nottinghamshire County Council,04-04576,ADBOLTON HALL NURSING HOME,Care,Residential Care,"1,964.00",0,"1,964.00",20-Jul-11,ADULT SOCIAL CARE & HEALTH
Nottinghamshire County Council,04-04583,ADBOLTON HALL NURSING HOME,Care,Residential Care,"1,964.00",0,"1,964.00",20-Jul-11,ADULT SOCIAL CARE & HEALTH
Nottinghamshire County Council,04-04571,ADBOLTON HALL NURSING HOME,Care,Residential Care,92,0,92,20-Jul-11,ADULT SOCIAL CARE & HEALTH
Nottinghamshire County Council,04-04572,ADBOLTON HALL NURSING HOME,Care,Residential Care,96,0,96,20-Jul-11,ADULT SOCIAL CARE & HEALTH
Nottinghamshire County Council,04-04578,ADBOLTON HALL NURSING HOME,Care,Residential Care,116.84,0,116.84,20-Jul-11,ADULT SOCIAL CARE & HEALTH
Nottinghamshire County Council,04-04579,ADBOLTON HALL NURSING HOME,Care,Residential Care,52,0,52,20-Jul-11,ADULT SOCIAL CARE & HEALTH
Nottinghamshire County Council,04-04581,ADBOLTON HALL NURSING HOME,Care,Residential Care,140,0,140,20-Jul-11,ADULT SOCIAL CARE & HEALTH
Nottinghamshire County Council,04-04585,ADBOLTON HALL NURSING HOME,Care,Residential Care,120,0,120,20-Jul-11,ADULT SOCIAL CARE & HEALTH
Nottinghamshire County Council,04-04572,ADBOLTON HALL NURSING HOME,Care,Residential Care,434.8,0,434.8,20-Jul-11,ADULT SOCIAL CARE & HEALTH
Nottinghamshire County Council,04-04573,ADBOLTON HALL NURSING HOME,Care,Residential Care,543.5,0,543.5,20-Jul-11,ADULT SOCIAL CARE & HEALTH
Nottinghamshire County Council,04-04574,ADBOLTON HALL NURSING HOME,Care,Residential Care,434.8,0,434.8,20-Jul-11,ADULT SOCIAL CARE & HEALTH
Nottinghamshire County Council,04-04575,ADBOLTON HALL NURSING HOME,Care,Residential Care,434.8,0,434.8,20-Jul-11,ADULT SOCIAL CARE & HEALTH
Nottinghamshire County Council,04-04576,ADBOLTON HALL NURSING HOME,Care,Residential Care,434.8,0,434.8,20-Jul-11,ADULT SOCIAL CARE & HEALTH
Nottinghamshire County Council,04-04577,ADBOLTON HALL NURSING HOME,Care,Residential Care,"2,670.91",0,"2,670.91",20-Jul-11,ADULT SOCIAL CARE & HEALTH
Nottinghamshire County Council,04-04580,ADBOLTON HALL NURSING HOME,Care,Residential Care,434.8,0,434.8,20-Jul-11,ADULT SOCIAL CARE & HEALTH
Nottinghamshire County Council,04-04582,ADBOLTON HALL NURSING HOME,Care,Residential Care,434.8,0,434.8,20-Jul-11,ADULT SOCIAL CARE & HEALTH
Nottinghamshire County Council,04-04583,ADBOLTON HALL NURSING HOME,Care,Residential Care,434.8,0,434.8,20-Jul-11,ADULT SOCIAL CARE & HEALTH
Nottinghamshire County Council,04-04584,ADBOLTON HALL NURSING HOME,Care,Residential Care,434.8,0,434.8,20-Jul-11,ADULT SOCIAL CARE & HEALTH
Nottinghamshire County Council,04-04586,ADBOLTON HALL NURSING HOME,Care,Residential Care,434.8,0,434.8,20-Jul-11,ADULT SOCIAL CARE & HEALTH
Nottinghamshire County Council,04-04587,ADBOLTON HALL NURSING HOME,Care,Residential Care,434.8,0,434.8,20-Jul-11,ADULT SOCIAL CARE & HEALTH
Nottinghamshire County Council,04-04577,ADBOLTON HALL NURSING HOME,Care,Residential Care,"-2,236.11",0,"-2,236.11",20-Jul-11,ADULT SOCIAL CARE & HEALTH
Nottinghamshire County Council,04-00742,ADBRUF LIMITED,External Services (Highways And Culture),Highways And Works,572.84,114.57,687.41,04-Jul-11,COMMUNITIES
Nottinghamshire County Council,04-00742,ADBRUF LIMITED,External Services (Highways And Culture),Highways And Works,"4,716.86",943.37,"5,660.23",04-Jul-11,COMMUNITIES
Nottinghamshire County Council,04-00742,ADBRUF LIMITED,External Services (Highways And Culture),Highways And Works,253,50.6,303.6,04-Jul-11,COMMUNITIES
Nottinghamshire County Council,04-02524,ADDISON SUPPORTED LIVING AND HOUSING,Care,Residential Care,754.89,0,754.89,20-Jul-11,ADULT SOCIAL CARE & HEALTH
Nottinghamshire County Council,04-02525,ADDISON SUPPORTED LIVING AND HOUSING,Care,Residential Care,"1,100.93",0,"1,100.93",20-Jul-11,ADULT SOCIAL CARE & HEALTH
Nottinghamshire County Council,04-02526,ADDISON SUPPORTED LIVING AND HOUSING,Care,Residential Care,"1,187.44",0,"1,187.44",20-Jul-11,ADULT SOCIAL CARE & HEALTH
Nottinghamshire County Council,04-06649,ADSM LTD,Hard Facilities Management ,Utilities,514.08,0,514.08,25-Jul-11,CHILDREN & YOUNG PEOPLE
Nottinghamshire County Council,04-06649,ADSM LTD,Hard Facilities Management ,Utilities,433.87,0,433.87,25-Jul-11,CHILDREN & YOUNG PEOPLE
Nottinghamshire County Council,04-06649,ADSM LTD,Hard Facilities Management ,Utilities,67.36,0,67.36,25-Jul-11,COMMUNITIES
Nottinghamshire County Council,04-06649,ADSM LTD,Hard Facilities Management ,Utilities,526.55,0,526.55,25-Jul-11,COMMUNITIES
Nottinghamshire County Council,04-06649,ADSM LTD,Hard Facilities Management ,Utilities,81.09,0,81.09,25-Jul-11,COMMUNITIES
Nottinghamshire County Council,04-06649,ADSM LTD,Hard Facilities Management ,Utilities,261.94,0,261.94,25-Jul-11,COMMUNITIES
Nottinghamshire County Council,04-06649,ADSM LTD,Hard Facilities Management ,Utilities,502.07,0,502.07,25-Jul-11,RESOURCES
Nottinghamshire County Council,04-06649,ADSM LTD,Hard Facilities Management ,Utilities,876.35,0,876.35,25-Jul-11,RESOURCES
Nottinghamshire County Council,04-06649,ADSM LTD,Hard Facilities Management ,Utilities,197.07,0,197.07,25-Jul-11,RESOURCES
Nottinghamshire County Council,04-06649,ADSM LTD,Hard Facilities Management ,Utilities,581.65,0,581.65,25-Jul-11,ADULT SOCIAL CARE & HEALTH
Nottinghamshire County Council,04-06649,ADSM LTD,Hard Facilities Management ,Utilities,"3,438.58",0,"3,438.58",25-Jul-11,ADULT SOCIAL CARE & HEALTH
Nottinghamshire County Council,04-06649,ADSM LTD,Hard Facilities Management ,Utilities,502.08,0,502.08,25-Jul-11,ADULT SOCIAL CARE & HEALTH
Nottinghamshire County Council,04-06649,ADSM LTD,Hard Facilities Management ,Utilities,635.26,0,635.26,25-Jul-11,CHILDREN & YOUNG PEOPLE
Nottinghamshire County Council,04-06649,ADSM LTD,Hard Facilities Management ,Utilities,160.87,0,160.87,25-Jul-11,CHILDREN & YOUNG PEOPLE
Nottinghamshire County Council,04-06649,ADSM LTD,Hard Facilities Management ,Utilities,"1,755.76",0,"1,755.76",25-Jul-11,RESOURCES
Nottinghamshire County Council,04-02453,ADVANCE HOUSING AND SUPPORT LIMITED,Grants And Loans                        ,Grants And Loans                        ,"20,239.53",0,"20,239.53",21-Jul-11,ADULT SOCIAL CARE & HEALTH
Nottinghamshire County Council,04-02012,ADVENTURE ACTIVITIES LICENCING AUTH,Professional Services,Legal Services,715,0,715,14-Jul-11,CHILDREN & YOUNG PEOPLE
Nottinghamshire County Council,04-00484,ADVOCACY PARTNERS SPEAKING UP,Care,Daycare,"20,787.25",0,"20,787.25",15-Jul-11,ADULT SOCIAL CARE & HEALTH
Nottinghamshire County Council,04-00616,ADVOCACY PARTNERS SPEAKING UP,Care,Daycare,"-37,839.25",0,"-37,839.25",01-Jul-11,ADULT SOCIAL CARE & HEALTH
Nottinghamshire County Council,04-00617,ADVOCACY PARTNERS SPEAKING UP,Care,Daycare,"37,839.25",0,"37,839.25",01-Jul-11,ADULT SOCIAL CARE & HEALTH
Nottinghamshire County Council,04-01209,ADVOCACY PARTNERS SPEAKING UP,Care,Daycare,"19,681.75",0,"19,681.75",06-Jul-11,ADULT SOCIAL CARE & HEALTH
Nottinghamshire County Council,04-00485,ADVOCACY PARTNERS SPEAKING UP,Care,Daycare,"17,052.00",0,"17,052.00",15-Jul-11,ADULT SOCIAL CARE & HEALTH
Nottinghamshire County Council,04-05941,AGE CONCERN,Care,Community And Social Services,"5,000.00",0,"5,000.00",25-Jul-11,ADULT SOCIAL CARE & HEALTH
Nottinghamshire County Council,04-07137,AGE CONCERN,Care,Community And Social Services,"3,750.00",0,"3,750.00",29-Jul-11,ADULT SOCIAL CARE & HEALTH
Nottinghamshire County Council,04-07138,AGE CONCERN,Care,Community And Social Services,"3,750.00",0,"3,750.00",29-Jul-11,ADULT SOCIAL CARE & HEALTH
Nottinghamshire County Council,04-07139,AGE CONCERN,Care,Community And Social Services,"7,000.00",0,"7,000.00",29-Jul-11,ADULT SOCIAL CARE & HEALTH
Nottinghamshire County Council,04-07140,AGE CONCERN,Care,Community And Social Services,"5,000.00",0,"5,000.00",29-Jul-11,ADULT SOCIAL CARE & HEALTH
Nottinghamshire County Council,04-07141,AGE CONCERN,Care,Community And Social Services,"2,000.00",0,"2,000.00",29-Jul-11,ADULT SOCIAL CARE & HEALTH
Nottinghamshire County Council,04-02510,AGE CONCERN,Care,Community And Social Services,"22,356.17",0,"22,356.17",19-Jul-11,ADULT SOCIAL CARE & HEALTH
Nottinghamshire County Council,04-00014,AGGREGATE INDUSTRIES UK,External Services (Highways And Culture),Earth And Stone Aggregates ,948.06,189.61,"1,137.67",05-Jul-11,COMMUNITIES
Nottinghamshire County Council,04-00014,AGGREGATE INDUSTRIES UK,External Services (Highways And Culture),Earth And Stone Aggregates ,18,3.6,21.6,05-Jul-11,COMMUNITIES
Nottinghamshire County Council,04-00014,AGGREGATE INDUSTRIES UK,External Services (Highways And Culture),Earth And Stone Aggregates ,57.96,11.59,69.55,05-Jul-11,COMMUNITIES
Nottinghamshire County Council,04-07289,AIG EUROPE (UK) LIMITED,Professional Services,Financial And Insurance Services,"3,005.50",0,"3,005.50",27-Jul-11,RESOURCES
Nottinghamshire County Council,04-02607,AJ AND SA VERJEE,Care,Residential Care,"1,904.00",0,"1,904.00",20-Jul-11,ADULT SOCIAL CARE & HEALTH
Nottinghamshire County Council,04-02605,AJ AND SA VERJEE,Care,Residential Care,"1,904.00",0,"1,904.00",20-Jul-11,ADULT SOCIAL CARE & HEALTH
Nottinghamshire County Council,04-01895,AJ AND SA VERJEE,Care,Residential Care,"1,836.00",0,"1,836.00",14-Jul-11,ADULT SOCIAL CARE & HEALTH
Nottinghamshire County Council,04-02602,AJ AND SA VERJEE,Care,Residential Care,"1,904.00",0,"1,904.00",20-Jul-11,ADULT SOCIAL CARE & HEALTH
Nottinghamshire County Council,04-02603,AJ AND SA VERJEE,Care,Residential Care,"1,904.00",0,"1,904.00",20-Jul-11,ADULT SOCIAL CARE & HEALTH
Nottinghamshire County Council,04-02604,AJ AND SA VERJEE,Care,Residential Care,"1,904.00",0,"1,904.00",20-Jul-11,ADULT SOCIAL CARE & HEALTH
Nottinghamshire County Council,04-02606,AJ AND SA VERJEE,Care,Residential Care,"1,904.00",0,"1,904.00",20-Jul-11,ADULT SOCIAL CARE & HEALTH
Nottinghamshire County Council,04-02608,AJ AND SA VERJEE,Care,Residential Care,"1,904.00",0,"1,904.00",20-Jul-11,ADULT SOCIAL CARE & HEALTH
Nottinghamshire County Council,04-02609,AJ AND SA VERJEE,Care,Residential Care,"1,904.00",0,"1,904.00",20-Jul-11,ADULT SOCIAL CARE & HEALTH
Nottinghamshire County Council,04-02611,AJ AND SA VERJEE,Care,Residential Care,"1,904.00",0,"1,904.00",20-Jul-11,ADULT SOCIAL CARE & HEALTH
Nottinghamshire County Council,04-02610,AJ AND SA VERJEE,Care,Residential Care,"1,904.00",0,"1,904.00",20-Jul-11,ADULT SOCIAL CARE & HEALTH
Nottinghamshire County Council,04-02603,AJ AND SA VERJEE,Care,Residential Care,40,0,40,20-Jul-11,ADULT SOCIAL CARE & HEALTH
Nottinghamshire County Council,04-02606,AJ AND SA VERJEE,Care,Residential Care,40,0,40,20-Jul-11,ADULT SOCIAL CARE & HEALTH
Nottinghamshire County Council,04-02608,AJ AND SA VERJEE,Care,Residential Care,40,0,40,20-Jul-11,ADULT SOCIAL CARE & HEALTH
Nottinghamshire County Council,04-02611,AJ AND SA VERJEE,Care,Residential Care,40,0,40,20-Jul-11,ADULT SOCIAL CARE & HEALTH
Nottinghamshire County Council,04-02605,AJ AND SA VERJEE,Care,Residential Care,434.8,0,434.8,20-Jul-11,ADULT SOCIAL CARE & HEALTH
Nottinghamshire County Council,04-02607,AJ AND SA VERJEE,Care,Residential Care,434.8,0,434.8,20-Jul-11,ADULT SOCIAL CARE & HEALTH
Nottinghamshire County Council,04-02610,AJ AND SA VERJEE,Care,Residential Care,434.8,0,434.8,20-Jul-11,ADULT SOCIAL CARE & HEALTH
Nottinghamshire County Council,04-01895,AJ AND SA VERJEE,Care,Residential Care,419.27,0,419.27,14-Jul-11,ADULT SOCIAL CARE & HEALTH
Nottinghamshire County Council,04-02602,AJ AND SA VERJEE,Care,Residential Care,434.8,0,434.8,20-Jul-11,ADULT SOCIAL CARE & HEALTH
Nottinghamshire County Council,04-02603,AJ AND SA VERJEE,Care,Residential Care,434.8,0,434.8,20-Jul-11,ADULT SOCIAL CARE & HEALTH
Nottinghamshire County Council,04-02604,AJ AND SA VERJEE,Care,Residential Care,434.8,0,434.8,20-Jul-11,ADULT SOCIAL CARE & HEALTH
Nottinghamshire County Council,04-02606,AJ AND SA VERJEE,Care,Residential Care,434.8,0,434.8,20-Jul-11,ADULT SOCIAL CARE & HEALTH
Nottinghamshire County Council,04-02608,AJ AND SA VERJEE,Care,Residential Care,434.8,0,434.8,20-Jul-11,ADULT SOCIAL CARE & HEALTH
Nottinghamshire County Council,04-02609,AJ AND SA VERJEE,Care,Residential Care,434.8,0,434.8,20-Jul-11,ADULT SOCIAL CARE & HEALTH
Nottinghamshire County Council,04-05867,AJ AND SA VERJEE,Care,Residential Care,"1,336.34",0,"1,336.34",20-Jul-11,ADULT SOCIAL CARE & HEALTH
Nottinghamshire County Council,04-02611,AJ AND SA VERJEE,Care,Residential Care,434.8,0,434.8,20-Jul-11,ADULT SOCIAL CARE & HEALTH
Nottinghamshire County Council,04-02229,AKW MEDI-CARE LIMITED,Care,Medical Equipment And  Supplies,544.2,108.84,653.04,19-Jul-11,ADULT SOCIAL CARE & HEALTH
Nottinghamshire County Council,04-05212,ALANDALE,Care,Residential Care,"1,321.40",0,"1,321.40",20-Jul-11,ADULT SOCIAL CARE & HEALTH
Nottinghamshire County Council,04-05212,ALANDALE,Care,Residential Care,8.76,0,8.76,20-Jul-11,ADULT SOCIAL CARE & HEALTH
Nottinghamshire County Council,04-01906,ALBEMARLE HALL NURSING HOME,Care,Residential Care,"2,241.14",0,"2,241.14",14-Jul-11,ADULT SOCIAL CARE & HEALTH
Nottinghamshire County Council,04-03552,ALBEMARLE HALL NURSING HOME,Care,Residential Care,"1,800.00",0,"1,800.00",20-Jul-11,ADULT SOCIAL CARE & HEALTH
Nottinghamshire County Council,04-03549,ALBEMARLE HALL NURSING HOME,Care,Residential Care,"1,964.00",0,"1,964.00",20-Jul-11,ADULT SOCIAL CARE & HEALTH
Nottinghamshire County Council,04-03550,ALBEMARLE HALL NURSING HOME,Care,Residential Care,"1,964.00",0,"1,964.00",20-Jul-11,ADULT SOCIAL CARE & HEALTH
Nottinghamshire County Council,04-03551,ALBEMARLE HALL NURSING HOME,Care,Residential Care,"1,964.00",0,"1,964.00",20-Jul-11,ADULT SOCIAL CARE & HEALTH
Nottinghamshire County Council,04-06826,ALBEMARLE HALL NURSING HOME,Care,Residential Care,"1,964.00",0,"1,964.00",28-Jul-11,ADULT SOCIAL CARE & HEALTH
Nottinghamshire County Council,04-03549,ALBEMARLE HALL NURSING HOME,Care,Residential Care,434.8,0,434.8,20-Jul-11,ADULT SOCIAL CARE & HEALTH
Nottinghamshire County Council,04-03550,ALBEMARLE HALL NURSING HOME,Care,Residential Care,434.8,0,434.8,20-Jul-11,ADULT SOCIAL CARE & HEALTH
Nottinghamshire County Council,04-03551,ALBEMARLE HALL NURSING HOME,Care,Residential Care,434.8,0,434.8,20-Jul-11,ADULT SOCIAL CARE & HEALTH
Nottinghamshire County Council,04-06826,ALBEMARLE HALL NURSING HOME,Care,Residential Care,434.8,0,434.8,28-Jul-11,ADULT SOCIAL CARE & HEALTH
Nottinghamshire County Council,04-02589,ALDERCAR RESIDENTIAL HOME,Care,Residential Care,"1,632.00",0,"1,632.00",20-Jul-11,ADULT SOCIAL CARE & HEALTH
Nottinghamshire County Council,04-02590,ALDERCAR RESIDENTIAL HOME,Care,Residential Care,"1,632.00",0,"1,632.00",20-Jul-11,ADULT SOCIAL CARE & HEALTH
Nottinghamshire County Council,04-02597,ALDERCAR RESIDENTIAL HOME,Care,Residential Care,"1,632.00",0,"1,632.00",20-Jul-11,ADULT SOCIAL CARE & HEALTH
Nottinghamshire County Council,04-02598,ALDERCAR RESIDENTIAL HOME,Care,Residential Care,"1,632.00",0,"1,632.00",20-Jul-11,ADULT SOCIAL CARE & HEALTH
Nottinghamshire County Council,04-02599,ALDERCAR RESIDENTIAL HOME,Care,Residential Care,"1,632.00",0,"1,632.00",20-Jul-11,ADULT SOCIAL CARE & HEALTH
Nottinghamshire County Council,04-02600,ALDERCAR RESIDENTIAL HOME,Care,Residential Care,"1,632.00",0,"1,632.00",20-Jul-11,ADULT SOCIAL CARE & HEALTH
Nottinghamshire County Council,04-02591,ALDERCAR RESIDENTIAL HOME,Care,Residential Care,"1,800.00",0,"1,800.00",20-Jul-11,ADULT SOCIAL CARE & HEALTH
Nottinghamshire County Council,04-02592,ALDERCAR RESIDENTIAL HOME,Care,Residential Care,"1,800.00",0,"1,800.00",20-Jul-11,ADULT SOCIAL CARE & HEALTH
Nottinghamshire County Council,04-02594,ALDERCAR RESIDENTIAL HOME,Care,Residential Care,"-3,085.71",0,"-3,085.71",20-Jul-11,ADULT SOCIAL CARE & HEALTH
Nottinghamshire County Council,04-02595,ALDERCAR RESIDENTIAL HOME,Care,Residential Care,"1,800.00",0,"1,800.00",20-Jul-11,ADULT SOCIAL CARE & HEALTH
Nottinghamshire County Council,04-02601,ALDERCAR RESIDENTIAL HOME,Care,Residential Care,"1,800.00",0,"1,800.00",20-Jul-11,ADULT SOCIAL CARE & HEALTH
Nottinghamshire County Council,04-06765,ALDERCAR RESIDENTIAL HOME,Care,Residential Care,"1,350.00",0,"1,350.00",28-Jul-11,ADULT SOCIAL CARE & HEALTH
Nottinghamshire County Council,04-02596,ALDERCAR RESIDENTIAL HOME,Care,Residential Care,"1,632.00",0,"1,632.00",20-Jul-11,ADULT SOCIAL CARE & HEALTH
Nottinghamshire County Council,04-02593,ALDERCAR RESIDENTIAL HOME,Care,Residential Care,"1,800.00",0,"1,800.00",20-Jul-11,ADULT SOCIAL CARE & HEALTH
Nottinghamshire County Council,04-03555,ALEXANDRA HOUSE NURSING HOME,Care,Residential Care,"1,724.00",0,"1,724.00",20-Jul-11,ADULT SOCIAL CARE & HEALTH
Nottinghamshire County Council,04-03553,ALEXANDRA HOUSE NURSING HOME,Care,Residential Care,"1,724.00",0,"1,724.00",20-Jul-11,ADULT SOCIAL CARE & HEALTH
Nottinghamshire County Council,04-03554,ALEXANDRA HOUSE NURSING HOME,Care,Residential Care,"1,724.00",0,"1,724.00",20-Jul-11,ADULT SOCIAL CARE & HEALTH
Nottinghamshire County Council,04-03558,ALEXANDRA HOUSE NURSING HOME,Care,Residential Care,"1,724.00",0,"1,724.00",20-Jul-11,ADULT SOCIAL CARE & HEALTH
Nottinghamshire County Council,04-03560,ALEXANDRA HOUSE NURSING HOME,Care,Residential Care,"1,724.00",0,"1,724.00",20-Jul-11,ADULT SOCIAL CARE & HEALTH
Nottinghamshire County Council,04-03561,ALEXANDRA HOUSE NURSING HOME,Care,Residential Care,"1,724.00",0,"1,724.00",20-Jul-11,ADULT SOCIAL CARE & HEALTH
Nottinghamshire County Council,04-03564,ALEXANDRA HOUSE NURSING HOME,Care,Residential Care,"1,724.00",0,"1,724.00",20-Jul-11,ADULT SOCIAL CARE & HEALTH
Nottinghamshire County Council,04-03565,ALEXANDRA HOUSE NURSING HOME,Care,Residential Care,"1,724.00",0,"1,724.00",20-Jul-11,ADULT SOCIAL CARE & HEALTH
Nottinghamshire County Council,04-06827,ALEXANDRA HOUSE NURSING HOME,Care,Residential Care,985.14,0,985.14,28-Jul-11,ADULT SOCIAL CARE & HEALTH
Nottinghamshire County Council,04-06829,ALEXANDRA HOUSE NURSING HOME,Care,Residential Care,"1,293.00",0,"1,293.00",28-Jul-11,ADULT SOCIAL CARE & HEALTH
Nottinghamshire County Council,04-03557,ALEXANDRA HOUSE NURSING HOME,Care,Residential Care,"1,904.00",0,"1,904.00",20-Jul-11,ADULT SOCIAL CARE & HEALTH
Nottinghamshire County Council,04-03559,ALEXANDRA HOUSE NURSING HOME,Care,Residential Care,"1,904.00",0,"1,904.00",20-Jul-11,ADULT SOCIAL CARE & HEALTH
Nottinghamshire County Council,04-03562,ALEXANDRA HOUSE NURSING HOME,Care,Residential Care,"1,904.00",0,"1,904.00",20-Jul-11,ADULT SOCIAL CARE & HEALTH
Nottinghamshire County Council,04-03563,ALEXANDRA HOUSE NURSING HOME,Care,Residential Care,"1,904.00",0,"1,904.00",20-Jul-11,ADULT SOCIAL CARE & HEALTH
Nottinghamshire County Council,04-03566,ALEXANDRA HOUSE NURSING HOME,Care,Residential Care,"1,904.00",0,"1,904.00",20-Jul-11,ADULT SOCIAL CARE & HEALTH
Nottinghamshire County Council,04-06828,ALEXANDRA HOUSE NURSING HOME,Care,Residential Care,"2,244.00",0,"2,244.00",28-Jul-11,ADULT SOCIAL CARE & HEALTH
Nottinghamshire County Council,04-03556,ALEXANDRA HOUSE NURSING HOME,Care,Residential Care,"2,056.00",0,"2,056.00",20-Jul-11,ADULT SOCIAL CARE & HEALTH
Nottinghamshire County Council,04-03556,ALEXANDRA HOUSE NURSING HOME,Care,Residential Care,434.8,0,434.8,20-Jul-11,ADULT SOCIAL CARE & HEALTH
Nottinghamshire County Council,04-03557,ALEXANDRA HOUSE NURSING HOME,Care,Residential Care,434.8,0,434.8,20-Jul-11,ADULT SOCIAL CARE & HEALTH
Nottinghamshire County Council,04-03559,ALEXANDRA HOUSE NURSING HOME,Care,Residential Care,434.8,0,434.8,20-Jul-11,ADULT SOCIAL CARE & HEALTH
Nottinghamshire County Council,04-03562,ALEXANDRA HOUSE NURSING HOME,Care,Residential Care,434.8,0,434.8,20-Jul-11,ADULT SOCIAL CARE & HEALTH
Nottinghamshire County Council,04-03563,ALEXANDRA HOUSE NURSING HOME,Care,Residential Care,434.8,0,434.8,20-Jul-11,ADULT SOCIAL CARE & HEALTH
Nottinghamshire County Council,04-03566,ALEXANDRA HOUSE NURSING HOME,Care,Residential Care,434.8,0,434.8,20-Jul-11,ADULT SOCIAL CARE & HEALTH
Nottinghamshire County Council,04-06828,ALEXANDRA HOUSE NURSING HOME,Care,Residential Care,512.44,0,512.44,28-Jul-11,ADULT SOCIAL CARE & HEALTH
Nottinghamshire County Council,04-04240,ALEXANDRA LODGE CARE HOME,Care,Residential Care,"1,592.00",0,"1,592.00",20-Jul-11,ADULT SOCIAL CARE & HEALTH
Nottinghamshire County Council,04-04239,ALEXANDRA LODGE CARE HOME,Care,Residential Care,"1,592.00",0,"1,592.00",20-Jul-11,ADULT SOCIAL CARE & HEALTH
Nottinghamshire County Council,04-03569,ALFRED MINTO HOUSE RESIDENTIAL HOME,Care,Residential Care,"3,848.00",0,"3,848.00",20-Jul-11,ADULT SOCIAL CARE & HEALTH
Nottinghamshire County Council,04-03567,ALFRED MINTO HOUSE RESIDENTIAL HOME,Care,Residential Care,"3,848.00",0,"3,848.00",20-Jul-11,ADULT SOCIAL CARE & HEALTH
Nottinghamshire County Council,04-03568,ALFRED MINTO HOUSE RESIDENTIAL HOME,Care,Residential Care,"3,728.00",0,"3,728.00",20-Jul-11,ADULT SOCIAL CARE & HEALTH
Nottinghamshire County Council,04-02111,A-LINE TAXIS,Transport And Travel,Taxi,944.48,188.9,"1,133.38",14-Jul-11,CHILDREN & YOUNG PEOPLE
Nottinghamshire County Council,04-02111,A-LINE TAXIS,Transport And Travel,Taxi,472.16,94.43,566.59,14-Jul-11,CHILDREN & YOUNG PEOPLE
Nottinghamshire County Council,04-06082,A-LINE TAXIS,Transport And Travel,Taxi,546.72,109.34,656.06,21-Jul-11,CHILDREN & YOUNG PEOPLE
Nottinghamshire County Council,04-02284,A-LINE TAXIS,Transport And Travel,Taxi,"1,627.90",325.58,"1,953.48",20-Jul-11,ADULT SOCIAL CARE & HEALTH
Nottinghamshire County Council,04-06082,A-LINE TAXIS,Transport And Travel,Taxi,0,0.01,0.01,21-Jul-11,RESOURCES
Nottinghamshire County Council,04-01318,ALL WAYZ TRAVEL,Transport And Travel,Travel Agencies And Booking,"1,168.50",0,"1,168.50",06-Jul-11,CHILDREN & YOUNG PEOPLE
Nottinghamshire County Council,04-01445,ALL WAYZ TRAVEL,Transport And Travel,Travel Agencies And Booking,"1,558.00",0,"1,558.00",07-Jul-11,CHILDREN & YOUNG PEOPLE
Nottinghamshire County Council,04-01446,ALL WAYZ TRAVEL,Transport And Travel,Travel Agencies And Booking,990,0,990,07-Jul-11,CHILDREN & YOUNG PEOPLE
Nottinghamshire County Council,04-00775,ALLIED HEALTHCARE GROUP LIMITED,Care,Healthcare Services,"1,203.09",0,"1,203.09",04-Jul-11,ADULT SOCIAL CARE & HEALTH
Nottinghamshire County Council,04-00775,ALLIED HEALTHCARE GROUP LIMITED,Care,Healthcare Services,26.98,0,26.98,04-Jul-11,ADULT SOCIAL CARE & HEALTH
Nottinghamshire County Council,04-01625,ALLIED HEALTHCARE GROUP LIMITED,Care,Healthcare Services,979.3,0,979.3,11-Jul-11,ADULT SOCIAL CARE & HEALTH
Nottinghamshire County Council,04-01625,ALLIED HEALTHCARE GROUP LIMITED,Care,Healthcare Services,15.54,0,15.54,11-Jul-11,ADULT SOCIAL CARE & HEALTH
Nottinghamshire County Council,04-02308,ALLIED HEALTHCARE GROUP LIMITED,Care,Healthcare Services,"1,016.85",0,"1,016.85",18-Jul-11,ADULT SOCIAL CARE & HEALTH
Nottinghamshire County Council,04-02308,ALLIED HEALTHCARE GROUP LIMITED,Care,Healthcare Services,43.59,0,43.59,18-Jul-11,ADULT SOCIAL CARE & HEALTH
Nottinghamshire County Council,04-06512,ALLIED HEALTHCARE GROUP LIMITED,Care,Healthcare Services,980.81,0,980.81,25-Jul-11,ADULT SOCIAL CARE & HEALTH
Nottinghamshire County Council,04-06512,ALLIED HEALTHCARE GROUP LIMITED,Care,Healthcare Services,113.94,0,113.94,25-Jul-11,ADULT SOCIAL CARE & HEALTH
Nottinghamshire County Council,04-00775,ALLIED HEALTHCARE GROUP LIMITED,Care,Healthcare Services,76.61,0,76.61,04-Jul-11,ADULT SOCIAL CARE & HEALTH
Nottinghamshire County Council,04-00775,ALLIED HEALTHCARE GROUP LIMITED,Care,Healthcare Services,534.11,0,534.11,04-Jul-11,ADULT SOCIAL CARE & HEALTH
Nottinghamshire County Council,04-01625,ALLIED HEALTHCARE GROUP LIMITED,Care,Healthcare Services,103.58,0,103.58,11-Jul-11,ADULT SOCIAL CARE & HEALTH
Nottinghamshire County Council,04-01625,ALLIED HEALTHCARE GROUP LIMITED,Care,Healthcare Services,32.37,0,32.37,11-Jul-11,ADULT SOCIAL CARE & HEALTH
Nottinghamshire County Council,04-02308,ALLIED HEALTHCARE GROUP LIMITED,Care,Healthcare Services,118.91,0,118.91,18-Jul-11,ADULT SOCIAL CARE & HEALTH
Nottinghamshire County Council,04-02308,ALLIED HEALTHCARE GROUP LIMITED,Care,Healthcare Services,45.32,0,45.32,18-Jul-11,ADULT SOCIAL CARE & HEALTH
Nottinghamshire County Council,04-06512,ALLIED HEALTHCARE GROUP LIMITED,Care,Healthcare Services,93.87,0,93.87,25-Jul-11,ADULT SOCIAL CARE & HEALTH
Nottinghamshire County Council,04-00775,ALLIED HEALTHCARE GROUP LIMITED,Care,Healthcare Services,24.82,0,24.82,04-Jul-11,ADULT SOCIAL CARE & HEALTH
Nottinghamshire County Council,04-01625,ALLIED HEALTHCARE GROUP LIMITED,Care,Healthcare Services,25.9,0,25.9,11-Jul-11,ADULT SOCIAL CARE & HEALTH
Nottinghamshire County Council,04-02308,ALLIED HEALTHCARE GROUP LIMITED,Care,Healthcare Services,25.03,0,25.03,18-Jul-11,ADULT SOCIAL CARE & HEALTH
Nottinghamshire County Council,04-06512,ALLIED HEALTHCARE GROUP LIMITED,Care,Healthcare Services,25.03,0,25.03,25-Jul-11,ADULT SOCIAL CARE & HEALTH
Nottinghamshire County Council,04-00973,ALLSCREENS NATIONWIDE LIMITED,Transport And Travel,Fleet Maintenance Services,560,112,672,26-Jul-11,COMMUNITIES
Nottinghamshire County Council,04-01589,ALLSCREENS NATIONWIDE LIMITED,Transport And Travel,Fleet Maintenance Services,"1,178.23",235.65,"1,413.88",25-Jul-11,COMMUNITIES
Nottinghamshire County Council,04-01590,ALLSCREENS NATIONWIDE LIMITED,Transport And Travel,Fleet Maintenance Services,953.23,190.65,"1,143.88",25-Jul-11,COMMUNITIES
Nottinghamshire County Council,04-02109,ALLSCREENS NATIONWIDE LIMITED,Transport And Travel,Fleet Maintenance Services,460,92,552,25-Jul-11,COMMUNITIES
Nottinghamshire County Council,04-06101,ALPHA CARS,Transport And Travel,Taxi,671.16,0,671.16,21-Jul-11,CHILDREN & YOUNG PEOPLE
Nottinghamshire County Council,04-06753,ALPHA CARS,Transport And Travel,Taxi,"2,141.20",0,"2,141.20",25-Jul-11,ADULT SOCIAL CARE & HEALTH
Nottinghamshire County Council,04-00221,AMBER-RTM LTD,External Services (Highways & Culture),Highways & Works,"4,000.00",800,"4,800.00",12-Jul-11,COMMUNITIES
Nottinghamshire County Council,04-00350,AMBER-RTM LTD,External Services (Highways & Culture),Highways & Works,800,160,960,19-Jul-11,COMMUNITIES
Nottinghamshire County Council,04-00350,AMBER-RTM LTD,External Services (Highways & Culture),Highways & Works,800,160,960,19-Jul-11,COMMUNITIES
Nottinghamshire County Council,04-00126,AMBER-RTM LTD,External Services (Highways & Culture),Highways & Works,750,150,900,12-Jul-11,COMMUNITIES
Nottinghamshire County Council,04-00946,AMBER-RTM LTD,External Services (Highways & Culture),Highways & Works,"2,075.00",415,"2,490.00",26-Jul-11,TBC
Nottinghamshire County Council,04-00946,AMBER-RTM LTD,External Services (Highways & Culture),Highways & Works,"2,075.00",415,"2,490.00",26-Jul-11,TBC
Nottinghamshire County Council,04-06020,AMP ELECTRICAL DISTRIBUTORS LIMITED,Hard Facilities Management ,Electrical Systems And Lighting,422.5,84.5,507,25-Jul-11,RESOURCES
Nottinghamshire County Council,04-06214,AMVALE LIMITED,Transport And Travel,Taxi,"2,593.31",518.66,"3,111.97",21-Jul-11,CHILDREN & YOUNG PEOPLE
Nottinghamshire County Council,04-05018,ANCALADH HOUSE,Care,Residential Care,"10,024.52",0,"10,024.52",20-Jul-11,ADULT SOCIAL CARE & HEALTH
Nottinghamshire County Council,04-05019,ANCALADH HOUSE,Care,Residential Care,"12,300.00",0,"12,300.00",20-Jul-11,ADULT SOCIAL CARE & HEALTH
Nottinghamshire County Council,04-05017,ANCALADH HOUSE,Care,Residential Care,"16,000.00",0,"16,000.00",20-Jul-11,ADULT SOCIAL CARE & HEALTH
Nottinghamshire County Council,04-02554,ANCHOR CARE ALTERNATIVES,Care,Domiciliary Care,"16,740.72",0,"16,740.72",19-Jul-11,ADULT SOCIAL CARE & HEALTH
Nottinghamshire County Council,04-01431,ANCHOR TRUST,Care,Residential Care,"1,950.00",0,"1,950.00",11-Jul-11,ADULT SOCIAL CARE & HEALTH
Nottinghamshire County Council,04-02456,ANCHOR TRUST,Grants And Loans                        ,Grants And Loans                        ,"2,679.11",0,"2,679.11",21-Jul-11,ADULT SOCIAL CARE & HEALTH
Nottinghamshire County Council,04-01673,ANGLIAN WATER SERVICES LIMITED,Hard Facilities Management ,Utilities,672.92,0,672.92,13-Jul-11,ADULT SOCIAL CARE & HEALTH
Nottinghamshire County Council,04-01673,ANGLIAN WATER SERVICES LIMITED,Hard Facilities Management ,Utilities,523.11,0,523.11,13-Jul-11,ADULT SOCIAL CARE & HEALTH
Nottinghamshire County Council,04-04474,ANNESLEY LODGE,Care,Residential Care,"1,724.00",0,"1,724.00",20-Jul-11,ADULT SOCIAL CARE & HEALTH
Nottinghamshire County Council,04-04475,ANNESLEY LODGE,Care,Residential Care,"1,724.00",0,"1,724.00",20-Jul-11,ADULT SOCIAL CARE & HEALTH
Nottinghamshire County Council,04-04476,ANNESLEY LODGE,Care,Residential Care,"1,724.00",0,"1,724.00",20-Jul-11,ADULT SOCIAL CARE & HEALTH
Nottinghamshire County Council,04-04477,ANNESLEY LODGE,Care,Residential Care,"1,724.00",0,"1,724.00",20-Jul-11,ADULT SOCIAL CARE & HEALTH
Nottinghamshire County Council,04-04478,ANNESLEY LODGE,Care,Residential Care,"1,724.00",0,"1,724.00",20-Jul-11,ADULT SOCIAL CARE & HEALTH
Nottinghamshire County Council,04-04480,ANNESLEY LODGE,Care,Residential Care,"1,724.00",0,"1,724.00",20-Jul-11,ADULT SOCIAL CARE & HEALTH
Nottinghamshire County Council,04-04481,ANNESLEY LODGE,Care,Residential Care,"1,724.00",0,"1,724.00",20-Jul-11,ADULT SOCIAL CARE & HEALTH
Nottinghamshire County Council,04-04483,ANNESLEY LODGE,Care,Residential Care,"1,724.00",0,"1,724.00",20-Jul-11,ADULT SOCIAL CARE & HEALTH
Nottinghamshire County Council,04-04484,ANNESLEY LODGE,Care,Residential Care,"1,724.00",0,"1,724.00",20-Jul-11,ADULT SOCIAL CARE & HEALTH
Nottinghamshire County Council,04-04485,ANNESLEY LODGE,Care,Residential Care,"1,724.00",0,"1,724.00",20-Jul-11,ADULT SOCIAL CARE & HEALTH
Nottinghamshire County Council,04-04487,ANNESLEY LODGE,Care,Residential Care,"1,724.00",0,"1,724.00",20-Jul-11,ADULT SOCIAL CARE & HEALTH
Nottinghamshire County Council,04-06938,ANNESLEY LODGE,Care,Residential Care,"1,908.72",0,"1,908.72",28-Jul-11,ADULT SOCIAL CARE & HEALTH
Nottinghamshire County Council,04-04486,ANNESLEY LODGE,Care,Residential Care,"1,888.00",0,"1,888.00",20-Jul-11,ADULT SOCIAL CARE & HEALTH
Nottinghamshire County Council,04-04479,ANNESLEY LODGE,Care,Residential Care,"1,724.00",0,"1,724.00",20-Jul-11,ADULT SOCIAL CARE & HEALTH
Nottinghamshire County Council,04-04482,ANNESLEY LODGE,Care,Residential Care,"1,724.00",0,"1,724.00",20-Jul-11,ADULT SOCIAL CARE & HEALTH
Nottinghamshire County Council,04-04474,ANNESLEY LODGE,Care,Residential Care,80,0,80,20-Jul-11,ADULT SOCIAL CARE & HEALTH
Nottinghamshire County Council,04-04475,ANNESLEY LODGE,Care,Residential Care,80,0,80,20-Jul-11,ADULT SOCIAL CARE & HEALTH
Nottinghamshire County Council,04-04476,ANNESLEY LODGE,Care,Residential Care,40,0,40,20-Jul-11,ADULT SOCIAL CARE & HEALTH
Nottinghamshire County Council,04-04477,ANNESLEY LODGE,Care,Residential Care,40,0,40,20-Jul-11,ADULT SOCIAL CARE & HEALTH
Nottinghamshire County Council,04-04478,ANNESLEY LODGE,Care,Residential Care,80,0,80,20-Jul-11,ADULT SOCIAL CARE & HEALTH
Nottinghamshire County Council,04-04479,ANNESLEY LODGE,Care,Residential Care,80,0,80,20-Jul-11,ADULT SOCIAL CARE & HEALTH
Nottinghamshire County Council,04-04480,ANNESLEY LODGE,Care,Residential Care,80,0,80,20-Jul-11,ADULT SOCIAL CARE & HEALTH
Nottinghamshire County Council,04-04481,ANNESLEY LODGE,Care,Residential Care,80,0,80,20-Jul-11,ADULT SOCIAL CARE & HEALTH
Nottinghamshire County Council,04-04482,ANNESLEY LODGE,Care,Residential Care,80,0,80,20-Jul-11,ADULT SOCIAL CARE & HEALTH
Nottinghamshire County Council,04-04483,ANNESLEY LODGE,Care,Residential Care,80,0,80,20-Jul-11,ADULT SOCIAL CARE & HEALTH
Nottinghamshire County Council,04-04484,ANNESLEY LODGE,Care,Residential Care,80,0,80,20-Jul-11,ADULT SOCIAL CARE & HEALTH
Nottinghamshire County Council,04-04485,ANNESLEY LODGE,Care,Residential Care,92,0,92,20-Jul-11,ADULT SOCIAL CARE & HEALTH
Nottinghamshire County Council,04-04487,ANNESLEY LODGE,Care,Residential Care,80,0,80,20-Jul-11,ADULT SOCIAL CARE & HEALTH
Nottinghamshire County Council,04-06938,ANNESLEY LODGE,Care,Residential Care,88.57,0,88.57,28-Jul-11,ADULT SOCIAL CARE & HEALTH
Nottinghamshire County Council,04-00989,ANTARES (EUROPE) LTD,Transport & Travel,Fleet Maintenance Services,621,124.2,745.2,11-Jul-11,COMMUNITIES
Nottinghamshire County Council,04-06215,AOT COACHES,Transport And Travel,Bus,"3,341.72",0,"3,341.72",21-Jul-11,CHILDREN & YOUNG PEOPLE
Nottinghamshire County Council,04-07172,AOT COACHES,Transport And Travel,Bus,"2,638.20",0,"2,638.20",27-Jul-11,CHILDREN & YOUNG PEOPLE
Nottinghamshire County Council,04-06216,AOT COACHES,Transport And Travel,Bus,733.26,0,733.26,21-Jul-11,CHILDREN & YOUNG PEOPLE
Nottinghamshire County Council,04-06217,AOT COACHES,Transport And Travel,Bus,"1,106.25",0,"1,106.25",21-Jul-11,CHILDREN & YOUNG PEOPLE
Nottinghamshire County Council,04-06218,AOT COACHES,Transport And Travel,Bus,"1,125.00",0,"1,125.00",21-Jul-11,CHILDREN & YOUNG PEOPLE
Nottinghamshire County Council,04-07225,AQUA TAILORED WASTE SOLUTIONS,Soft Facilities Management,Environmental Services,773,154.6,927.6,28-Jul-11,CHILDREN & YOUNG PEOPLE
Nottinghamshire County Council,04-01388,AQUA TAILORED WASTE SOLUTIONS,Soft Facilities Management,Environmental Services,960,0,960,12-Jul-11,RESOURCES
Nottinghamshire County Council,04-01682,AQUA TAILORED WASTE SOLUTIONS,Soft Facilities Management,Environmental Services,840,0,840,14-Jul-11,RESOURCES
Nottinghamshire County Council,04-00474,AQUAJET (GB) LIMITED,Soft Facilities Management,Industrial Cleaning Services,656.5,131.3,787.8,07-Jul-11,COMMUNITIES
Nottinghamshire County Council,04-06534,ARCH COMMUNICATIONS,ICT,Telecommunications And Media,0,830,830,25-Jul-11,TBC
Nottinghamshire County Council,04-06534,ARCH COMMUNICATIONS,ICT,Telecommunications And Media,"4,150.00",0,"4,150.00",25-Jul-11,CHIEF EXECUTIVES
Nottinghamshire County Council,04-06357,ARCHWAY CARE LIMITED,Care,Domiciliary Care,"3,561.60",0,"3,561.60",25-Jul-11,CHILDREN & YOUNG PEOPLE
Nottinghamshire County Council,04-00526,ARCO LIMITED,Hard Facilities Management ,Health And Safety,711.6,142.32,853.92,01-Jul-11,COMMUNITIES
Nottinghamshire County Council,04-04517,ARDEN LEA NURSING HOME,Care,Residential Care,"1,376.00",0,"1,376.00",20-Jul-11,ADULT SOCIAL CARE & HEALTH
Nottinghamshire County Council,04-04516,ARDEN LEA NURSING HOME,Care,Residential Care,"1,580.00",0,"1,580.00",20-Jul-11,ADULT SOCIAL CARE & HEALTH
Nottinghamshire County Council,04-04516,ARDEN LEA NURSING HOME,Care,Residential Care,434.8,0,434.8,20-Jul-11,ADULT SOCIAL CARE & HEALTH
Nottinghamshire County Council,04-04517,ARDEN LEA NURSING HOME,Care,Residential Care,434.8,0,434.8,20-Jul-11,ADULT SOCIAL CARE & HEALTH
Nottinghamshire County Council,04-00009,ARK HOUSE,Care,Residential Care,"-2,400.00",0,"-2,400.00",28-Jul-11,ADULT SOCIAL CARE & HEALTH
Nottinghamshire County Council,04-00093,ARK HOUSE,Care,Residential Care,"2,400.00",0,"2,400.00",28-Jul-11,ADULT SOCIAL CARE & HEALTH
Nottinghamshire County Council,04-05560,ARLINGTON HOUSE,Care,Residential Care,"1,700.00",0,"1,700.00",20-Jul-11,ADULT SOCIAL CARE & HEALTH
Nottinghamshire County Council,04-01954,ARNOLD - ACORN TRAVEL,Transport And Travel,Travel Agencies And Booking,"2,090.00",0,"2,090.00",13-Jul-11,CHILDREN & YOUNG PEOPLE
Nottinghamshire County Council,04-07384,ARNOLD - ACORN TRAVEL,Transport And Travel,Travel Agencies And Booking,"1,760.00",0,"1,760.00",29-Jul-11,CHILDREN & YOUNG PEOPLE
Nottinghamshire County Council,04-01955,ARNOLD - ACORN TRAVEL,Transport And Travel,Travel Agencies And Booking,"1,961.10",0,"1,961.10",13-Jul-11,CHILDREN & YOUNG PEOPLE
Nottinghamshire County Council,04-07385,ARNOLD - ACORN TRAVEL,Transport And Travel,Travel Agencies And Booking,"1,740.60",0,"1,740.60",29-Jul-11,CHILDREN & YOUNG PEOPLE
Nottinghamshire County Council,04-06065,ARNOLD SERVICE CENTRE,Transport And Travel,Fleet Maintenance Services,741,148.2,889.2,21-Jul-11,CHILDREN & YOUNG PEOPLE
Nottinghamshire County Council,04-06262,ARROW LIGHT RAIL LIMITED,External Services (Highways And Culture),Highways And Works,"20,000.00",0,"20,000.00",25-Jul-11,COMMUNITIES
Nottinghamshire County Council,04-06142,ARROW SPECIALISED TRANSPORT LIMITED,Transport And Travel,Bus,608,121.6,729.6,21-Jul-11,CHILDREN & YOUNG PEOPLE
Nottinghamshire County Council,04-06104,ARROW SPECIALISED TRANSPORT LIMITED,Transport And Travel,Bus,"1,072.71",214.54,"1,287.25",21-Jul-11,CHILDREN & YOUNG PEOPLE
Nottinghamshire County Council,04-07388,ARROW SPECIALISED TRANSPORT LIMITED,Transport And Travel,Bus,885.58,177.12,"1,062.70",29-Jul-11,CHILDREN & YOUNG PEOPLE
Nottinghamshire County Council,04-06136,ARROW SPECIALISED TRANSPORT LIMITED,Transport And Travel,Bus,"2,308.86",461.77,"2,770.63",21-Jul-11,CHILDREN & YOUNG PEOPLE
Nottinghamshire County Council,04-07406,ARROW SPECIALISED TRANSPORT LIMITED,Transport And Travel,Bus,"1,711.80",342.36,"2,054.16",29-Jul-11,CHILDREN & YOUNG PEOPLE
Nottinghamshire County Council,04-01361,ARROW SPECIALISED TRANSPORT LIMITED,Transport And Travel,Bus,824.6,164.92,989.52,07-Jul-11,CHILDREN & YOUNG PEOPLE
Nottinghamshire County Council,04-07386,ARROW SPECIALISED TRANSPORT LIMITED,Transport And Travel,Bus,564.2,112.84,677.04,29-Jul-11,CHILDREN & YOUNG PEOPLE
Nottinghamshire County Council,04-01361,ARROW SPECIALISED TRANSPORT LIMITED,Transport And Travel,Bus,412.3,82.46,494.76,07-Jul-11,CHILDREN & YOUNG PEOPLE
Nottinghamshire County Council,04-07386,ARROW SPECIALISED TRANSPORT LIMITED,Transport And Travel,Bus,282.1,56.42,338.52,29-Jul-11,CHILDREN & YOUNG PEOPLE
Nottinghamshire County Council,04-06115,ARROW SPECIALISED TRANSPORT LIMITED,Transport And Travel,Bus,"1,691.00",0,"1,691.00",21-Jul-11,CHILDREN & YOUNG PEOPLE
Nottinghamshire County Council,04-07393,ARROW SPECIALISED TRANSPORT LIMITED,Transport And Travel,Bus,"1,335.00",0,"1,335.00",29-Jul-11,CHILDREN & YOUNG PEOPLE
Nottinghamshire County Council,04-06103,ARROW SPECIALISED TRANSPORT LIMITED,Transport And Travel,Bus,"1,557.00",311.4,"1,868.40",21-Jul-11,CHILDREN & YOUNG PEOPLE
Nottinghamshire County Council,04-06111,ARROW SPECIALISED TRANSPORT LIMITED,Transport And Travel,Bus,"1,273.00",254.6,"1,527.60",21-Jul-11,CHILDREN & YOUNG PEOPLE
Nottinghamshire County Council,04-06143,ARROW SPECIALISED TRANSPORT LIMITED,Transport And Travel,Bus,"1,032.50",206.5,"1,239.00",21-Jul-11,CHILDREN & YOUNG PEOPLE
Nottinghamshire County Council,04-06145,ARROW SPECIALISED TRANSPORT LIMITED,Transport And Travel,Bus,"2,106.47",421.29,"2,527.76",21-Jul-11,CHILDREN & YOUNG PEOPLE
Nottinghamshire County Council,04-07166,ARROW SPECIALISED TRANSPORT LIMITED,Transport And Travel,Bus,772.3,154.46,926.76,27-Jul-11,CHILDREN & YOUNG PEOPLE
Nottinghamshire County Council,04-07314,ARROW SPECIALISED TRANSPORT LIMITED,Transport And Travel,Bus,"1,297.50",259.5,"1,557.00",28-Jul-11,CHILDREN & YOUNG PEOPLE
Nottinghamshire County Council,04-07318,ARROW SPECIALISED TRANSPORT LIMITED,Transport And Travel,Bus,911.03,182.21,"1,093.24",28-Jul-11,CHILDREN & YOUNG PEOPLE
Nottinghamshire County Council,04-07387,ARROW SPECIALISED TRANSPORT LIMITED,Transport And Travel,Bus,"1,121.96",224.39,"1,346.35",29-Jul-11,CHILDREN & YOUNG PEOPLE
Nottinghamshire County Council,04-07394,ARROW SPECIALISED TRANSPORT LIMITED,Transport And Travel,Bus,938,187.6,"1,125.60",29-Jul-11,CHILDREN & YOUNG PEOPLE
Nottinghamshire County Council,04-07408,ARROW SPECIALISED TRANSPORT LIMITED,Transport And Travel,Bus,"1,858.65",371.73,"2,230.38",29-Jul-11,CHILDREN & YOUNG PEOPLE
Nottinghamshire County Council,04-07409,ARROW SPECIALISED TRANSPORT LIMITED,Transport And Travel,Bus,603.38,120.68,724.06,29-Jul-11,CHILDREN & YOUNG PEOPLE
Nottinghamshire County Council,04-06117,ARROW SPECIALISED TRANSPORT LIMITED,Transport And Travel,Bus,"2,080.80",0,"2,080.80",21-Jul-11,CHILDREN & YOUNG PEOPLE
Nottinghamshire County Council,04-06118,ARROW SPECIALISED TRANSPORT LIMITED,Transport And Travel,Bus,"2,407.14",481.43,"2,888.57",21-Jul-11,CHILDREN & YOUNG PEOPLE
Nottinghamshire County Council,04-06119,ARROW SPECIALISED TRANSPORT LIMITED,Transport And Travel,Bus,"2,387.88",477.58,"2,865.46",21-Jul-11,CHILDREN & YOUNG PEOPLE
Nottinghamshire County Council,04-06120,ARROW SPECIALISED TRANSPORT LIMITED,Transport And Travel,Bus,"2,589.69",517.94,"3,107.63",21-Jul-11,CHILDREN & YOUNG PEOPLE
Nottinghamshire County Council,04-06121,ARROW SPECIALISED TRANSPORT LIMITED,Transport And Travel,Bus,"1,750.17",350.03,"2,100.20",21-Jul-11,CHILDREN & YOUNG PEOPLE
Nottinghamshire County Council,04-06122,ARROW SPECIALISED TRANSPORT LIMITED,Transport And Travel,Bus,"2,414.52",0,"2,414.52",21-Jul-11,CHILDREN & YOUNG PEOPLE
Nottinghamshire County Council,04-06123,ARROW SPECIALISED TRANSPORT LIMITED,Transport And Travel,Bus,"1,599.12",319.82,"1,918.94",21-Jul-11,CHILDREN & YOUNG PEOPLE
Nottinghamshire County Council,04-07324,ARROW SPECIALISED TRANSPORT LIMITED,Transport And Travel,Bus,"1,734.00",0,"1,734.00",28-Jul-11,CHILDREN & YOUNG PEOPLE
Nottinghamshire County Council,04-07325,ARROW SPECIALISED TRANSPORT LIMITED,Transport And Travel,Bus,"2,005.95",401.19,"2,407.14",28-Jul-11,CHILDREN & YOUNG PEOPLE
Nottinghamshire County Council,04-07326,ARROW SPECIALISED TRANSPORT LIMITED,Transport And Travel,Bus,"1,989.90",397.98,"2,387.88",28-Jul-11,CHILDREN & YOUNG PEOPLE
Nottinghamshire County Council,04-07327,ARROW SPECIALISED TRANSPORT LIMITED,Transport And Travel,Bus,"2,180.85",436.17,"2,617.02",28-Jul-11,CHILDREN & YOUNG PEOPLE
Nottinghamshire County Council,04-07328,ARROW SPECIALISED TRANSPORT LIMITED,Transport And Travel,Bus,"1,426.80",285.36,"1,712.16",28-Jul-11,CHILDREN & YOUNG PEOPLE
Nottinghamshire County Council,04-07329,ARROW SPECIALISED TRANSPORT LIMITED,Transport And Travel,Bus,"2,012.10",0,"2,012.10",28-Jul-11,CHILDREN & YOUNG PEOPLE
Nottinghamshire County Council,04-07395,ARROW SPECIALISED TRANSPORT LIMITED,Transport And Travel,Bus,"1,332.60",266.52,"1,599.12",29-Jul-11,CHILDREN & YOUNG PEOPLE
Nottinghamshire County Council,04-06137,ARROW SPECIALISED TRANSPORT LIMITED,Transport And Travel,Bus,761.9,152.38,914.28,21-Jul-11,CHILDREN & YOUNG PEOPLE
Nottinghamshire County Council,04-07407,ARROW SPECIALISED TRANSPORT LIMITED,Transport And Travel,Bus,601.5,120.3,721.8,29-Jul-11,CHILDREN & YOUNG PEOPLE
Nottinghamshire County Council,04-06128,ARROW SPECIALISED TRANSPORT LIMITED,Transport And Travel,Bus,"2,428.92",485.78,"2,914.70",21-Jul-11,CHILDREN & YOUNG PEOPLE
Nottinghamshire County Council,04-06129,ARROW SPECIALISED TRANSPORT LIMITED,Transport And Travel,Bus,"2,143.26",428.65,"2,571.91",21-Jul-11,CHILDREN & YOUNG PEOPLE
Nottinghamshire County Council,04-06130,ARROW SPECIALISED TRANSPORT LIMITED,Transport And Travel,Bus,"1,636.02",327.2,"1,963.22",21-Jul-11,CHILDREN & YOUNG PEOPLE
Nottinghamshire County Council,04-06131,ARROW SPECIALISED TRANSPORT LIMITED,Transport And Travel,Bus,"2,232.54",446.51,"2,679.05",21-Jul-11,CHILDREN & YOUNG PEOPLE
Nottinghamshire County Council,04-06132,ARROW SPECIALISED TRANSPORT LIMITED,Transport And Travel,Bus,"1,743.30",348.66,"2,091.96",21-Jul-11,CHILDREN & YOUNG PEOPLE
Nottinghamshire County Council,04-06133,ARROW SPECIALISED TRANSPORT LIMITED,Transport And Travel,Bus,"2,952.36",590.47,"3,542.83",21-Jul-11,CHILDREN & YOUNG PEOPLE
Nottinghamshire County Council,04-07399,ARROW SPECIALISED TRANSPORT LIMITED,Transport And Travel,Bus,"1,754.22",350.84,"2,105.06",29-Jul-11,CHILDREN & YOUNG PEOPLE
Nottinghamshire County Council,04-07400,ARROW SPECIALISED TRANSPORT LIMITED,Transport And Travel,Bus,"1,547.91",309.58,"1,857.49",29-Jul-11,CHILDREN & YOUNG PEOPLE
Nottinghamshire County Council,04-07401,ARROW SPECIALISED TRANSPORT LIMITED,Transport And Travel,Bus,"1,181.57",236.31,"1,417.88",29-Jul-11,CHILDREN & YOUNG PEOPLE
Nottinghamshire County Council,04-07402,ARROW SPECIALISED TRANSPORT LIMITED,Transport And Travel,Bus,"1,612.39",322.48,"1,934.87",29-Jul-11,CHILDREN & YOUNG PEOPLE
Nottinghamshire County Council,04-07403,ARROW SPECIALISED TRANSPORT LIMITED,Transport And Travel,Bus,"1,259.05",251.81,"1,510.86",29-Jul-11,CHILDREN & YOUNG PEOPLE
Nottinghamshire County Council,04-07404,ARROW SPECIALISED TRANSPORT LIMITED,Transport And Travel,Bus,"2,132.26",426.45,"2,558.71",29-Jul-11,CHILDREN & YOUNG PEOPLE
Nottinghamshire County Council,04-06137,ARROW SPECIALISED TRANSPORT LIMITED,Transport And Travel,Bus,761.9,152.38,914.28,21-Jul-11,CHILDREN & YOUNG PEOPLE
Nottinghamshire County Council,04-07407,ARROW SPECIALISED TRANSPORT LIMITED,Transport And Travel,Bus,601.5,120.3,721.8,29-Jul-11,CHILDREN & YOUNG PEOPLE
Nottinghamshire County Council,04-01447,ARROW SPECIALISED TRANSPORT LIMITED,Transport And Travel,Bus,"1,171.83",234.37,"1,406.20",07-Jul-11,CHILDREN & YOUNG PEOPLE
Nottinghamshire County Council,04-06112,ARROW SPECIALISED TRANSPORT LIMITED,Transport And Travel,Bus,"1,953.72",0,"1,953.72",21-Jul-11,CHILDREN & YOUNG PEOPLE
Nottinghamshire County Council,04-06113,ARROW SPECIALISED TRANSPORT LIMITED,Transport And Travel,Bus,"1,917.54",383.51,"2,301.05",21-Jul-11,CHILDREN & YOUNG PEOPLE
Nottinghamshire County Council,04-06114,ARROW SPECIALISED TRANSPORT LIMITED,Transport And Travel,Bus,"1,890.00",378,"2,268.00",21-Jul-11,CHILDREN & YOUNG PEOPLE
Nottinghamshire County Council,04-06144,ARROW SPECIALISED TRANSPORT LIMITED,Transport And Travel,Bus,"1,939.32",0,"1,939.32",21-Jul-11,CHILDREN & YOUNG PEOPLE
Nottinghamshire County Council,04-06146,ARROW SPECIALISED TRANSPORT LIMITED,Transport And Travel,Bus,"1,939.32",0,"1,939.32",21-Jul-11,CHILDREN & YOUNG PEOPLE
Nottinghamshire County Council,04-07319,ARROW SPECIALISED TRANSPORT LIMITED,Transport And Travel,Bus,"1,723.84",0,"1,723.84",28-Jul-11,CHILDREN & YOUNG PEOPLE
Nottinghamshire County Council,04-07320,ARROW SPECIALISED TRANSPORT LIMITED,Transport And Travel,Bus,"1,736.64",0,"1,736.64",28-Jul-11,CHILDREN & YOUNG PEOPLE
Nottinghamshire County Council,04-07321,ARROW SPECIALISED TRANSPORT LIMITED,Transport And Travel,Bus,"1,704.48",340.9,"2,045.38",28-Jul-11,CHILDREN & YOUNG PEOPLE
Nottinghamshire County Council,04-07322,ARROW SPECIALISED TRANSPORT LIMITED,Transport And Travel,Bus,"1,680.00",336,"2,016.00",28-Jul-11,CHILDREN & YOUNG PEOPLE
Nottinghamshire County Council,04-06141,ARROW SPECIALISED TRANSPORT LIMITED,Transport And Travel,Bus,488,97.6,585.6,21-Jul-11,CHILDREN & YOUNG PEOPLE
Nottinghamshire County Council,04-06127,ARROW SPECIALISED TRANSPORT LIMITED,Transport And Travel,Bus,"1,943.02",388.6,"2,331.62",21-Jul-11,CHILDREN & YOUNG PEOPLE
Nottinghamshire County Council,04-07398,ARROW SPECIALISED TRANSPORT LIMITED,Transport And Travel,Bus,"1,542.00",308.4,"1,850.40",29-Jul-11,CHILDREN & YOUNG PEOPLE
Nottinghamshire County Council,04-01320,ARROW SPECIALISED TRANSPORT LIMITED,Transport And Travel,Bus,"2,806.87",561.37,"3,368.24",06-Jul-11,CHILDREN & YOUNG PEOPLE
Nottinghamshire County Council,04-01321,ARROW SPECIALISED TRANSPORT LIMITED,Transport And Travel,Bus,"2,120.40",424.08,"2,544.48",06-Jul-11,CHILDREN & YOUNG PEOPLE
Nottinghamshire County Council,04-06139,ARROW SPECIALISED TRANSPORT LIMITED,Transport And Travel,Bus,"2,166.00",433.2,"2,599.20",21-Jul-11,CHILDREN & YOUNG PEOPLE
Nottinghamshire County Council,04-06140,ARROW SPECIALISED TRANSPORT LIMITED,Transport And Travel,Bus,"1,090.60",218.12,"1,308.72",21-Jul-11,CHILDREN & YOUNG PEOPLE
Nottinghamshire County Council,04-07410,ARROW SPECIALISED TRANSPORT LIMITED,Transport And Travel,Bus,"2,215.95",443.19,"2,659.14",29-Jul-11,CHILDREN & YOUNG PEOPLE
Nottinghamshire County Council,04-07411,ARROW SPECIALISED TRANSPORT LIMITED,Transport And Travel,Bus,"1,710.00",342,"2,052.00",29-Jul-11,CHILDREN & YOUNG PEOPLE
Nottinghamshire County Council,04-07412,ARROW SPECIALISED TRANSPORT LIMITED,Transport And Travel,Bus,"1,674.00",334.8,"2,008.80",29-Jul-11,CHILDREN & YOUNG PEOPLE
Nottinghamshire County Council,04-07413,ARROW SPECIALISED TRANSPORT LIMITED,Transport And Travel,Bus,861,172.2,"1,033.20",29-Jul-11,CHILDREN & YOUNG PEOPLE
Nottinghamshire County Council,04-06105,ARROW SPECIALISED TRANSPORT LIMITED,Transport And Travel,Bus,"1,116.18",223.24,"1,339.42",21-Jul-11,CHILDREN & YOUNG PEOPLE
Nottinghamshire County Council,04-06106,ARROW SPECIALISED TRANSPORT LIMITED,Transport And Travel,Bus,"1,899.54",379.91,"2,279.45",21-Jul-11,CHILDREN & YOUNG PEOPLE
Nottinghamshire County Council,04-06107,ARROW SPECIALISED TRANSPORT LIMITED,Transport And Travel,Bus,"2,172.60",0,"2,172.60",21-Jul-11,CHILDREN & YOUNG PEOPLE
Nottinghamshire County Council,04-06108,ARROW SPECIALISED TRANSPORT LIMITED,Transport And Travel,Bus,"1,512.36",302.47,"1,814.83",21-Jul-11,CHILDREN & YOUNG PEOPLE
Nottinghamshire County Council,04-06109,ARROW SPECIALISED TRANSPORT LIMITED,Transport And Travel,Bus,"1,762.02",0,"1,762.02",21-Jul-11,CHILDREN & YOUNG PEOPLE
Nottinghamshire County Council,04-06110,ARROW SPECIALISED TRANSPORT LIMITED,Transport And Travel,Bus,"1,642.50",328.5,"1,971.00",21-Jul-11,CHILDREN & YOUNG PEOPLE
Nottinghamshire County Council,04-07316,ARROW SPECIALISED TRANSPORT LIMITED,Transport And Travel,Bus,"1,582.95",316.59,"1,899.54",28-Jul-11,CHILDREN & YOUNG PEOPLE
Nottinghamshire County Council,04-07317,ARROW SPECIALISED TRANSPORT LIMITED,Transport And Travel,Bus,"1,810.50",0,"1,810.50",28-Jul-11,CHILDREN & YOUNG PEOPLE
Nottinghamshire County Council,04-07389,ARROW SPECIALISED TRANSPORT LIMITED,Transport And Travel,Bus,"1,260.30",252.06,"1,512.36",29-Jul-11,CHILDREN & YOUNG PEOPLE
Nottinghamshire County Council,04-07390,ARROW SPECIALISED TRANSPORT LIMITED,Transport And Travel,Bus,"1,468.35",0,"1,468.35",29-Jul-11,CHILDREN & YOUNG PEOPLE
Nottinghamshire County Council,04-07391,ARROW SPECIALISED TRANSPORT LIMITED,Transport And Travel,Bus,"1,368.75",273.75,"1,642.50",29-Jul-11,CHILDREN & YOUNG PEOPLE
Nottinghamshire County Council,04-07392,ARROW SPECIALISED TRANSPORT LIMITED,Transport And Travel,Bus,930.15,186.03,"1,116.18",29-Jul-11,CHILDREN & YOUNG PEOPLE
Nottinghamshire County Council,04-06124,ARROW SPECIALISED TRANSPORT LIMITED,Transport And Travel,Bus,"2,527.00",0,"2,527.00",21-Jul-11,CHILDREN & YOUNG PEOPLE
Nottinghamshire County Council,04-06125,ARROW SPECIALISED TRANSPORT LIMITED,Transport And Travel,Bus,"2,183.10",436.62,"2,619.72",21-Jul-11,CHILDREN & YOUNG PEOPLE
Nottinghamshire County Council,04-07396,ARROW SPECIALISED TRANSPORT LIMITED,Transport And Travel,Bus,"1,995.00",0,"1,995.00",29-Jul-11,CHILDREN & YOUNG PEOPLE
Nottinghamshire County Council,04-07397,ARROW SPECIALISED TRANSPORT LIMITED,Transport And Travel,Bus,"1,723.50",344.7,"2,068.20",29-Jul-11,CHILDREN & YOUNG PEOPLE
Nottinghamshire County Council,04-06102,ARROW SPECIALISED TRANSPORT LIMITED,Transport And Travel,Bus,"1,982.70",0,"1,982.70",21-Jul-11,CHILDREN & YOUNG PEOPLE
Nottinghamshire County Council,04-07315,ARROW SPECIALISED TRANSPORT LIMITED,Transport And Travel,Bus,"1,762.40",0,"1,762.40",28-Jul-11,CHILDREN & YOUNG PEOPLE
Nottinghamshire County Council,04-07166,ARROW SPECIALISED TRANSPORT LIMITED,Transport And Travel,Bus,772.3,154.46,926.76,27-Jul-11,CHILDREN & YOUNG PEOPLE
Nottinghamshire County Council,04-07409,ARROW SPECIALISED TRANSPORT LIMITED,Transport And Travel,Bus,603.37,120.67,724.04,29-Jul-11,CHILDREN & YOUNG PEOPLE
Nottinghamshire County Council,04-06116,ARROW SPECIALISED TRANSPORT LIMITED,Transport And Travel,Bus,"1,682.46",336.49,"2,018.95",21-Jul-11,CHILDREN & YOUNG PEOPLE
Nottinghamshire County Council,04-06147,ARROW SPECIALISED TRANSPORT LIMITED,Transport And Travel,Bus,788,157.6,945.6,21-Jul-11,CHILDREN & YOUNG PEOPLE
Nottinghamshire County Council,04-07323,ARROW SPECIALISED TRANSPORT LIMITED,Transport And Travel,Bus,"1,308.58",261.72,"1,570.30",28-Jul-11,CHILDREN & YOUNG PEOPLE
Nottinghamshire County Council,04-07387,ARROW SPECIALISED TRANSPORT LIMITED,Transport And Travel,Bus,"1,121.95",224.39,"1,346.34",29-Jul-11,CHILDREN & YOUNG PEOPLE
Nottinghamshire County Council,04-06126,ARROW SPECIALISED TRANSPORT LIMITED,Transport And Travel,Bus,"1,766.80",0,"1,766.80",21-Jul-11,CHILDREN & YOUNG PEOPLE
Nottinghamshire County Council,04-06134,ARROW SPECIALISED TRANSPORT LIMITED,Transport And Travel,Bus,"1,482.00",296.4,"1,778.40",21-Jul-11,CHILDREN & YOUNG PEOPLE
Nottinghamshire County Council,04-06135,ARROW SPECIALISED TRANSPORT LIMITED,Transport And Travel,Bus,"1,596.00",319.2,"1,915.20",21-Jul-11,CHILDREN & YOUNG PEOPLE
Nottinghamshire County Council,04-06138,ARROW SPECIALISED TRANSPORT LIMITED,Transport And Travel,Bus,"2,135.60",427.12,"2,562.72",21-Jul-11,CHILDREN & YOUNG PEOPLE
Nottinghamshire County Council,04-07405,ARROW SPECIALISED TRANSPORT LIMITED,Transport And Travel,Bus,420,84,504,29-Jul-11,CHILDREN & YOUNG PEOPLE
Nottinghamshire County Council,04-06104,ARROW SPECIALISED TRANSPORT LIMITED,Transport And Travel,Bus,"1,072.71",214.54,"1,287.25",21-Jul-11,CHILDREN & YOUNG PEOPLE
Nottinghamshire County Council,04-06143,ARROW SPECIALISED TRANSPORT LIMITED,Transport And Travel,Bus,"1,032.49",206.5,"1,238.99",21-Jul-11,CHILDREN & YOUNG PEOPLE
Nottinghamshire County Council,04-07318,ARROW SPECIALISED TRANSPORT LIMITED,Transport And Travel,Bus,911.02,182.2,"1,093.22",28-Jul-11,CHILDREN & YOUNG PEOPLE
Nottinghamshire County Council,04-07388,ARROW SPECIALISED TRANSPORT LIMITED,Transport And Travel,Bus,885.58,177.12,"1,062.70",29-Jul-11,CHILDREN & YOUNG PEOPLE
Nottinghamshire County Council,04-01361,ARROW SPECIALISED TRANSPORT LIMITED,Transport And Travel,Bus,412.3,82.46,494.76,07-Jul-11,CHILDREN & YOUNG PEOPLE
Nottinghamshire County Council,04-06140,ARROW SPECIALISED TRANSPORT LIMITED,Transport And Travel,Bus,"1,090.60",218.12,"1,308.72",21-Jul-11,CHILDREN & YOUNG PEOPLE
Nottinghamshire County Council,04-07386,ARROW SPECIALISED TRANSPORT LIMITED,Transport And Travel,Bus,282.1,56.42,338.52,29-Jul-11,CHILDREN & YOUNG PEOPLE
Nottinghamshire County Council,04-07413,ARROW SPECIALISED TRANSPORT LIMITED,Transport And Travel,Bus,861,172.2,"1,033.20",29-Jul-11,CHILDREN & YOUNG PEOPLE
Nottinghamshire County Council,04-01866,ARROW SPECIALISED TRANSPORT LIMITED,Transport And Travel,Bus,455.94,91.19,547.13,15-Jul-11,ADULT SOCIAL CARE & HEALTH
Nottinghamshire County Council,04-06106,ARROW SPECIALISED TRANSPORT LIMITED,Transport And Travel,Bus,0,-0.01,-0.01,21-Jul-11,RESOURCES
Nottinghamshire County Council,04-06108,ARROW SPECIALISED TRANSPORT LIMITED,Transport And Travel,Bus,0,0.01,0.01,21-Jul-11,RESOURCES
Nottinghamshire County Council,04-06113,ARROW SPECIALISED TRANSPORT LIMITED,Transport And Travel,Bus,0,-0.01,-0.01,21-Jul-11,RESOURCES
Nottinghamshire County Council,04-06116,ARROW SPECIALISED TRANSPORT LIMITED,Transport And Travel,Bus,0,0.01,0.01,21-Jul-11,RESOURCES
Nottinghamshire County Council,04-06118,ARROW SPECIALISED TRANSPORT LIMITED,Transport And Travel,Bus,0,-0.01,-0.01,21-Jul-11,RESOURCES
Nottinghamshire County Council,04-06120,ARROW SPECIALISED TRANSPORT LIMITED,Transport And Travel,Bus,0,-0.01,-0.01,21-Jul-11,RESOURCES
Nottinghamshire County Council,04-06129,ARROW SPECIALISED TRANSPORT LIMITED,Transport And Travel,Bus,0,0.01,0.01,21-Jul-11,RESOURCES
Nottinghamshire County Council,04-06131,ARROW SPECIALISED TRANSPORT LIMITED,Transport And Travel,Bus,0,-0.01,-0.01,21-Jul-11,RESOURCES
Nottinghamshire County Council,04-06133,ARROW SPECIALISED TRANSPORT LIMITED,Transport And Travel,Bus,0,0.01,0.01,21-Jul-11,RESOURCES
Nottinghamshire County Council,04-06138,ARROW SPECIALISED TRANSPORT LIMITED,Transport And Travel,Bus,0,-382.16,-382.16,21-Jul-11,RESOURCES
Nottinghamshire County Council,04-06142,ARROW SPECIALISED TRANSPORT LIMITED,Transport And Travel,Bus,0,-11.4,-11.4,21-Jul-11,RESOURCES
Nottinghamshire County Council,04-06145,ARROW SPECIALISED TRANSPORT LIMITED,Transport And Travel,Bus,0,0.01,0.01,21-Jul-11,RESOURCES
Nottinghamshire County Council,04-07166,ARROW SPECIALISED TRANSPORT LIMITED,Transport And Travel,Bus,0,-20,-20,27-Jul-11,RESOURCES
Nottinghamshire County Council,04-07323,ARROW SPECIALISED TRANSPORT LIMITED,Transport And Travel,Bus,0,-0.01,-0.01,28-Jul-11,RESOURCES
Nottinghamshire County Council,04-07388,ARROW SPECIALISED TRANSPORT LIMITED,Transport And Travel,Bus,0,-0.01,-0.01,29-Jul-11,RESOURCES
Nottinghamshire County Council,04-07399,ARROW SPECIALISED TRANSPORT LIMITED,Transport And Travel,Bus,0,0.01,0.01,29-Jul-11,RESOURCES
Nottinghamshire County Council,04-07401,ARROW SPECIALISED TRANSPORT LIMITED,Transport And Travel,Bus,0,0.01,0.01,29-Jul-11,RESOURCES
Nottinghamshire County Council,04-00608,ART CLEANING (MIDLANDS) LIMITED,Soft Facilities Management,Industrial Cleaning Services,595.79,0,595.79,01-Jul-11,COMMUNITIES
Nottinghamshire County Council,04-00611,ART CLEANING (MIDLANDS) LIMITED,Soft Facilities Management,Industrial Cleaning Services,860.17,0,860.17,01-Jul-11,COMMUNITIES
Nottinghamshire County Council,04-00610,ART CLEANING (MIDLANDS) LIMITED,Soft Facilities Management,Industrial Cleaning Services,750.26,0,750.26,01-Jul-11,COMMUNITIES
Nottinghamshire County Council,04-00609,ART CLEANING (MIDLANDS) LIMITED,Soft Facilities Management,Industrial Cleaning Services,595.79,0,595.79,01-Jul-11,COMMUNITIES
Nottinghamshire County Council,04-00607,ART CLEANING (MIDLANDS) LIMITED,Soft Facilities Management,Industrial Cleaning Services,750.26,0,750.26,01-Jul-11,COMMUNITIES
Nottinghamshire County Council,04-00612,ART CLEANING (MIDLANDS) LIMITED,Soft Facilities Management,Industrial Cleaning Services,"1,213.35",0,"1,213.35",01-Jul-11,COMMUNITIES
Nottinghamshire County Council,04-00607,ART CLEANING (MIDLANDS) LIMITED,Soft Facilities Management,Industrial Cleaning Services,0,150.05,150.05,01-Jul-11,RESOURCES
Nottinghamshire County Council,04-00608,ART CLEANING (MIDLANDS) LIMITED,Soft Facilities Management,Industrial Cleaning Services,0,119.16,119.16,01-Jul-11,RESOURCES
Nottinghamshire County Council,04-00609,ART CLEANING (MIDLANDS) LIMITED,Soft Facilities Management,Industrial Cleaning Services,0,119.16,119.16,01-Jul-11,RESOURCES
Nottinghamshire County Council,04-00610,ART CLEANING (MIDLANDS) LIMITED,Soft Facilities Management,Industrial Cleaning Services,0,150.05,150.05,01-Jul-11,RESOURCES
Nottinghamshire County Council,04-00611,ART CLEANING (MIDLANDS) LIMITED,Soft Facilities Management,Industrial Cleaning Services,0,172.03,172.03,01-Jul-11,RESOURCES
Nottinghamshire County Council,04-00612,ART CLEANING (MIDLANDS) LIMITED,Soft Facilities Management,Industrial Cleaning Services,0,242.67,242.67,01-Jul-11,RESOURCES
Nottinghamshire County Council,04-06766,ASH LEA RESIDENTIAL HOME,Care,Residential Care,"2,996.08",0,"2,996.08",28-Jul-11,ADULT SOCIAL CARE & HEALTH
Nottinghamshire County Council,04-06767,ASH LEA RESIDENTIAL HOME,Care,Residential Care,"1,664.52",0,"1,664.52",28-Jul-11,ADULT SOCIAL CARE & HEALTH
Nottinghamshire County Council,04-06768,ASH LEA RESIDENTIAL HOME,Care,Residential Care,"2,501.32",0,"2,501.32",28-Jul-11,ADULT SOCIAL CARE & HEALTH
Nottinghamshire County Council,04-06769,ASH LEA RESIDENTIAL HOME,Care,Residential Care,"1,574.28",0,"1,574.28",28-Jul-11,ADULT SOCIAL CARE & HEALTH
Nottinghamshire County Council,04-06770,ASH LEA RESIDENTIAL HOME,Care,Residential Care,"2,218.28",0,"2,218.28",28-Jul-11,ADULT SOCIAL CARE & HEALTH
Nottinghamshire County Council,04-06768,ASH LEA RESIDENTIAL HOME,Care,Residential Care,-295,0,-295,28-Jul-11,ADULT SOCIAL CARE & HEALTH
Nottinghamshire County Council,04-06769,ASH LEA RESIDENTIAL HOME,Care,Residential Care,-295,0,-295,28-Jul-11,ADULT SOCIAL CARE & HEALTH
Nottinghamshire County Council,04-04403,ASH LEE REST HOME,Care,Residential Care,"1,415.68",0,"1,415.68",20-Jul-11,ADULT SOCIAL CARE & HEALTH
Nottinghamshire County Council,04-04404,ASH LEE REST HOME,Care,Residential Care,"1,492.68",0,"1,492.68",20-Jul-11,ADULT SOCIAL CARE & HEALTH
Nottinghamshire County Council,04-04930,ASH VILLA CARE HOME,Care,Residential Care,"7,516.76",0,"7,516.76",20-Jul-11,ADULT SOCIAL CARE & HEALTH
Nottinghamshire County Council,04-04932,ASH VILLA CARE HOME,Care,Residential Care,"5,750.16",0,"5,750.16",20-Jul-11,ADULT SOCIAL CARE & HEALTH
Nottinghamshire County Council,04-04933,ASH VILLA CARE HOME,Care,Residential Care,"4,026.64",0,"4,026.64",20-Jul-11,ADULT SOCIAL CARE & HEALTH
Nottinghamshire County Council,04-07049,ASH VILLA CARE HOME,Care,Residential Care,"5,752.34",0,"5,752.34",28-Jul-11,ADULT SOCIAL CARE & HEALTH
Nottinghamshire County Council,04-04931,ASH VILLA CARE HOME,Care,Residential Care,"4,478.84",0,"4,478.84",20-Jul-11,ADULT SOCIAL CARE & HEALTH
Nottinghamshire County Council,04-00808,ASHFIELD CITIZENS ADVICE BUREAU,Care,Community And Social Services,"5,134.00",0,"5,134.00",26-Jul-11,COMMUNITIES
Nottinghamshire County Council,04-02436,ASHFIELD COMM RADIO AND MEDIA TRAINING,People,Vocational Training,669,0,669,20-Jul-11,COMMUNITIES
Nottinghamshire County Council,04-02436,ASHFIELD COMM RADIO AND MEDIA TRAINING,People,Vocational Training,-60,0,-60,20-Jul-11,COMMUNITIES
Nottinghamshire County Council,04-02613,ASHFIELD COURT,Care,Residential Care,"5,974.76",0,"5,974.76",20-Jul-11,ADULT SOCIAL CARE & HEALTH
Nottinghamshire County Council,04-02615,ASHFIELD COURT,Care,Residential Care,"5,635.08",0,"5,635.08",20-Jul-11,ADULT SOCIAL CARE & HEALTH
Nottinghamshire County Council,04-02618,ASHFIELD COURT,Care,Residential Care,"4,787.20",0,"4,787.20",20-Jul-11,ADULT SOCIAL CARE & HEALTH
Nottinghamshire County Council,04-02617,ASHFIELD COURT,Care,Residential Care,"6,141.04",0,"6,141.04",20-Jul-11,ADULT SOCIAL CARE & HEALTH
Nottinghamshire County Council,04-02616,ASHFIELD COURT,Care,Residential Care,"6,804.00",0,"6,804.00",20-Jul-11,ADULT SOCIAL CARE & HEALTH
Nottinghamshire County Council,04-02614,ASHFIELD COURT,Care,Residential Care,"6,106.08",0,"6,106.08",20-Jul-11,ADULT SOCIAL CARE & HEALTH
Nottinghamshire County Council,04-02612,ASHFIELD COURT,Care,Residential Care,"7,414.56",0,"7,414.56",20-Jul-11,ADULT SOCIAL CARE & HEALTH
Nottinghamshire County Council,04-02619,ASHFIELD COURT,Care,Residential Care,"5,735.40",0,"5,735.40",20-Jul-11,ADULT SOCIAL CARE & HEALTH
Nottinghamshire County Council,04-02614,ASHFIELD COURT,Care,Residential Care,-259,0,-259,20-Jul-11,ADULT SOCIAL CARE & HEALTH
Nottinghamshire County Council,04-02459,ASHFIELD DISTRICT COUNCIL,Grants And Loans                        ,Grants And Loans                        ,"38,122.04",0,"38,122.04",21-Jul-11,ADULT SOCIAL CARE & HEALTH
Nottinghamshire County Council,04-02459,ASHFIELD DISTRICT COUNCIL,Grants And Loans                        ,Grants And Loans                        ,"23,762.72",0,"23,762.72",21-Jul-11,ADULT SOCIAL CARE & HEALTH
Nottinghamshire County Council,04-07100,ASHFIELD GLAZING,Hard Facilities Management ,Glass And Glazing Services,703,0,703,29-Jul-11,ADULT SOCIAL CARE & HEALTH
Nottinghamshire County Council,04-00938,ASHFIELD PLAY FORUM,Care,Infant Or Child Daycare Services,"3,075.00",0,"3,075.00",08-Jul-11,CHILDREN & YOUNG PEOPLE
Nottinghamshire County Council,04-01454,ASHFIELD TRAVEL,Transport And Travel,Travel Agencies And Booking,"1,756.74",0,"1,756.74",07-Jul-11,CHILDREN & YOUNG PEOPLE
Nottinghamshire County Council,04-00020,ASHFIELD VOLUNTEERING,External Services (Highways And Culture),Organisations And Clubs,"2,250.00",0,"2,250.00",12-Jul-11,COMMUNITIES
Nottinghamshire County Council,04-01874,ASHFIELD VOLUNTEERING,External Services (Highways And Culture),Organisations And Clubs,"-2,250.00",0,"-2,250.00",12-Jul-11,TBC
Nottinghamshire County Council,04-00011,ASHFIELDS CARE HOME,Care,Residential Care,"-1,396.43",0,"-1,396.43",28-Jul-11,ADULT SOCIAL CARE & HEALTH
Nottinghamshire County Council,04-00099,ASHFIELDS CARE HOME,Care,Residential Care,"1,396.43",0,"1,396.43",28-Jul-11,ADULT SOCIAL CARE & HEALTH
Nottinghamshire County Council,04-04352,ASHLANDS RESIDENTIAL CARE HOME,Care,Residential Care,"1,616.00",0,"1,616.00",20-Jul-11,ADULT SOCIAL CARE & HEALTH
Nottinghamshire County Council,04-04524,ASHLANDS RESIDENTIAL CARE HOME,Care,Residential Care,"-2,098.28",0,"-2,098.28",20-Jul-11,ADULT SOCIAL CARE & HEALTH
Nottinghamshire County Council,04-04525,ASHLANDS RESIDENTIAL CARE HOME,Care,Residential Care,"1,632.00",0,"1,632.00",20-Jul-11,ADULT SOCIAL CARE & HEALTH
Nottinghamshire County Council,04-04520,ASHLANDS RESIDENTIAL CARE HOME,Care,Residential Care,"1,800.00",0,"1,800.00",20-Jul-11,ADULT SOCIAL CARE & HEALTH
Nottinghamshire County Council,04-04522,ASHLANDS RESIDENTIAL CARE HOME,Care,Residential Care,"1,800.00",0,"1,800.00",20-Jul-11,ADULT SOCIAL CARE & HEALTH
Nottinghamshire County Council,04-04526,ASHLANDS RESIDENTIAL CARE HOME,Care,Residential Care,"1,800.00",0,"1,800.00",20-Jul-11,ADULT SOCIAL CARE & HEALTH
Nottinghamshire County Council,04-04528,ASHLANDS RESIDENTIAL CARE HOME,Care,Residential Care,"1,800.00",0,"1,800.00",20-Jul-11,ADULT SOCIAL CARE & HEALTH
Nottinghamshire County Council,04-04521,ASHLANDS RESIDENTIAL CARE HOME,Care,Residential Care,"1,632.00",0,"1,632.00",20-Jul-11,ADULT SOCIAL CARE & HEALTH
Nottinghamshire County Council,04-04523,ASHLANDS RESIDENTIAL CARE HOME,Care,Residential Care,"1,632.00",0,"1,632.00",20-Jul-11,ADULT SOCIAL CARE & HEALTH
Nottinghamshire County Council,04-04529,ASHLANDS RESIDENTIAL CARE HOME,Care,Residential Care,"1,800.00",0,"1,800.00",20-Jul-11,ADULT SOCIAL CARE & HEALTH
Nottinghamshire County Council,04-04527,ASHLANDS RESIDENTIAL CARE HOME,Care,Residential Care,"1,800.00",0,"1,800.00",20-Jul-11,ADULT SOCIAL CARE & HEALTH
Nottinghamshire County Council,04-04353,ASHLANDS RESIDENTIAL CARE HOME,Care,Residential Care,"1,543.56",0,"1,543.56",20-Jul-11,ADULT SOCIAL CARE & HEALTH
Nottinghamshire County Council,04-04519,ASHLANDS RESIDENTIAL CARE HOME,Care,Residential Care,"1,800.00",0,"1,800.00",20-Jul-11,ADULT SOCIAL CARE & HEALTH
Nottinghamshire County Council,04-04352,ASHLANDS RESIDENTIAL CARE HOME,Care,Residential Care,80,0,80,20-Jul-11,ADULT SOCIAL CARE & HEALTH
Nottinghamshire County Council,04-04353,ASHLANDS RESIDENTIAL CARE HOME,Care,Residential Care,"1,056.44",0,"1,056.44",20-Jul-11,ADULT SOCIAL CARE & HEALTH
Nottinghamshire County Council,04-04630,ASHLEY COURT CARE HOME,Care,Residential Care,"2,553.76",0,"2,553.76",20-Jul-11,ADULT SOCIAL CARE & HEALTH
Nottinghamshire County Council,04-04630,ASHLEY COURT CARE HOME,Care,Residential Care,-295,0,-295,20-Jul-11,ADULT SOCIAL CARE & HEALTH
Nottinghamshire County Council,04-03577,ASHLEY HOUSE NURSING HOME,Care,Residential Care,"1,672.00",0,"1,672.00",20-Jul-11,ADULT SOCIAL CARE & HEALTH
Nottinghamshire County Council,04-03579,ASHLEY HOUSE NURSING HOME,Care,Residential Care,"1,712.00",0,"1,712.00",20-Jul-11,ADULT SOCIAL CARE & HEALTH
Nottinghamshire County Council,04-01907,ASHLEY HOUSE NURSING HOME,Care,Residential Care,"1,270.29",0,"1,270.29",14-Jul-11,ADULT SOCIAL CARE & HEALTH
Nottinghamshire County Council,04-01908,ASHLEY HOUSE NURSING HOME,Care,Residential Care,"2,540.57",0,"2,540.57",14-Jul-11,ADULT SOCIAL CARE & HEALTH
Nottinghamshire County Council,04-03570,ASHLEY HOUSE NURSING HOME,Care,Residential Care,"1,872.00",0,"1,872.00",20-Jul-11,ADULT SOCIAL CARE & HEALTH
Nottinghamshire County Council,04-03571,ASHLEY HOUSE NURSING HOME,Care,Residential Care,"1,872.00",0,"1,872.00",20-Jul-11,ADULT SOCIAL CARE & HEALTH
Nottinghamshire County Council,04-03572,ASHLEY HOUSE NURSING HOME,Care,Residential Care,"1,872.00",0,"1,872.00",20-Jul-11,ADULT SOCIAL CARE & HEALTH
Nottinghamshire County Council,04-03573,ASHLEY HOUSE NURSING HOME,Care,Residential Care,"1,872.00",0,"1,872.00",20-Jul-11,ADULT SOCIAL CARE & HEALTH
Nottinghamshire County Council,04-03574,ASHLEY HOUSE NURSING HOME,Care,Residential Care,"1,872.00",0,"1,872.00",20-Jul-11,ADULT SOCIAL CARE & HEALTH
Nottinghamshire County Council,04-03575,ASHLEY HOUSE NURSING HOME,Care,Residential Care,"1,872.00",0,"1,872.00",20-Jul-11,ADULT SOCIAL CARE & HEALTH
Nottinghamshire County Council,04-03578,ASHLEY HOUSE NURSING HOME,Care,Residential Care,"1,872.00",0,"1,872.00",20-Jul-11,ADULT SOCIAL CARE & HEALTH
Nottinghamshire County Council,04-03582,ASHLEY HOUSE NURSING HOME,Care,Residential Care,"1,872.00",0,"1,872.00",20-Jul-11,ADULT SOCIAL CARE & HEALTH
Nottinghamshire County Council,04-03583,ASHLEY HOUSE NURSING HOME,Care,Residential Care,"1,872.00",0,"1,872.00",20-Jul-11,ADULT SOCIAL CARE & HEALTH
Nottinghamshire County Council,04-03584,ASHLEY HOUSE NURSING HOME,Care,Residential Care,"1,872.00",0,"1,872.00",20-Jul-11,ADULT SOCIAL CARE & HEALTH
Nottinghamshire County Council,04-03585,ASHLEY HOUSE NURSING HOME,Care,Residential Care,"1,872.00",0,"1,872.00",20-Jul-11,ADULT SOCIAL CARE & HEALTH
Nottinghamshire County Council,04-03586,ASHLEY HOUSE NURSING HOME,Care,Residential Care,"1,872.00",0,"1,872.00",20-Jul-11,ADULT SOCIAL CARE & HEALTH
Nottinghamshire County Council,04-03587,ASHLEY HOUSE NURSING HOME,Care,Residential Care,"1,872.00",0,"1,872.00",20-Jul-11,ADULT SOCIAL CARE & HEALTH
Nottinghamshire County Council,04-03588,ASHLEY HOUSE NURSING HOME,Care,Residential Care,"1,872.00",0,"1,872.00",20-Jul-11,ADULT SOCIAL CARE & HEALTH
Nottinghamshire County Council,04-03589,ASHLEY HOUSE NURSING HOME,Care,Residential Care,"1,872.00",0,"1,872.00",20-Jul-11,ADULT SOCIAL CARE & HEALTH
Nottinghamshire County Council,04-03591,ASHLEY HOUSE NURSING HOME,Care,Residential Care,"1,824.00",0,"1,824.00",20-Jul-11,ADULT SOCIAL CARE & HEALTH
Nottinghamshire County Council,04-03576,ASHLEY HOUSE NURSING HOME,Care,Residential Care,"1,724.00",0,"1,724.00",20-Jul-11,ADULT SOCIAL CARE & HEALTH
Nottinghamshire County Council,04-03576,ASHLEY HOUSE NURSING HOME,Care,Residential Care,-463.88,0,-463.88,20-Jul-11,ADULT SOCIAL CARE & HEALTH
Nottinghamshire County Council,04-03583,ASHLEY HOUSE NURSING HOME,Care,Residential Care,-480.76,0,-480.76,20-Jul-11,ADULT SOCIAL CARE & HEALTH
Nottinghamshire County Council,04-01907,ASHLEY HOUSE NURSING HOME,Care,Residential Care,40.71,0,40.71,14-Jul-11,ADULT SOCIAL CARE & HEALTH
Nottinghamshire County Council,04-01908,ASHLEY HOUSE NURSING HOME,Care,Residential Care,81.43,0,81.43,14-Jul-11,ADULT SOCIAL CARE & HEALTH
Nottinghamshire County Council,04-03573,ASHLEY HOUSE NURSING HOME,Care,Residential Care,60,0,60,20-Jul-11,ADULT SOCIAL CARE & HEALTH
Nottinghamshire County Council,04-03582,ASHLEY HOUSE NURSING HOME,Care,Residential Care,60,0,60,20-Jul-11,ADULT SOCIAL CARE & HEALTH
Nottinghamshire County Council,04-03584,ASHLEY HOUSE NURSING HOME,Care,Residential Care,21.43,0,21.43,20-Jul-11,ADULT SOCIAL CARE & HEALTH
Nottinghamshire County Council,04-03585,ASHLEY HOUSE NURSING HOME,Care,Residential Care,60,0,60,20-Jul-11,ADULT SOCIAL CARE & HEALTH
Nottinghamshire County Council,04-03586,ASHLEY HOUSE NURSING HOME,Care,Residential Care,60,0,60,20-Jul-11,ADULT SOCIAL CARE & HEALTH
Nottinghamshire County Council,04-03591,ASHLEY HOUSE NURSING HOME,Care,Residential Care,60,0,60,20-Jul-11,ADULT SOCIAL CARE & HEALTH
Nottinghamshire County Council,04-01092,ASHLEY HOUSE NURSING HOME,Care,Residential Care,"1,785.79",0,"1,785.79",07-Jul-11,ADULT SOCIAL CARE & HEALTH
Nottinghamshire County Council,04-01093,ASHLEY HOUSE NURSING HOME,Care,Residential Care,745.37,0,745.37,07-Jul-11,ADULT SOCIAL CARE & HEALTH
Nottinghamshire County Council,04-01094,ASHLEY HOUSE NURSING HOME,Care,Residential Care,"1,956.60",0,"1,956.60",07-Jul-11,ADULT SOCIAL CARE & HEALTH
Nottinghamshire County Council,04-01907,ASHLEY HOUSE NURSING HOME,Care,Residential Care,295.04,0,295.04,14-Jul-11,ADULT SOCIAL CARE & HEALTH
Nottinghamshire County Council,04-01908,ASHLEY HOUSE NURSING HOME,Care,Residential Care,590.09,0,590.09,14-Jul-11,ADULT SOCIAL CARE & HEALTH
Nottinghamshire County Council,04-03570,ASHLEY HOUSE NURSING HOME,Care,Residential Care,434.8,0,434.8,20-Jul-11,ADULT SOCIAL CARE & HEALTH
Nottinghamshire County Council,04-03571,ASHLEY HOUSE NURSING HOME,Care,Residential Care,434.8,0,434.8,20-Jul-11,ADULT SOCIAL CARE & HEALTH
Nottinghamshire County Council,04-03572,ASHLEY HOUSE NURSING HOME,Care,Residential Care,434.8,0,434.8,20-Jul-11,ADULT SOCIAL CARE & HEALTH
Nottinghamshire County Council,04-03573,ASHLEY HOUSE NURSING HOME,Care,Residential Care,434.8,0,434.8,20-Jul-11,ADULT SOCIAL CARE & HEALTH
Nottinghamshire County Council,04-03574,ASHLEY HOUSE NURSING HOME,Care,Residential Care,434.8,0,434.8,20-Jul-11,ADULT SOCIAL CARE & HEALTH
Nottinghamshire County Council,04-03575,ASHLEY HOUSE NURSING HOME,Care,Residential Care,434.8,0,434.8,20-Jul-11,ADULT SOCIAL CARE & HEALTH
Nottinghamshire County Council,04-03576,ASHLEY HOUSE NURSING HOME,Care,Residential Care,598.4,0,598.4,20-Jul-11,ADULT SOCIAL CARE & HEALTH
Nottinghamshire County Council,04-03577,ASHLEY HOUSE NURSING HOME,Care,Residential Care,434.8,0,434.8,20-Jul-11,ADULT SOCIAL CARE & HEALTH
Nottinghamshire County Council,04-03578,ASHLEY HOUSE NURSING HOME,Care,Residential Care,434.8,0,434.8,20-Jul-11,ADULT SOCIAL CARE & HEALTH
Nottinghamshire County Council,04-03580,ASHLEY HOUSE NURSING HOME,Care,Residential Care,598.4,0,598.4,20-Jul-11,ADULT SOCIAL CARE & HEALTH
Nottinghamshire County Council,04-03581,ASHLEY HOUSE NURSING HOME,Care,Residential Care,598.4,0,598.4,20-Jul-11,ADULT SOCIAL CARE & HEALTH
Nottinghamshire County Council,04-03582,ASHLEY HOUSE NURSING HOME,Care,Residential Care,434.8,0,434.8,20-Jul-11,ADULT SOCIAL CARE & HEALTH
Nottinghamshire County Council,04-03583,ASHLEY HOUSE NURSING HOME,Care,Residential Care,434.8,0,434.8,20-Jul-11,ADULT SOCIAL CARE & HEALTH
Nottinghamshire County Council,04-03584,ASHLEY HOUSE NURSING HOME,Care,Residential Care,434.8,0,434.8,20-Jul-11,ADULT SOCIAL CARE & HEALTH
Nottinghamshire County Council,04-03585,ASHLEY HOUSE NURSING HOME,Care,Residential Care,434.8,0,434.8,20-Jul-11,ADULT SOCIAL CARE & HEALTH
Nottinghamshire County Council,04-03586,ASHLEY HOUSE NURSING HOME,Care,Residential Care,434.8,0,434.8,20-Jul-11,ADULT SOCIAL CARE & HEALTH
Nottinghamshire County Council,04-03587,ASHLEY HOUSE NURSING HOME,Care,Residential Care,434.8,0,434.8,20-Jul-11,ADULT SOCIAL CARE & HEALTH
Nottinghamshire County Council,04-03588,ASHLEY HOUSE NURSING HOME,Care,Residential Care,434.8,0,434.8,20-Jul-11,ADULT SOCIAL CARE & HEALTH
Nottinghamshire County Council,04-03589,ASHLEY HOUSE NURSING HOME,Care,Residential Care,434.8,0,434.8,20-Jul-11,ADULT SOCIAL CARE & HEALTH
Nottinghamshire County Council,04-03590,ASHLEY HOUSE NURSING HOME,Care,Residential Care,598.4,0,598.4,20-Jul-11,ADULT SOCIAL CARE & HEALTH
Nottinghamshire County Council,04-03591,ASHLEY HOUSE NURSING HOME,Care,Residential Care,434.8,0,434.8,20-Jul-11,ADULT SOCIAL CARE & HEALTH
Nottinghamshire County Council,04-03400,ASHMERE CARE HOMES,Care,Residential Care,"1,816.00",0,"1,816.00",20-Jul-11,ADULT SOCIAL CARE & HEALTH
Nottinghamshire County Council,04-03402,ASHMERE CARE HOMES,Care,Residential Care,"1,816.00",0,"1,816.00",20-Jul-11,ADULT SOCIAL CARE & HEALTH
Nottinghamshire County Council,04-03403,ASHMERE CARE HOMES,Care,Residential Care,"-2,594.28",0,"-2,594.28",20-Jul-11,ADULT SOCIAL CARE & HEALTH
Nottinghamshire County Council,04-03404,ASHMERE CARE HOMES,Care,Residential Care,"1,816.00",0,"1,816.00",20-Jul-11,ADULT SOCIAL CARE & HEALTH
Nottinghamshire County Council,04-03405,ASHMERE CARE HOMES,Care,Residential Care,"1,816.00",0,"1,816.00",20-Jul-11,ADULT SOCIAL CARE & HEALTH
Nottinghamshire County Council,04-03407,ASHMERE CARE HOMES,Care,Residential Care,"1,816.00",0,"1,816.00",20-Jul-11,ADULT SOCIAL CARE & HEALTH
Nottinghamshire County Council,04-03408,ASHMERE CARE HOMES,Care,Residential Care,"1,816.00",0,"1,816.00",20-Jul-11,ADULT SOCIAL CARE & HEALTH
Nottinghamshire County Council,04-03410,ASHMERE CARE HOMES,Care,Residential Care,"1,816.00",0,"1,816.00",20-Jul-11,ADULT SOCIAL CARE & HEALTH
Nottinghamshire County Council,04-03411,ASHMERE CARE HOMES,Care,Residential Care,"1,816.00",0,"1,816.00",20-Jul-11,ADULT SOCIAL CARE & HEALTH
Nottinghamshire County Council,04-03412,ASHMERE CARE HOMES,Care,Residential Care,"-1,232.29",0,"-1,232.29",20-Jul-11,ADULT SOCIAL CARE & HEALTH
Nottinghamshire County Council,04-03413,ASHMERE CARE HOMES,Care,Residential Care,"1,816.00",0,"1,816.00",20-Jul-11,ADULT SOCIAL CARE & HEALTH
Nottinghamshire County Council,04-03414,ASHMERE CARE HOMES,Care,Residential Care,"1,816.00",0,"1,816.00",20-Jul-11,ADULT SOCIAL CARE & HEALTH
Nottinghamshire County Council,04-03415,ASHMERE CARE HOMES,Care,Residential Care,"1,816.00",0,"1,816.00",20-Jul-11,ADULT SOCIAL CARE & HEALTH
Nottinghamshire County Council,04-03417,ASHMERE CARE HOMES,Care,Residential Care,"1,816.00",0,"1,816.00",20-Jul-11,ADULT SOCIAL CARE & HEALTH
Nottinghamshire County Council,04-03418,ASHMERE CARE HOMES,Care,Residential Care,"1,816.00",0,"1,816.00",20-Jul-11,ADULT SOCIAL CARE & HEALTH
Nottinghamshire County Council,04-04100,ASHMERE CARE HOMES,Care,Residential Care,"1,816.00",0,"1,816.00",20-Jul-11,ADULT SOCIAL CARE & HEALTH
Nottinghamshire County Council,04-04101,ASHMERE CARE HOMES,Care,Residential Care,"1,816.00",0,"1,816.00",20-Jul-11,ADULT SOCIAL CARE & HEALTH
Nottinghamshire County Council,04-04103,ASHMERE CARE HOMES,Care,Residential Care,"1,816.00",0,"1,816.00",20-Jul-11,ADULT SOCIAL CARE & HEALTH
Nottinghamshire County Council,04-04110,ASHMERE CARE HOMES,Care,Residential Care,"1,816.00",0,"1,816.00",20-Jul-11,ADULT SOCIAL CARE & HEALTH
Nottinghamshire County Council,04-04111,ASHMERE CARE HOMES,Care,Residential Care,"1,816.00",0,"1,816.00",20-Jul-11,ADULT SOCIAL CARE & HEALTH
Nottinghamshire County Council,04-04113,ASHMERE CARE HOMES,Care,Residential Care,"1,816.00",0,"1,816.00",20-Jul-11,ADULT SOCIAL CARE & HEALTH
Nottinghamshire County Council,04-04118,ASHMERE CARE HOMES,Care,Residential Care,"1,816.00",0,"1,816.00",20-Jul-11,ADULT SOCIAL CARE & HEALTH
Nottinghamshire County Council,04-04120,ASHMERE CARE HOMES,Care,Residential Care,"1,816.00",0,"1,816.00",20-Jul-11,ADULT SOCIAL CARE & HEALTH
Nottinghamshire County Council,04-04121,ASHMERE CARE HOMES,Care,Residential Care,"1,816.00",0,"1,816.00",20-Jul-11,ADULT SOCIAL CARE & HEALTH
Nottinghamshire County Council,04-04122,ASHMERE CARE HOMES,Care,Residential Care,"1,816.00",0,"1,816.00",20-Jul-11,ADULT SOCIAL CARE & HEALTH
Nottinghamshire County Council,04-04125,ASHMERE CARE HOMES,Care,Residential Care,"1,816.00",0,"1,816.00",20-Jul-11,ADULT SOCIAL CARE & HEALTH
Nottinghamshire County Council,04-04129,ASHMERE CARE HOMES,Care,Residential Care,"1,816.00",0,"1,816.00",20-Jul-11,ADULT SOCIAL CARE & HEALTH
Nottinghamshire County Council,04-04105,ASHMERE CARE HOMES,Care,Residential Care,"1,980.00",0,"1,980.00",20-Jul-11,ADULT SOCIAL CARE & HEALTH
Nottinghamshire County Council,04-04107,ASHMERE CARE HOMES,Care,Residential Care,"1,980.00",0,"1,980.00",20-Jul-11,ADULT SOCIAL CARE & HEALTH
Nottinghamshire County Council,04-04108,ASHMERE CARE HOMES,Care,Residential Care,"1,980.00",0,"1,980.00",20-Jul-11,ADULT SOCIAL CARE & HEALTH
Nottinghamshire County Council,04-04109,ASHMERE CARE HOMES,Care,Residential Care,"1,980.00",0,"1,980.00",20-Jul-11,ADULT SOCIAL CARE & HEALTH
Nottinghamshire County Council,04-04112,ASHMERE CARE HOMES,Care,Residential Care,"1,980.00",0,"1,980.00",20-Jul-11,ADULT SOCIAL CARE & HEALTH
Nottinghamshire County Council,04-04114,ASHMERE CARE HOMES,Care,Residential Care,"1,980.00",0,"1,980.00",20-Jul-11,ADULT SOCIAL CARE & HEALTH
Nottinghamshire County Council,04-04115,ASHMERE CARE HOMES,Care,Residential Care,"1,980.00",0,"1,980.00",20-Jul-11,ADULT SOCIAL CARE & HEALTH
Nottinghamshire County Council,04-04116,ASHMERE CARE HOMES,Care,Residential Care,"1,980.00",0,"1,980.00",20-Jul-11,ADULT SOCIAL CARE & HEALTH
Nottinghamshire County Council,04-04119,ASHMERE CARE HOMES,Care,Residential Care,"1,980.00",0,"1,980.00",20-Jul-11,ADULT SOCIAL CARE & HEALTH
Nottinghamshire County Council,04-04124,ASHMERE CARE HOMES,Care,Residential Care,"1,980.00",0,"1,980.00",20-Jul-11,ADULT SOCIAL CARE & HEALTH
Nottinghamshire County Council,04-04126,ASHMERE CARE HOMES,Care,Residential Care,"1,980.00",0,"1,980.00",20-Jul-11,ADULT SOCIAL CARE & HEALTH
Nottinghamshire County Council,04-04127,ASHMERE CARE HOMES,Care,Residential Care,"1,980.00",0,"1,980.00",20-Jul-11,ADULT SOCIAL CARE & HEALTH
Nottinghamshire County Council,04-04128,ASHMERE CARE HOMES,Care,Residential Care,"1,980.00",0,"1,980.00",20-Jul-11,ADULT SOCIAL CARE & HEALTH
Nottinghamshire County Council,04-06874,ASHMERE CARE HOMES,Care,Residential Care,"12,223.00",0,"12,223.00",28-Jul-11,ADULT SOCIAL CARE & HEALTH
Nottinghamshire County Council,04-04102,ASHMERE CARE HOMES,Care,Residential Care,"2,060.00",0,"2,060.00",20-Jul-11,ADULT SOCIAL CARE & HEALTH
Nottinghamshire County Council,04-03399,ASHMERE CARE HOMES,Care,Residential Care,"1,816.00",0,"1,816.00",20-Jul-11,ADULT SOCIAL CARE & HEALTH
Nottinghamshire County Council,04-03401,ASHMERE CARE HOMES,Care,Residential Care,"1,816.00",0,"1,816.00",20-Jul-11,ADULT SOCIAL CARE & HEALTH
Nottinghamshire County Council,04-03406,ASHMERE CARE HOMES,Care,Residential Care,"1,756.00",0,"1,756.00",20-Jul-11,ADULT SOCIAL CARE & HEALTH
Nottinghamshire County Council,04-03409,ASHMERE CARE HOMES,Care,Residential Care,"1,816.00",0,"1,816.00",20-Jul-11,ADULT SOCIAL CARE & HEALTH
Nottinghamshire County Council,04-03416,ASHMERE CARE HOMES,Care,Residential Care,"1,816.00",0,"1,816.00",20-Jul-11,ADULT SOCIAL CARE & HEALTH
Nottinghamshire County Council,04-04104,ASHMERE CARE HOMES,Care,Residential Care,"1,816.00",0,"1,816.00",20-Jul-11,ADULT SOCIAL CARE & HEALTH
Nottinghamshire County Council,04-04117,ASHMERE CARE HOMES,Care,Residential Care,"1,980.00",0,"1,980.00",20-Jul-11,ADULT SOCIAL CARE & HEALTH
Nottinghamshire County Council,04-04123,ASHMERE CARE HOMES,Care,Residential Care,"1,980.00",0,"1,980.00",20-Jul-11,ADULT SOCIAL CARE & HEALTH
Nottinghamshire County Council,04-04106,ASHMERE CARE HOMES,Care,Residential Care,"1,980.00",0,"1,980.00",20-Jul-11,ADULT SOCIAL CARE & HEALTH
Nottinghamshire County Council,04-03401,ASHMERE CARE HOMES,Care,Residential Care,60,0,60,20-Jul-11,ADULT SOCIAL CARE & HEALTH
Nottinghamshire County Council,04-03402,ASHMERE CARE HOMES,Care,Residential Care,80,0,80,20-Jul-11,ADULT SOCIAL CARE & HEALTH
Nottinghamshire County Council,04-03403,ASHMERE CARE HOMES,Care,Residential Care,-114.29,0,-114.29,20-Jul-11,ADULT SOCIAL CARE & HEALTH
Nottinghamshire County Council,04-03407,ASHMERE CARE HOMES,Care,Residential Care,40,0,40,20-Jul-11,ADULT SOCIAL CARE & HEALTH
Nottinghamshire County Council,04-03408,ASHMERE CARE HOMES,Care,Residential Care,60,0,60,20-Jul-11,ADULT SOCIAL CARE & HEALTH
Nottinghamshire County Council,04-03409,ASHMERE CARE HOMES,Care,Residential Care,92,0,92,20-Jul-11,ADULT SOCIAL CARE & HEALTH
Nottinghamshire County Council,04-03414,ASHMERE CARE HOMES,Care,Residential Care,40,0,40,20-Jul-11,ADULT SOCIAL CARE & HEALTH
Nottinghamshire County Council,04-03418,ASHMERE CARE HOMES,Care,Residential Care,100,0,100,20-Jul-11,ADULT SOCIAL CARE & HEALTH
Nottinghamshire County Council,04-04109,ASHMERE CARE HOMES,Care,Residential Care,84,0,84,20-Jul-11,ADULT SOCIAL CARE & HEALTH
Nottinghamshire County Council,04-04116,ASHMERE CARE HOMES,Care,Residential Care,20,0,20,20-Jul-11,ADULT SOCIAL CARE & HEALTH
Nottinghamshire County Council,04-04125,ASHMERE CARE HOMES,Care,Residential Care,40,0,40,20-Jul-11,ADULT SOCIAL CARE & HEALTH
Nottinghamshire County Council,04-01679,ASHTEAD PLANT HIRE CO LIMITED,External Services (Highways And Culture),Construction Plant And Equipment,593,118.6,711.6,12-Jul-11,COMMUNITIES
Nottinghamshire County Council,04-05728,ASHTEAD PLANT HIRE CO LIMITED,External Services (Highways And Culture),Construction Plant And Equipment,425.23,85.05,510.28,20-Jul-11,COMMUNITIES
Nottinghamshire County Council,04-04730,ASHTON COURT CARE HOME,Care,Residential Care,"1,800.00",0,"1,800.00",20-Jul-11,ADULT SOCIAL CARE & HEALTH
Nottinghamshire County Council,04-04718,ASHTON COURT CARE HOME,Care,Residential Care,816,0,816,20-Jul-11,ADULT SOCIAL CARE & HEALTH
Nottinghamshire County Council,04-04720,ASHTON COURT CARE HOME,Care,Residential Care,"1,632.00",0,"1,632.00",20-Jul-11,ADULT SOCIAL CARE & HEALTH
Nottinghamshire County Council,04-04721,ASHTON COURT CARE HOME,Care,Residential Care,"1,632.00",0,"1,632.00",20-Jul-11,ADULT SOCIAL CARE & HEALTH
Nottinghamshire County Council,04-04722,ASHTON COURT CARE HOME,Care,Residential Care,"1,632.00",0,"1,632.00",20-Jul-11,ADULT SOCIAL CARE & HEALTH
Nottinghamshire County Council,04-04723,ASHTON COURT CARE HOME,Care,Residential Care,"1,632.00",0,"1,632.00",20-Jul-11,ADULT SOCIAL CARE & HEALTH
Nottinghamshire County Council,04-04724,ASHTON COURT CARE HOME,Care,Residential Care,"1,632.00",0,"1,632.00",20-Jul-11,ADULT SOCIAL CARE & HEALTH
Nottinghamshire County Council,04-04725,ASHTON COURT CARE HOME,Care,Residential Care,"1,632.00",0,"1,632.00",20-Jul-11,ADULT SOCIAL CARE & HEALTH
Nottinghamshire County Council,04-04727,ASHTON COURT CARE HOME,Care,Residential Care,"1,600.00",0,"1,600.00",20-Jul-11,ADULT SOCIAL CARE & HEALTH
Nottinghamshire County Council,04-04731,ASHTON COURT CARE HOME,Care,Residential Care,"1,632.00",0,"1,632.00",20-Jul-11,ADULT SOCIAL CARE & HEALTH
Nottinghamshire County Council,04-04734,ASHTON COURT CARE HOME,Care,Residential Care,"1,632.00",0,"1,632.00",20-Jul-11,ADULT SOCIAL CARE & HEALTH
Nottinghamshire County Council,04-04736,ASHTON COURT CARE HOME,Care,Residential Care,"1,632.00",0,"1,632.00",20-Jul-11,ADULT SOCIAL CARE & HEALTH
Nottinghamshire County Council,04-04719,ASHTON COURT CARE HOME,Care,Residential Care,"1,800.00",0,"1,800.00",20-Jul-11,ADULT SOCIAL CARE & HEALTH
Nottinghamshire County Council,04-04726,ASHTON COURT CARE HOME,Care,Residential Care,"1,800.00",0,"1,800.00",20-Jul-11,ADULT SOCIAL CARE & HEALTH
Nottinghamshire County Council,04-04728,ASHTON COURT CARE HOME,Care,Residential Care,"1,800.00",0,"1,800.00",20-Jul-11,ADULT SOCIAL CARE & HEALTH
Nottinghamshire County Council,04-04732,ASHTON COURT CARE HOME,Care,Residential Care,"1,800.00",0,"1,800.00",20-Jul-11,ADULT SOCIAL CARE & HEALTH
Nottinghamshire County Council,04-04733,ASHTON COURT CARE HOME,Care,Residential Care,"1,800.00",0,"1,800.00",20-Jul-11,ADULT SOCIAL CARE & HEALTH
Nottinghamshire County Council,04-04735,ASHTON COURT CARE HOME,Care,Residential Care,"1,800.00",0,"1,800.00",20-Jul-11,ADULT SOCIAL CARE & HEALTH
Nottinghamshire County Council,04-04729,ASHTON COURT CARE HOME,Care,Residential Care,"1,632.00",0,"1,632.00",20-Jul-11,ADULT SOCIAL CARE & HEALTH
Nottinghamshire County Council,04-04729,ASHTON COURT CARE HOME,Care,Residential Care,80,0,80,20-Jul-11,ADULT SOCIAL CARE & HEALTH
Nottinghamshire County Council,04-00586,ASHWELL MAINTENANCE LIMITED,Hard Facilities Management ,Structural Steel Erection Services,"1,061.21",212.24,"1,273.45",12-Jul-11,TBC
Nottinghamshire County Council,04-01217,ASHWELL MAINTENANCE LIMITED,Hard Facilities Management ,Structural Steel Erection Services,"2,070.98",414.2,"2,485.18",06-Jul-11,CHILDREN & YOUNG PEOPLE
Nottinghamshire County Council,04-00400,ASKEWS LIBRARY SERVICES LIMITED,ICT,"Printing And Publishing, Equipment And Supplies","6,972.16",0,"6,972.16",05-Jul-11,COMMUNITIES
Nottinghamshire County Council,04-00402,ASKEWS LIBRARY SERVICES LIMITED,ICT,"Printing And Publishing, Equipment And Supplies","6,015.99",0,"6,015.99",12-Jul-11,COMMUNITIES
Nottinghamshire County Council,04-00685,ASKEWS LIBRARY SERVICES LIMITED,ICT,"Printing And Publishing, Equipment And Supplies","10,135.94",0,"10,135.94",19-Jul-11,COMMUNITIES
Nottinghamshire County Council,04-01485,ASKEWS LIBRARY SERVICES LIMITED,ICT,"Printing And Publishing, Equipment And Supplies","19,154.02",0,"19,154.02",26-Jul-11,COMMUNITIES
Nottinghamshire County Council,04-01485,ASKEWS LIBRARY SERVICES LIMITED,ICT,"Printing And Publishing, Equipment And Supplies",171.65,34.33,205.98,26-Jul-11,COMMUNITIES
Nottinghamshire County Council,04-00401,ASKEWS LIBRARY SERVICES LIMITED,ICT,"Printing And Publishing, Equipment And Supplies","1,707.96",0,"1,707.96",05-Jul-11,COMMUNITIES
Nottinghamshire County Council,04-00403,ASKEWS LIBRARY SERVICES LIMITED,ICT,"Printing And Publishing, Equipment And Supplies","1,111.00",0,"1,111.00",12-Jul-11,COMMUNITIES
Nottinghamshire County Council,04-00686,ASKEWS LIBRARY SERVICES LIMITED,ICT,"Printing And Publishing, Equipment And Supplies","3,354.05",0,"3,354.05",19-Jul-11,COMMUNITIES
Nottinghamshire County Council,04-01486,ASKEWS LIBRARY SERVICES LIMITED,ICT,"Printing And Publishing, Equipment And Supplies","3,837.47",0,"3,837.47",26-Jul-11,COMMUNITIES
Nottinghamshire County Council,04-01486,ASKEWS LIBRARY SERVICES LIMITED,ICT,"Printing And Publishing, Equipment And Supplies",0.07,0.01,0.08,26-Jul-11,COMMUNITIES
Nottinghamshire County Council,04-01485,ASKEWS LIBRARY SERVICES LIMITED,ICT,"Printing And Publishing, Equipment And Supplies",0,-0.01,-0.01,26-Jul-11,RESOURCES
Nottinghamshire County Council,04-03592,ASLOCKTON HALL CARE HOME,Care,Residential Care,"1,816.00",0,"1,816.00",20-Jul-11,ADULT SOCIAL CARE & HEALTH
Nottinghamshire County Council,04-03593,ASLOCKTON HALL CARE HOME,Care,Residential Care,"2,084.00",0,"2,084.00",20-Jul-11,ADULT SOCIAL CARE & HEALTH
Nottinghamshire County Council,04-03594,ASLOCKTON HALL CARE HOME,Care,Residential Care,"1,816.00",0,"1,816.00",20-Jul-11,ADULT SOCIAL CARE & HEALTH
Nottinghamshire County Council,04-03597,ASLOCKTON HALL CARE HOME,Care,Residential Care,"1,816.00",0,"1,816.00",20-Jul-11,ADULT SOCIAL CARE & HEALTH
Nottinghamshire County Council,04-03598,ASLOCKTON HALL CARE HOME,Care,Residential Care,"1,829.00",0,"1,829.00",20-Jul-11,ADULT SOCIAL CARE & HEALTH
Nottinghamshire County Council,04-03599,ASLOCKTON HALL CARE HOME,Care,Residential Care,"1,816.00",0,"1,816.00",20-Jul-11,ADULT SOCIAL CARE & HEALTH
Nottinghamshire County Council,04-03601,ASLOCKTON HALL CARE HOME,Care,Residential Care,"1,816.00",0,"1,816.00",20-Jul-11,ADULT SOCIAL CARE & HEALTH
Nottinghamshire County Council,04-03595,ASLOCKTON HALL CARE HOME,Care,Residential Care,"1,992.00",0,"1,992.00",20-Jul-11,ADULT SOCIAL CARE & HEALTH
Nottinghamshire County Council,04-03596,ASLOCKTON HALL CARE HOME,Care,Residential Care,"2,244.00",0,"2,244.00",20-Jul-11,ADULT SOCIAL CARE & HEALTH
Nottinghamshire County Council,04-03592,ASLOCKTON HALL CARE HOME,Care,Residential Care,76,0,76,20-Jul-11,ADULT SOCIAL CARE & HEALTH
Nottinghamshire County Council,04-03594,ASLOCKTON HALL CARE HOME,Care,Residential Care,544,0,544,20-Jul-11,ADULT SOCIAL CARE & HEALTH
Nottinghamshire County Council,04-03595,ASLOCKTON HALL CARE HOME,Care,Residential Care,281.2,0,281.2,20-Jul-11,ADULT SOCIAL CARE & HEALTH
Nottinghamshire County Council,04-03597,ASLOCKTON HALL CARE HOME,Care,Residential Care,664,0,664,20-Jul-11,ADULT SOCIAL CARE & HEALTH
Nottinghamshire County Council,04-03598,ASLOCKTON HALL CARE HOME,Care,Residential Care,344,0,344,20-Jul-11,ADULT SOCIAL CARE & HEALTH
Nottinghamshire County Council,04-03599,ASLOCKTON HALL CARE HOME,Care,Residential Care,124,0,124,20-Jul-11,ADULT SOCIAL CARE & HEALTH
Nottinghamshire County Council,04-03601,ASLOCKTON HALL CARE HOME,Care,Residential Care,268,0,268,20-Jul-11,ADULT SOCIAL CARE & HEALTH
Nottinghamshire County Council,04-03595,ASLOCKTON HALL CARE HOME,Care,Residential Care,434.8,0,434.8,20-Jul-11,ADULT SOCIAL CARE & HEALTH
Nottinghamshire County Council,04-03596,ASLOCKTON HALL CARE HOME,Care,Residential Care,434.8,0,434.8,20-Jul-11,ADULT SOCIAL CARE & HEALTH
Nottinghamshire County Council,04-03600,ASLOCKTON HALL CARE HOME,Care,Residential Care,598.4,0,598.4,20-Jul-11,ADULT SOCIAL CARE & HEALTH
Nottinghamshire County Council,04-01924,ASPLEY NEURODISABILITY CENTRE,Care,Residential Care,"1,300.00",0,"1,300.00",14-Jul-11,ADULT SOCIAL CARE & HEALTH
Nottinghamshire County Council,04-04426,ASPLEY NEURODISABILITY CENTRE,Care,Residential Care,"3,640.00",0,"3,640.00",20-Jul-11,ADULT SOCIAL CARE & HEALTH
Nottinghamshire County Council,04-04421,ASPLEY NEURODISABILITY CENTRE,Care,Residential Care,"1,643.68",0,"1,643.68",20-Jul-11,ADULT SOCIAL CARE & HEALTH
Nottinghamshire County Council,04-04422,ASPLEY NEURODISABILITY CENTRE,Care,Residential Care,"3,640.00",0,"3,640.00",20-Jul-11,ADULT SOCIAL CARE & HEALTH
Nottinghamshire County Council,04-04425,ASPLEY NEURODISABILITY CENTRE,Care,Residential Care,"3,640.00",0,"3,640.00",20-Jul-11,ADULT SOCIAL CARE & HEALTH
Nottinghamshire County Council,04-04424,ASPLEY NEURODISABILITY CENTRE,Care,Residential Care,"3,640.00",0,"3,640.00",20-Jul-11,ADULT SOCIAL CARE & HEALTH
Nottinghamshire County Council,04-04427,ASPLEY NEURODISABILITY CENTRE,Care,Residential Care,"1,970.64",0,"1,970.64",20-Jul-11,ADULT SOCIAL CARE & HEALTH
Nottinghamshire County Council,04-04423,ASPLEY NEURODISABILITY CENTRE,Care,Residential Care,"1,858.40",0,"1,858.40",20-Jul-11,ADULT SOCIAL CARE & HEALTH
Nottinghamshire County Council,04-04422,ASPLEY NEURODISABILITY CENTRE,Care,Residential Care,434.8,0,434.8,20-Jul-11,ADULT SOCIAL CARE & HEALTH
Nottinghamshire County Council,04-04423,ASPLEY NEURODISABILITY CENTRE,Care,Residential Care,434.8,0,434.8,20-Jul-11,ADULT SOCIAL CARE & HEALTH
Nottinghamshire County Council,04-04425,ASPLEY NEURODISABILITY CENTRE,Care,Residential Care,434.8,0,434.8,20-Jul-11,ADULT SOCIAL CARE & HEALTH
Nottinghamshire County Council,04-04427,ASPLEY NEURODISABILITY CENTRE,Care,Residential Care,434.8,0,434.8,20-Jul-11,ADULT SOCIAL CARE & HEALTH
Nottinghamshire County Council,04-02433,ASSETCO RENTALS NO 2 LIMITED,Transport And Travel,Motor Vehicles,492.23,73.83,566.06,15-Jul-11,RESOURCES
Nottinghamshire County Council,04-00378,AT YOUR SERVICE (CARE) LIMITED,Care,Domiciliary Care,843.5,0,843.5,13-Jul-11,CHILDREN & YOUNG PEOPLE
Nottinghamshire County Council,04-00757,AT YOUR SERVICE (CARE) LIMITED,Care,Domiciliary Care,"2,543.74",0,"2,543.74",04-Jul-11,ADULT SOCIAL CARE & HEALTH
Nottinghamshire County Council,04-01616,AT YOUR SERVICE (CARE) LIMITED,Care,Domiciliary Care,"1,789.07",0,"1,789.07",11-Jul-11,ADULT SOCIAL CARE & HEALTH
Nottinghamshire County Council,04-02322,AT YOUR SERVICE (CARE) LIMITED,Care,Domiciliary Care,"1,511.11",0,"1,511.11",18-Jul-11,ADULT SOCIAL CARE & HEALTH
Nottinghamshire County Council,04-06528,AT YOUR SERVICE (CARE) LIMITED,Care,Domiciliary Care,"1,744.06",0,"1,744.06",25-Jul-11,ADULT SOCIAL CARE & HEALTH
Nottinghamshire County Council,04-00757,AT YOUR SERVICE (CARE) LIMITED,Care,Domiciliary Care,"12,794.20",0,"12,794.20",04-Jul-11,ADULT SOCIAL CARE & HEALTH
Nottinghamshire County Council,04-00757,AT YOUR SERVICE (CARE) LIMITED,Care,Domiciliary Care,"1,973.19",0,"1,973.19",04-Jul-11,ADULT SOCIAL CARE & HEALTH
Nottinghamshire County Council,04-01616,AT YOUR SERVICE (CARE) LIMITED,Care,Domiciliary Care,"12,761.96",0,"12,761.96",11-Jul-11,ADULT SOCIAL CARE & HEALTH
Nottinghamshire County Council,04-01616,AT YOUR SERVICE (CARE) LIMITED,Care,Domiciliary Care,"1,959.52",0,"1,959.52",11-Jul-11,ADULT SOCIAL CARE & HEALTH
Nottinghamshire County Council,04-02322,AT YOUR SERVICE (CARE) LIMITED,Care,Domiciliary Care,"12,842.30",0,"12,842.30",18-Jul-11,ADULT SOCIAL CARE & HEALTH
Nottinghamshire County Council,04-02322,AT YOUR SERVICE (CARE) LIMITED,Care,Domiciliary Care,"2,531.80",0,"2,531.80",18-Jul-11,ADULT SOCIAL CARE & HEALTH
Nottinghamshire County Council,04-06528,AT YOUR SERVICE (CARE) LIMITED,Care,Domiciliary Care,"12,491.91",0,"12,491.91",25-Jul-11,ADULT SOCIAL CARE & HEALTH
Nottinghamshire County Council,04-06528,AT YOUR SERVICE (CARE) LIMITED,Care,Domiciliary Care,"2,928.45",0,"2,928.45",25-Jul-11,ADULT SOCIAL CARE & HEALTH
Nottinghamshire County Council,04-00757,AT YOUR SERVICE (CARE) LIMITED,Care,Domiciliary Care,"1,660.51",0,"1,660.51",04-Jul-11,ADULT SOCIAL CARE & HEALTH
Nottinghamshire County Council,04-00757,AT YOUR SERVICE (CARE) LIMITED,Care,Domiciliary Care,249.94,0,249.94,04-Jul-11,ADULT SOCIAL CARE & HEALTH
Nottinghamshire County Council,04-01616,AT YOUR SERVICE (CARE) LIMITED,Care,Domiciliary Care,"1,362.51",0,"1,362.51",11-Jul-11,ADULT SOCIAL CARE & HEALTH
Nottinghamshire County Council,04-01616,AT YOUR SERVICE (CARE) LIMITED,Care,Domiciliary Care,247.51,0,247.51,11-Jul-11,ADULT SOCIAL CARE & HEALTH
Nottinghamshire County Council,04-02322,AT YOUR SERVICE (CARE) LIMITED,Care,Domiciliary Care,"1,577.69",0,"1,577.69",18-Jul-11,ADULT SOCIAL CARE & HEALTH
Nottinghamshire County Council,04-02322,AT YOUR SERVICE (CARE) LIMITED,Care,Domiciliary Care,250.16,0,250.16,18-Jul-11,ADULT SOCIAL CARE & HEALTH
Nottinghamshire County Council,04-06528,AT YOUR SERVICE (CARE) LIMITED,Care,Domiciliary Care,"1,541.94",0,"1,541.94",25-Jul-11,ADULT SOCIAL CARE & HEALTH
Nottinghamshire County Council,04-06528,AT YOUR SERVICE (CARE) LIMITED,Care,Domiciliary Care,289.65,0,289.65,25-Jul-11,ADULT SOCIAL CARE & HEALTH
Nottinghamshire County Council,04-00757,AT YOUR SERVICE (CARE) LIMITED,Care,Domiciliary Care,641.5,0,641.5,04-Jul-11,ADULT SOCIAL CARE & HEALTH
Nottinghamshire County Council,04-00757,AT YOUR SERVICE (CARE) LIMITED,Care,Domiciliary Care,105.89,0,105.89,04-Jul-11,ADULT SOCIAL CARE & HEALTH
Nottinghamshire County Council,04-01616,AT YOUR SERVICE (CARE) LIMITED,Care,Domiciliary Care,640.62,0,640.62,11-Jul-11,ADULT SOCIAL CARE & HEALTH
Nottinghamshire County Council,04-01616,AT YOUR SERVICE (CARE) LIMITED,Care,Domiciliary Care,101.26,0,101.26,11-Jul-11,ADULT SOCIAL CARE & HEALTH
Nottinghamshire County Council,04-02322,AT YOUR SERVICE (CARE) LIMITED,Care,Domiciliary Care,647.02,0,647.02,18-Jul-11,ADULT SOCIAL CARE & HEALTH
Nottinghamshire County Council,04-02322,AT YOUR SERVICE (CARE) LIMITED,Care,Domiciliary Care,106.77,0,106.77,18-Jul-11,ADULT SOCIAL CARE & HEALTH
Nottinghamshire County Council,04-06528,AT YOUR SERVICE (CARE) LIMITED,Care,Domiciliary Care,628.27,0,628.27,25-Jul-11,ADULT SOCIAL CARE & HEALTH
Nottinghamshire County Council,04-06528,AT YOUR SERVICE (CARE) LIMITED,Care,Domiciliary Care,175.6,0,175.6,25-Jul-11,ADULT SOCIAL CARE & HEALTH
Nottinghamshire County Council,04-00757,AT YOUR SERVICE (CARE) LIMITED,Care,Domiciliary Care,52.94,0,52.94,04-Jul-11,ADULT SOCIAL CARE & HEALTH
Nottinghamshire County Council,04-00757,AT YOUR SERVICE (CARE) LIMITED,Care,Domiciliary Care,79.42,0,79.42,04-Jul-11,ADULT SOCIAL CARE & HEALTH
Nottinghamshire County Council,04-01616,AT YOUR SERVICE (CARE) LIMITED,Care,Domiciliary Care,52.94,0,52.94,11-Jul-11,ADULT SOCIAL CARE & HEALTH
Nottinghamshire County Council,04-01616,AT YOUR SERVICE (CARE) LIMITED,Care,Domiciliary Care,143.39,0,143.39,11-Jul-11,ADULT SOCIAL CARE & HEALTH
Nottinghamshire County Council,04-02322,AT YOUR SERVICE (CARE) LIMITED,Care,Domiciliary Care,106.77,0,106.77,18-Jul-11,ADULT SOCIAL CARE & HEALTH
Nottinghamshire County Council,04-02322,AT YOUR SERVICE (CARE) LIMITED,Care,Domiciliary Care,238.25,0,238.25,18-Jul-11,ADULT SOCIAL CARE & HEALTH
Nottinghamshire County Council,04-06528,AT YOUR SERVICE (CARE) LIMITED,Care,Domiciliary Care,159.27,0,159.27,25-Jul-11,ADULT SOCIAL CARE & HEALTH
Nottinghamshire County Council,04-00778,AT YOUR SERVICE (CARE) LIMITED,Care,Domiciliary Care,976.82,0,976.82,04-Jul-11,ADULT SOCIAL CARE & HEALTH
Nottinghamshire County Council,04-01641,AT YOUR SERVICE (CARE) LIMITED,Care,Domiciliary Care,934.24,0,934.24,11-Jul-11,ADULT SOCIAL CARE & HEALTH
Nottinghamshire County Council,04-02303,AT YOUR SERVICE (CARE) LIMITED,Care,Domiciliary Care,"1,039.03",0,"1,039.03",18-Jul-11,ADULT SOCIAL CARE & HEALTH
Nottinghamshire County Council,04-06507,AT YOUR SERVICE (CARE) LIMITED,Care,Domiciliary Care,"1,141.83",0,"1,141.83",25-Jul-11,ADULT SOCIAL CARE & HEALTH
Nottinghamshire County Council,04-00778,AT YOUR SERVICE (CARE) LIMITED,Care,Domiciliary Care,"8,680.85",0,"8,680.85",04-Jul-11,ADULT SOCIAL CARE & HEALTH
Nottinghamshire County Council,04-00778,AT YOUR SERVICE (CARE) LIMITED,Care,Domiciliary Care,"2,404.97",0,"2,404.97",04-Jul-11,ADULT SOCIAL CARE & HEALTH
Nottinghamshire County Council,04-01641,AT YOUR SERVICE (CARE) LIMITED,Care,Domiciliary Care,"8,983.85",0,"8,983.85",11-Jul-11,ADULT SOCIAL CARE & HEALTH
Nottinghamshire County Council,04-01641,AT YOUR SERVICE (CARE) LIMITED,Care,Domiciliary Care,"2,652.48",0,"2,652.48",11-Jul-11,ADULT SOCIAL CARE & HEALTH
Nottinghamshire County Council,04-02303,AT YOUR SERVICE (CARE) LIMITED,Care,Domiciliary Care,"8,907.06",0,"8,907.06",18-Jul-11,ADULT SOCIAL CARE & HEALTH
Nottinghamshire County Council,04-02303,AT YOUR SERVICE (CARE) LIMITED,Care,Domiciliary Care,"2,278.14",0,"2,278.14",18-Jul-11,ADULT SOCIAL CARE & HEALTH
Nottinghamshire County Council,04-06507,AT YOUR SERVICE (CARE) LIMITED,Care,Domiciliary Care,"8,482.29",0,"8,482.29",25-Jul-11,ADULT SOCIAL CARE & HEALTH
Nottinghamshire County Council,04-06507,AT YOUR SERVICE (CARE) LIMITED,Care,Domiciliary Care,"2,451.29",0,"2,451.29",25-Jul-11,ADULT SOCIAL CARE & HEALTH
Nottinghamshire County Council,04-00778,AT YOUR SERVICE (CARE) LIMITED,Care,Domiciliary Care,113.83,0,113.83,04-Jul-11,ADULT SOCIAL CARE & HEALTH
Nottinghamshire County Council,04-00778,AT YOUR SERVICE (CARE) LIMITED,Care,Domiciliary Care,90,0,90,04-Jul-11,ADULT SOCIAL CARE & HEALTH
Nottinghamshire County Council,04-01641,AT YOUR SERVICE (CARE) LIMITED,Care,Domiciliary Care,87.8,0,87.8,11-Jul-11,ADULT SOCIAL CARE & HEALTH
Nottinghamshire County Council,04-01641,AT YOUR SERVICE (CARE) LIMITED,Care,Domiciliary Care,83.83,0,83.83,11-Jul-11,ADULT SOCIAL CARE & HEALTH
Nottinghamshire County Council,04-02303,AT YOUR SERVICE (CARE) LIMITED,Care,Domiciliary Care,87.14,0,87.14,18-Jul-11,ADULT SOCIAL CARE & HEALTH
Nottinghamshire County Council,04-02303,AT YOUR SERVICE (CARE) LIMITED,Care,Domiciliary Care,88.46,0,88.46,18-Jul-11,ADULT SOCIAL CARE & HEALTH
Nottinghamshire County Council,04-06507,AT YOUR SERVICE (CARE) LIMITED,Care,Domiciliary Care,82.28,0,82.28,25-Jul-11,ADULT SOCIAL CARE & HEALTH
Nottinghamshire County Council,04-06507,AT YOUR SERVICE (CARE) LIMITED,Care,Domiciliary Care,318.33,0,318.33,25-Jul-11,ADULT SOCIAL CARE & HEALTH
Nottinghamshire County Council,04-00778,AT YOUR SERVICE (CARE) LIMITED,Care,Domiciliary Care,97.51,0,97.51,04-Jul-11,ADULT SOCIAL CARE & HEALTH
Nottinghamshire County Council,04-01641,AT YOUR SERVICE (CARE) LIMITED,Care,Domiciliary Care,82.06,0,82.06,11-Jul-11,ADULT SOCIAL CARE & HEALTH
Nottinghamshire County Council,04-02303,AT YOUR SERVICE (CARE) LIMITED,Care,Domiciliary Care,78.31,0,78.31,18-Jul-11,ADULT SOCIAL CARE & HEALTH
Nottinghamshire County Council,04-06507,AT YOUR SERVICE (CARE) LIMITED,Care,Domiciliary Care,89.78,0,89.78,25-Jul-11,ADULT SOCIAL CARE & HEALTH
Nottinghamshire County Council,04-00778,AT YOUR SERVICE (CARE) LIMITED,Care,Domiciliary Care,52.94,0,52.94,04-Jul-11,ADULT SOCIAL CARE & HEALTH
Nottinghamshire County Council,04-01641,AT YOUR SERVICE (CARE) LIMITED,Care,Domiciliary Care,52.94,0,52.94,11-Jul-11,ADULT SOCIAL CARE & HEALTH
Nottinghamshire County Council,04-02303,AT YOUR SERVICE (CARE) LIMITED,Care,Domiciliary Care,52.94,0,52.94,18-Jul-11,ADULT SOCIAL CARE & HEALTH
Nottinghamshire County Council,04-06507,AT YOUR SERVICE (CARE) LIMITED,Care,Domiciliary Care,26.47,0,26.47,25-Jul-11,ADULT SOCIAL CARE & HEALTH
Nottinghamshire County Council,04-00778,AT YOUR SERVICE (CARE) LIMITED,Care,Domiciliary Care,46.33,0,46.33,04-Jul-11,ADULT SOCIAL CARE & HEALTH
Nottinghamshire County Council,04-00778,AT YOUR SERVICE (CARE) LIMITED,Care,Domiciliary Care,35.3,0,35.3,04-Jul-11,ADULT SOCIAL CARE & HEALTH
Nottinghamshire County Council,04-01641,AT YOUR SERVICE (CARE) LIMITED,Care,Domiciliary Care,44.12,0,44.12,11-Jul-11,ADULT SOCIAL CARE & HEALTH
Nottinghamshire County Council,04-01641,AT YOUR SERVICE (CARE) LIMITED,Care,Domiciliary Care,33.09,0,33.09,11-Jul-11,ADULT SOCIAL CARE & HEALTH
Nottinghamshire County Council,04-02303,AT YOUR SERVICE (CARE) LIMITED,Care,Domiciliary Care,97.06,0,97.06,18-Jul-11,ADULT SOCIAL CARE & HEALTH
Nottinghamshire County Council,04-02303,AT YOUR SERVICE (CARE) LIMITED,Care,Domiciliary Care,70.37,0,70.37,18-Jul-11,ADULT SOCIAL CARE & HEALTH
Nottinghamshire County Council,04-06507,AT YOUR SERVICE (CARE) LIMITED,Care,Domiciliary Care,91.55,0,91.55,25-Jul-11,ADULT SOCIAL CARE & HEALTH
Nottinghamshire County Council,04-00778,AT YOUR SERVICE (CARE) LIMITED,Care,Domiciliary Care,102.58,0,102.58,04-Jul-11,ADULT SOCIAL CARE & HEALTH
Nottinghamshire County Council,04-01641,AT YOUR SERVICE (CARE) LIMITED,Care,Domiciliary Care,104.56,0,104.56,11-Jul-11,ADULT SOCIAL CARE & HEALTH
Nottinghamshire County Council,04-02303,AT YOUR SERVICE (CARE) LIMITED,Care,Domiciliary Care,110.74,0,110.74,18-Jul-11,ADULT SOCIAL CARE & HEALTH
Nottinghamshire County Council,04-06507,AT YOUR SERVICE (CARE) LIMITED,Care,Domiciliary Care,-113.61,0,-113.61,25-Jul-11,ADULT SOCIAL CARE & HEALTH
Nottinghamshire County Council,04-00770,AT YOUR SERVICE (CARE) LIMITED,Care,Domiciliary Care,684.24,0,684.24,04-Jul-11,ADULT SOCIAL CARE & HEALTH
Nottinghamshire County Council,04-01636,AT YOUR SERVICE (CARE) LIMITED,Care,Domiciliary Care,791.68,0,791.68,11-Jul-11,ADULT SOCIAL CARE & HEALTH
Nottinghamshire County Council,04-02318,AT YOUR SERVICE (CARE) LIMITED,Care,Domiciliary Care,617.63,0,617.63,18-Jul-11,ADULT SOCIAL CARE & HEALTH
Nottinghamshire County Council,04-02318,AT YOUR SERVICE (CARE) LIMITED,Care,Domiciliary Care,387.81,0,387.81,18-Jul-11,ADULT SOCIAL CARE & HEALTH
Nottinghamshire County Council,04-00770,AT YOUR SERVICE (CARE) LIMITED,Care,Domiciliary Care,"2,987.06",0,"2,987.06",04-Jul-11,ADULT SOCIAL CARE & HEALTH
Nottinghamshire County Council,04-00770,AT YOUR SERVICE (CARE) LIMITED,Care,Domiciliary Care,434.62,0,434.62,04-Jul-11,ADULT SOCIAL CARE & HEALTH
Nottinghamshire County Council,04-01636,AT YOUR SERVICE (CARE) LIMITED,Care,Domiciliary Care,"2,770.32",0,"2,770.32",11-Jul-11,ADULT SOCIAL CARE & HEALTH
Nottinghamshire County Council,04-01636,AT YOUR SERVICE (CARE) LIMITED,Care,Domiciliary Care,668.79,0,668.79,11-Jul-11,ADULT SOCIAL CARE & HEALTH
Nottinghamshire County Council,04-02318,AT YOUR SERVICE (CARE) LIMITED,Care,Domiciliary Care,"2,559.09",0,"2,559.09",18-Jul-11,ADULT SOCIAL CARE & HEALTH
Nottinghamshire County Council,04-02318,AT YOUR SERVICE (CARE) LIMITED,Care,Domiciliary Care,594.85,0,594.85,18-Jul-11,ADULT SOCIAL CARE & HEALTH
Nottinghamshire County Council,04-00770,AT YOUR SERVICE (CARE) LIMITED,Care,Domiciliary Care,129.27,0,129.27,04-Jul-11,ADULT SOCIAL CARE & HEALTH
Nottinghamshire County Council,04-00770,AT YOUR SERVICE (CARE) LIMITED,Care,Domiciliary Care,115.82,0,115.82,04-Jul-11,ADULT SOCIAL CARE & HEALTH
Nottinghamshire County Council,04-01636,AT YOUR SERVICE (CARE) LIMITED,Care,Domiciliary Care,145.15,0,145.15,11-Jul-11,ADULT SOCIAL CARE & HEALTH
Nottinghamshire County Council,04-01636,AT YOUR SERVICE (CARE) LIMITED,Care,Domiciliary Care,114.71,0,114.71,11-Jul-11,ADULT SOCIAL CARE & HEALTH
Nottinghamshire County Council,04-02318,AT YOUR SERVICE (CARE) LIMITED,Care,Domiciliary Care,132.8,0,132.8,18-Jul-11,ADULT SOCIAL CARE & HEALTH
Nottinghamshire County Council,04-02318,AT YOUR SERVICE (CARE) LIMITED,Care,Domiciliary Care,107.43,0,107.43,18-Jul-11,ADULT SOCIAL CARE & HEALTH
Nottinghamshire County Council,04-00770,AT YOUR SERVICE (CARE) LIMITED,Care,Domiciliary Care,75.45,0,75.45,04-Jul-11,ADULT SOCIAL CARE & HEALTH
Nottinghamshire County Council,04-01636,AT YOUR SERVICE (CARE) LIMITED,Care,Domiciliary Care,89.12,0,89.12,11-Jul-11,ADULT SOCIAL CARE & HEALTH
Nottinghamshire County Council,04-02318,AT YOUR SERVICE (CARE) LIMITED,Care,Domiciliary Care,92.65,0,92.65,18-Jul-11,ADULT SOCIAL CARE & HEALTH
Nottinghamshire County Council,04-04195,ATHORPE LODGE,Care,Residential Care,"1,888.00",0,"1,888.00",20-Jul-11,ADULT SOCIAL CARE & HEALTH
Nottinghamshire County Council,04-04196,ATHORPE LODGE,Care,Residential Care,"1,888.00",0,"1,888.00",20-Jul-11,ADULT SOCIAL CARE & HEALTH
Nottinghamshire County Council,04-04195,ATHORPE LODGE,Care,Residential Care,434.8,0,434.8,20-Jul-11,ADULT SOCIAL CARE & HEALTH
Nottinghamshire County Council,04-04196,ATHORPE LODGE,Care,Residential Care,434.8,0,434.8,20-Jul-11,ADULT SOCIAL CARE & HEALTH
Nottinghamshire County Council,04-00260,ATTENBOROUGH INDUSTRIAL DOORS LIMITED,Hard Facilities Management ,Window And Door Installation Services,574,114.8,688.8,01-Jul-11,TBC
Nottinghamshire County Council,04-05317,AUTISM SUPPORT AND CARE LIMITED,Care,Residential Care,"12,800.00",0,"12,800.00",20-Jul-11,ADULT SOCIAL CARE & HEALTH
Nottinghamshire County Council,04-05315,AUTISM SUPPORT AND CARE LIMITED,Care,Residential Care,"7,894.52",0,"7,894.52",20-Jul-11,ADULT SOCIAL CARE & HEALTH
Nottinghamshire County Council,04-05316,AUTISM SUPPORT AND CARE LIMITED,Care,Residential Care,"7,772.52",0,"7,772.52",20-Jul-11,ADULT SOCIAL CARE & HEALTH
Nottinghamshire County Council,04-05683,AUTOBAR UK LIMITED,Hard Facilities Management ,Prepared And Preserved Foods,737.8,0,737.8,20-Jul-11,COMMUNITIES
Nottinghamshire County Council,04-07296,AUTOBAR UK LIMITED,Hard Facilities Management ,Prepared And Preserved Foods,737.8,0,737.8,28-Jul-11,COMMUNITIES
Nottinghamshire County Council,04-01010,AUTOMOTIVE LEASING,Transport And Travel,Motor Vehicles,-519.99,-104,-623.99,11-Jul-11,COMMUNITIES
Nottinghamshire County Council,04-01011,AUTOMOTIVE LEASING,Transport And Travel,Motor Vehicles,-650.64,-130.13,-780.77,11-Jul-11,COMMUNITIES
Nottinghamshire County Council,04-00502,AUTOMOTIVE LEASING,Transport And Travel,Motor Vehicles,714.81,0,714.81,11-Jul-11,CHILDREN & YOUNG PEOPLE
Nottinghamshire County Council,04-05461,AUTUMN GRANGE CARE HOME,Care,Residential Care,"1,484.00",0,"1,484.00",20-Jul-11,ADULT SOCIAL CARE & HEALTH
Nottinghamshire County Council,04-05460,AUTUMN GRANGE CARE HOME,Care,Residential Care,"1,593.48",0,"1,593.48",20-Jul-11,ADULT SOCIAL CARE & HEALTH
Nottinghamshire County Council,04-02620,AUTUMN GRANGE CARE HOME,Care,Residential Care,"1,448.00",0,"1,448.00",20-Jul-11,ADULT SOCIAL CARE & HEALTH
Nottinghamshire County Council,04-05460,AUTUMN GRANGE CARE HOME,Care,Residential Care,434.8,0,434.8,20-Jul-11,ADULT SOCIAL CARE & HEALTH
Nottinghamshire County Council,04-02624,AVALON NURSING HOME,Care,Residential Care,"1,816.00",0,"1,816.00",20-Jul-11,ADULT SOCIAL CARE & HEALTH
Nottinghamshire County Council,04-02621,AVALON NURSING HOME,Care,Residential Care,"1,632.00",0,"1,632.00",20-Jul-11,ADULT SOCIAL CARE & HEALTH
Nottinghamshire County Council,04-02631,AVALON NURSING HOME,Care,Residential Care,"1,632.00",0,"1,632.00",20-Jul-11,ADULT SOCIAL CARE & HEALTH
Nottinghamshire County Council,04-02632,AVALON NURSING HOME,Care,Residential Care,"1,632.00",0,"1,632.00",20-Jul-11,ADULT SOCIAL CARE & HEALTH
Nottinghamshire County Council,04-01072,AVALON NURSING HOME,Care,Residential Care,"2,700.00",0,"2,700.00",07-Jul-11,ADULT SOCIAL CARE & HEALTH
Nottinghamshire County Council,04-02623,AVALON NURSING HOME,Care,Residential Care,"1,800.00",0,"1,800.00",20-Jul-11,ADULT SOCIAL CARE & HEALTH
Nottinghamshire County Council,04-02627,AVALON NURSING HOME,Care,Residential Care,"1,816.00",0,"1,816.00",20-Jul-11,ADULT SOCIAL CARE & HEALTH
Nottinghamshire County Council,04-02629,AVALON NURSING HOME,Care,Residential Care,"1,816.00",0,"1,816.00",20-Jul-11,ADULT SOCIAL CARE & HEALTH
Nottinghamshire County Council,04-02630,AVALON NURSING HOME,Care,Residential Care,"1,816.00",0,"1,816.00",20-Jul-11,ADULT SOCIAL CARE & HEALTH
Nottinghamshire County Council,04-02633,AVALON NURSING HOME,Care,Residential Care,"1,816.00",0,"1,816.00",20-Jul-11,ADULT SOCIAL CARE & HEALTH
Nottinghamshire County Council,04-01071,AVALON NURSING HOME,Care,Residential Care,"1,297.14",0,"1,297.14",07-Jul-11,ADULT SOCIAL CARE & HEALTH
Nottinghamshire County Council,04-02622,AVALON NURSING HOME,Care,Residential Care,"1,816.00",0,"1,816.00",20-Jul-11,ADULT SOCIAL CARE & HEALTH
Nottinghamshire County Council,04-02626,AVALON NURSING HOME,Care,Residential Care,"1,964.00",0,"1,964.00",20-Jul-11,ADULT SOCIAL CARE & HEALTH
Nottinghamshire County Council,04-02628,AVALON NURSING HOME,Care,Residential Care,"1,392.00",0,"1,392.00",20-Jul-11,ADULT SOCIAL CARE & HEALTH
Nottinghamshire County Council,04-02625,AVALON NURSING HOME,Care,Residential Care,"1,816.00",0,"1,816.00",20-Jul-11,ADULT SOCIAL CARE & HEALTH
Nottinghamshire County Council,04-01072,AVALON NURSING HOME,Care,Residential Care,120,0,120,07-Jul-11,ADULT SOCIAL CARE & HEALTH
Nottinghamshire County Council,04-02623,AVALON NURSING HOME,Care,Residential Care,80,0,80,20-Jul-11,ADULT SOCIAL CARE & HEALTH
Nottinghamshire County Council,04-02626,AVALON NURSING HOME,Care,Residential Care,40,0,40,20-Jul-11,ADULT SOCIAL CARE & HEALTH
Nottinghamshire County Council,04-02624,AVALON NURSING HOME,Care,Residential Care,434.8,0,434.8,20-Jul-11,ADULT SOCIAL CARE & HEALTH
Nottinghamshire County Council,04-01071,AVALON NURSING HOME,Care,Residential Care,310.57,0,310.57,07-Jul-11,ADULT SOCIAL CARE & HEALTH
Nottinghamshire County Council,04-02622,AVALON NURSING HOME,Care,Residential Care,434.8,0,434.8,20-Jul-11,ADULT SOCIAL CARE & HEALTH
Nottinghamshire County Council,04-02625,AVALON NURSING HOME,Care,Residential Care,434.8,0,434.8,20-Jul-11,ADULT SOCIAL CARE & HEALTH
Nottinghamshire County Council,04-02626,AVALON NURSING HOME,Care,Residential Care,434.8,0,434.8,20-Jul-11,ADULT SOCIAL CARE & HEALTH
Nottinghamshire County Council,04-02629,AVALON NURSING HOME,Care,Residential Care,434.8,0,434.8,20-Jul-11,ADULT SOCIAL CARE & HEALTH
Nottinghamshire County Council,04-02630,AVALON NURSING HOME,Care,Residential Care,434.8,0,434.8,20-Jul-11,ADULT SOCIAL CARE & HEALTH
Nottinghamshire County Council,04-02633,AVALON NURSING HOME,Care,Residential Care,434.8,0,434.8,20-Jul-11,ADULT SOCIAL CARE & HEALTH
Nottinghamshire County Council,04-02627,AVALON NURSING HOME,Care,Residential Care,434.8,0,434.8,20-Jul-11,ADULT SOCIAL CARE & HEALTH
Nottinghamshire County Council,04-02628,AVALON NURSING HOME,Care,Residential Care,434.8,0,434.8,20-Jul-11,ADULT SOCIAL CARE & HEALTH
Nottinghamshire County Council,04-07040,AVIVA INSURANCE,Professional Services,Financial & Insurance Services,"4,279.97",0,"4,279.97",26-Jul-11,RESOURCES
Nottinghamshire County Council,04-06483,AVON HOUSE SUPPORTED LIVING,Care,Domiciliary Care,"2,520.00",0,"2,520.00",27-Jul-11,ADULT SOCIAL CARE & HEALTH
Nottinghamshire County Council,04-05030,AVONDALE RESIDENTIAL CARE HOME,Care,Residential Care,"1,632.00",0,"1,632.00",20-Jul-11,ADULT SOCIAL CARE & HEALTH
Nottinghamshire County Council,04-05031,AVONDALE RESIDENTIAL CARE HOME,Care,Residential Care,"1,632.00",0,"1,632.00",20-Jul-11,ADULT SOCIAL CARE & HEALTH
Nottinghamshire County Council,04-05032,AVONDALE RESIDENTIAL CARE HOME,Care,Residential Care,"1,632.00",0,"1,632.00",20-Jul-11,ADULT SOCIAL CARE & HEALTH
Nottinghamshire County Council,04-05033,AVONDALE RESIDENTIAL CARE HOME,Care,Residential Care,"1,632.00",0,"1,632.00",20-Jul-11,ADULT SOCIAL CARE & HEALTH
Nottinghamshire County Council,04-05035,AVONDALE RESIDENTIAL CARE HOME,Care,Residential Care,"1,632.00",0,"1,632.00",20-Jul-11,ADULT SOCIAL CARE & HEALTH
Nottinghamshire County Council,04-05036,AVONDALE RESIDENTIAL CARE HOME,Care,Residential Care,"1,632.00",0,"1,632.00",20-Jul-11,ADULT SOCIAL CARE & HEALTH
Nottinghamshire County Council,04-05038,AVONDALE RESIDENTIAL CARE HOME,Care,Residential Care,"1,632.00",0,"1,632.00",20-Jul-11,ADULT SOCIAL CARE & HEALTH
Nottinghamshire County Council,04-05034,AVONDALE RESIDENTIAL CARE HOME,Care,Residential Care,"1,800.00",0,"1,800.00",20-Jul-11,ADULT SOCIAL CARE & HEALTH
Nottinghamshire County Council,04-05037,AVONDALE RESIDENTIAL CARE HOME,Care,Residential Care,"1,800.00",0,"1,800.00",20-Jul-11,ADULT SOCIAL CARE & HEALTH
Nottinghamshire County Council,04-00127,AYTON ASPHALT,External Services (Highways And Culture),Highways And Works,"1,600.00",320,"1,920.00",12-Jul-11,COMMUNITIES
Nottinghamshire County Council,04-00127,AYTON ASPHALT,External Services (Highways And Culture),Highways And Works,46.08,9.22,55.3,12-Jul-11,COMMUNITIES
Nottinghamshire County Council,04-01891,AYTON ASPHALT,External Services (Highways And Culture),Highways And Works,"2,119.68",423.94,"2,543.62",14-Jul-11,COMMUNITIES
Nottinghamshire County Council,04-06656,B BRADSHAW ASSOCIATES,Professional Services,Professional Engineering Services,600,0,600,26-Jul-11,CHILDREN & YOUNG PEOPLE
Nottinghamshire County Council,04-02182,B N GIBSON MOTORS,Transport And Travel,Taxi,"3,797.91",759.58,"4,557.49",15-Jul-11,CHILDREN & YOUNG PEOPLE
Nottinghamshire County Council,04-06188,B N GIBSON MOTORS,Transport And Travel,Taxi,"3,355.78",671.16,"4,026.94",21-Jul-11,CHILDREN & YOUNG PEOPLE
Nottinghamshire County Council,04-02184,B N GIBSON MOTORS,Transport And Travel,Taxi,"1,079.68",215.94,"1,295.62",15-Jul-11,CHILDREN & YOUNG PEOPLE
Nottinghamshire County Council,04-06190,B N GIBSON MOTORS,Transport And Travel,Taxi,"3,010.36",602.07,"3,612.43",21-Jul-11,CHILDREN & YOUNG PEOPLE
Nottinghamshire County Council,04-06195,B N GIBSON MOTORS,Transport And Travel,Taxi,"3,100.04",620.01,"3,720.05",21-Jul-11,CHILDREN & YOUNG PEOPLE
Nottinghamshire County Council,04-06196,B N GIBSON MOTORS,Transport And Travel,Taxi,"1,811.52",362.3,"2,173.82",21-Jul-11,CHILDREN & YOUNG PEOPLE
Nottinghamshire County Council,04-02186,B N GIBSON MOTORS,Transport And Travel,Taxi,"3,060.00",612,"3,672.00",15-Jul-11,CHILDREN & YOUNG PEOPLE
Nottinghamshire County Council,04-02183,B N GIBSON MOTORS,Transport And Travel,Taxi,"2,287.80",457.56,"2,745.36",15-Jul-11,CHILDREN & YOUNG PEOPLE
Nottinghamshire County Council,04-06184,B N GIBSON MOTORS,Transport And Travel,Taxi,"2,915.82",583.16,"3,498.98",21-Jul-11,CHILDREN & YOUNG PEOPLE
Nottinghamshire County Council,04-06185,B N GIBSON MOTORS,Transport And Travel,Taxi,"1,445.76",289.15,"1,734.91",21-Jul-11,CHILDREN & YOUNG PEOPLE
Nottinghamshire County Council,04-06186,B N GIBSON MOTORS,Transport And Travel,Taxi,"4,007.16",801.43,"4,808.59",21-Jul-11,CHILDREN & YOUNG PEOPLE
Nottinghamshire County Council,04-06197,B N GIBSON MOTORS,Transport And Travel,Taxi,"2,105.69",421.14,"2,526.83",21-Jul-11,CHILDREN & YOUNG PEOPLE
Nottinghamshire County Council,04-06198,B N GIBSON MOTORS,Transport And Travel,Taxi,"2,921.63",584.33,"3,505.96",21-Jul-11,CHILDREN & YOUNG PEOPLE
Nottinghamshire County Council,04-06199,B N GIBSON MOTORS,Transport And Travel,Taxi,"1,788.96",357.79,"2,146.75",21-Jul-11,CHILDREN & YOUNG PEOPLE
Nottinghamshire County Council,04-06200,B N GIBSON MOTORS,Transport And Travel,Taxi,"2,291.40",458.28,"2,749.68",21-Jul-11,CHILDREN & YOUNG PEOPLE
Nottinghamshire County Council,04-02179,B N GIBSON MOTORS,Transport And Travel,Taxi,"2,899.98",580,"3,479.98",15-Jul-11,CHILDREN & YOUNG PEOPLE
Nottinghamshire County Council,04-02180,B N GIBSON MOTORS,Transport And Travel,Taxi,"2,713.50",542.7,"3,256.20",15-Jul-11,CHILDREN & YOUNG PEOPLE
Nottinghamshire County Council,04-02181,B N GIBSON MOTORS,Transport And Travel,Taxi,"3,023.64",604.73,"3,628.37",15-Jul-11,CHILDREN & YOUNG PEOPLE
Nottinghamshire County Council,04-02188,B N GIBSON MOTORS,Transport And Travel,Taxi,"2,296.87",459.37,"2,756.24",15-Jul-11,CHILDREN & YOUNG PEOPLE
Nottinghamshire County Council,04-02189,B N GIBSON MOTORS,Transport And Travel,Taxi,"1,808.57",361.71,"2,170.28",15-Jul-11,CHILDREN & YOUNG PEOPLE
Nottinghamshire County Council,04-02190,B N GIBSON MOTORS,Transport And Travel,Taxi,"2,854.98",571,"3,425.98",15-Jul-11,CHILDREN & YOUNG PEOPLE
Nottinghamshire County Council,04-02191,B N GIBSON MOTORS,Transport And Travel,Taxi,"2,204.05",440.81,"2,644.86",15-Jul-11,CHILDREN & YOUNG PEOPLE
Nottinghamshire County Council,04-02192,B N GIBSON MOTORS,Transport And Travel,Taxi,"2,135.71",427.14,"2,562.85",15-Jul-11,CHILDREN & YOUNG PEOPLE
Nottinghamshire County Council,04-02193,B N GIBSON MOTORS,Transport And Travel,Taxi,"2,457.18",491.44,"2,948.62",15-Jul-11,CHILDREN & YOUNG PEOPLE
Nottinghamshire County Council,04-06191,B N GIBSON MOTORS,Transport And Travel,Taxi,"2,560.54",512.11,"3,072.65",21-Jul-11,CHILDREN & YOUNG PEOPLE
Nottinghamshire County Council,04-06192,B N GIBSON MOTORS,Transport And Travel,Taxi,"3,133.10",626.62,"3,759.72",21-Jul-11,CHILDREN & YOUNG PEOPLE
Nottinghamshire County Council,04-06193,B N GIBSON MOTORS,Transport And Travel,Taxi,"3,273.35",654.67,"3,928.02",21-Jul-11,CHILDREN & YOUNG PEOPLE
Nottinghamshire County Council,04-06194,B N GIBSON MOTORS,Transport And Travel,Taxi,"2,562.75",512.55,"3,075.30",21-Jul-11,CHILDREN & YOUNG PEOPLE
Nottinghamshire County Council,04-02187,B N GIBSON MOTORS,Transport And Travel,Taxi,"2,321.61",464.32,"2,785.93",15-Jul-11,CHILDREN & YOUNG PEOPLE
Nottinghamshire County Council,04-02177,B N GIBSON MOTORS,Transport And Travel,Taxi,"4,475.88",895.18,"5,371.06",15-Jul-11,CHILDREN & YOUNG PEOPLE
Nottinghamshire County Council,04-06187,B N GIBSON MOTORS,Transport And Travel,Taxi,"3,256.20",651.24,"3,907.44",21-Jul-11,CHILDREN & YOUNG PEOPLE
Nottinghamshire County Council,04-02178,B N GIBSON MOTORS,Transport And Travel,Taxi,"3,013.38",602.68,"3,616.06",15-Jul-11,CHILDREN & YOUNG PEOPLE
Nottinghamshire County Council,04-02189,B N GIBSON MOTORS,Transport And Travel,Taxi,516.73,103.35,620.08,15-Jul-11,CHILDREN & YOUNG PEOPLE
Nottinghamshire County Council,04-02185,B N GIBSON MOTORS,Transport And Travel,Taxi,"1,398.00",279.6,"1,677.60",15-Jul-11,CHILDREN & YOUNG PEOPLE
Nottinghamshire County Council,04-06189,B N GIBSON MOTORS,Transport And Travel,Taxi,"2,593.42",518.68,"3,112.10",21-Jul-11,CHILDREN & YOUNG PEOPLE
Nottinghamshire County Council,04-02184,B N GIBSON MOTORS,Transport And Travel,Taxi,"1,079.67",215.93,"1,295.60",15-Jul-11,CHILDREN & YOUNG PEOPLE
Nottinghamshire County Council,04-06197,B N GIBSON MOTORS,Transport And Travel,Taxi,420.93,84.19,505.12,21-Jul-11,CHILDREN & YOUNG PEOPLE
Nottinghamshire County Council,04-02189,B N GIBSON MOTORS,Transport And Travel,Taxi,258.36,51.67,310.03,15-Jul-11,CHILDREN & YOUNG PEOPLE
Nottinghamshire County Council,04-06185,B N GIBSON MOTORS,Transport And Travel,Taxi,"1,445.76",289.15,"1,734.91",21-Jul-11,CHILDREN & YOUNG PEOPLE
Nottinghamshire County Council,04-05998,B N GIBSON MOTORS,Transport And Travel,Taxi,"3,824.90",764.98,"4,589.88",22-Jul-11,ADULT SOCIAL CARE & HEALTH
Nottinghamshire County Council,04-05999,B N GIBSON MOTORS,Transport And Travel,Taxi,"2,386.97",477.39,"2,864.36",22-Jul-11,ADULT SOCIAL CARE & HEALTH
Nottinghamshire County Council,04-06000,B N GIBSON MOTORS,Transport And Travel,Taxi,"2,750.80",550.16,"3,300.96",22-Jul-11,ADULT SOCIAL CARE & HEALTH
Nottinghamshire County Council,04-02283,B N GIBSON MOTORS,Transport And Travel,Taxi,"2,152.82",430.56,"2,583.38",29-Jul-11,ADULT SOCIAL CARE & HEALTH
Nottinghamshire County Council,04-02181,B N GIBSON MOTORS,Transport And Travel,Taxi,0,-0.01,-0.01,15-Jul-11,RESOURCES
Nottinghamshire County Council,04-02188,B N GIBSON MOTORS,Transport And Travel,Taxi,0,0.01,0.01,15-Jul-11,RESOURCES
Nottinghamshire County Council,04-02190,B N GIBSON MOTORS,Transport And Travel,Taxi,0,-0.01,-0.01,15-Jul-11,RESOURCES
Nottinghamshire County Council,04-02193,B N GIBSON MOTORS,Transport And Travel,Taxi,0,-0.01,-0.01,15-Jul-11,RESOURCES
Nottinghamshire County Council,04-06186,B N GIBSON MOTORS,Transport And Travel,Taxi,0,0.01,0.01,21-Jul-11,RESOURCES
Nottinghamshire County Council,04-06197,B N GIBSON MOTORS,Transport And Travel,Taxi,0,-0.01,-0.01,21-Jul-11,RESOURCES
Nottinghamshire County Council,04-06653,BADENOCH AND CLARK,People,Recruitment,0,500,500,26-Jul-11,TBC
Nottinghamshire County Council,04-00598,BADENOCH AND CLARK,People,Recruitment,"3,000.00",600,"3,600.00",07-Jul-11,RESOURCES
Nottinghamshire County Council,04-05923,BADENOCH AND CLARK,People,Recruitment,"2,750.00",550,"3,300.00",25-Jul-11,RESOURCES
Nottinghamshire County Council,04-06653,BADENOCH AND CLARK,People,Recruitment,"2,500.00",0,"2,500.00",26-Jul-11,RESOURCES
Nottinghamshire County Council,04-02634,BALMORE COUNTRY HOUSE CARE HOME,Care,Residential Care,"1,392.00",0,"1,392.00",20-Jul-11,ADULT SOCIAL CARE & HEALTH
Nottinghamshire County Council,04-02635,BALMORE COUNTRY HOUSE CARE HOME,Care,Residential Care,"1,392.00",0,"1,392.00",20-Jul-11,ADULT SOCIAL CARE & HEALTH
Nottinghamshire County Council,04-02640,BALMORE COUNTRY HOUSE CARE HOME,Care,Residential Care,"1,392.00",0,"1,392.00",20-Jul-11,ADULT SOCIAL CARE & HEALTH
Nottinghamshire County Council,04-02642,BALMORE COUNTRY HOUSE CARE HOME,Care,Residential Care,"1,436.00",0,"1,436.00",20-Jul-11,ADULT SOCIAL CARE & HEALTH
Nottinghamshire County Council,04-02643,BALMORE COUNTRY HOUSE CARE HOME,Care,Residential Care,"1,392.00",0,"1,392.00",20-Jul-11,ADULT SOCIAL CARE & HEALTH
Nottinghamshire County Council,04-02636,BALMORE COUNTRY HOUSE CARE HOME,Care,Residential Care,"1,436.00",0,"1,436.00",20-Jul-11,ADULT SOCIAL CARE & HEALTH
Nottinghamshire County Council,04-02638,BALMORE COUNTRY HOUSE CARE HOME,Care,Residential Care,"1,436.00",0,"1,436.00",20-Jul-11,ADULT SOCIAL CARE & HEALTH
Nottinghamshire County Council,04-02644,BALMORE COUNTRY HOUSE CARE HOME,Care,Residential Care,"1,436.00",0,"1,436.00",20-Jul-11,ADULT SOCIAL CARE & HEALTH
Nottinghamshire County Council,04-02645,BALMORE COUNTRY HOUSE CARE HOME,Care,Residential Care,"1,504.00",0,"1,504.00",20-Jul-11,ADULT SOCIAL CARE & HEALTH
Nottinghamshire County Council,04-02637,BALMORE COUNTRY HOUSE CARE HOME,Care,Residential Care,"1,544.00",0,"1,544.00",20-Jul-11,ADULT SOCIAL CARE & HEALTH
Nottinghamshire County Council,04-02639,BALMORE COUNTRY HOUSE CARE HOME,Care,Residential Care,"1,544.00",0,"1,544.00",20-Jul-11,ADULT SOCIAL CARE & HEALTH
Nottinghamshire County Council,04-02641,BALMORE COUNTRY HOUSE CARE HOME,Care,Residential Care,"1,544.00",0,"1,544.00",20-Jul-11,ADULT SOCIAL CARE & HEALTH
Nottinghamshire County Council,04-02634,BALMORE COUNTRY HOUSE CARE HOME,Care,Residential Care,20,0,20,20-Jul-11,ADULT SOCIAL CARE & HEALTH
Nottinghamshire County Council,04-02637,BALMORE COUNTRY HOUSE CARE HOME,Care,Residential Care,80,0,80,20-Jul-11,ADULT SOCIAL CARE & HEALTH
Nottinghamshire County Council,04-02639,BALMORE COUNTRY HOUSE CARE HOME,Care,Residential Care,80,0,80,20-Jul-11,ADULT SOCIAL CARE & HEALTH
Nottinghamshire County Council,04-02640,BALMORE COUNTRY HOUSE CARE HOME,Care,Residential Care,"1,096.00",0,"1,096.00",20-Jul-11,ADULT SOCIAL CARE & HEALTH
Nottinghamshire County Council,04-02642,BALMORE COUNTRY HOUSE CARE HOME,Care,Residential Care,44,0,44,20-Jul-11,ADULT SOCIAL CARE & HEALTH
Nottinghamshire County Council,04-02645,BALMORE COUNTRY HOUSE CARE HOME,Care,Residential Care,20,0,20,20-Jul-11,ADULT SOCIAL CARE & HEALTH
Nottinghamshire County Council,04-02637,BALMORE COUNTRY HOUSE CARE HOME,Care,Residential Care,434.8,0,434.8,20-Jul-11,ADULT SOCIAL CARE & HEALTH
Nottinghamshire County Council,04-02639,BALMORE COUNTRY HOUSE CARE HOME,Care,Residential Care,434.8,0,434.8,20-Jul-11,ADULT SOCIAL CARE & HEALTH
Nottinghamshire County Council,04-02641,BALMORE COUNTRY HOUSE CARE HOME,Care,Residential Care,434.8,0,434.8,20-Jul-11,ADULT SOCIAL CARE & HEALTH
Nottinghamshire County Council,04-03603,BANK HOUSE CARE HOME,Care,Residential Care,"1,816.00",0,"1,816.00",20-Jul-11,ADULT SOCIAL CARE & HEALTH
Nottinghamshire County Council,04-03607,BANK HOUSE CARE HOME,Care,Residential Care,"1,816.00",0,"1,816.00",20-Jul-11,ADULT SOCIAL CARE & HEALTH
Nottinghamshire County Council,04-03608,BANK HOUSE CARE HOME,Care,Residential Care,"-3,891.43",0,"-3,891.43",20-Jul-11,ADULT SOCIAL CARE & HEALTH
Nottinghamshire County Council,04-03609,BANK HOUSE CARE HOME,Care,Residential Care,"1,816.00",0,"1,816.00",20-Jul-11,ADULT SOCIAL CARE & HEALTH
Nottinghamshire County Council,04-03602,BANK HOUSE CARE HOME,Care,Residential Care,"1,816.00",0,"1,816.00",20-Jul-11,ADULT SOCIAL CARE & HEALTH
Nottinghamshire County Council,04-03604,BANK HOUSE CARE HOME,Care,Residential Care,"1,980.00",0,"1,980.00",20-Jul-11,ADULT SOCIAL CARE & HEALTH
Nottinghamshire County Council,04-03605,BANK HOUSE CARE HOME,Care,Residential Care,"1,980.00",0,"1,980.00",20-Jul-11,ADULT SOCIAL CARE & HEALTH
Nottinghamshire County Council,04-03606,BANK HOUSE CARE HOME,Care,Residential Care,"1,980.00",0,"1,980.00",20-Jul-11,ADULT SOCIAL CARE & HEALTH
Nottinghamshire County Council,04-03608,BANK HOUSE CARE HOME,Care,Residential Care,"6,222.86",0,"6,222.86",20-Jul-11,ADULT SOCIAL CARE & HEALTH
Nottinghamshire County Council,04-00232,BARKER AND SHELDON,Hard Facilities Management ,Electrical Systems And Lighting,"3,475.00",695,"4,170.00",01-Jul-11,RESOURCES
Nottinghamshire County Council,04-02026,BARKER ROSS LIMITED,People,Recruitment,417.06,83.41,500.47,15-Jul-11,COMMUNITIES
Nottinghamshire County Council,04-02029,BARKER ROSS LIMITED,People,Recruitment,417.06,83.41,500.47,15-Jul-11,COMMUNITIES
Nottinghamshire County Council,04-01892,BARKER ROSS LIMITED,People,Recruitment,"1,263.20",252.64,"1,515.84",25-Jul-11,COMMUNITIES
Nottinghamshire County Council,04-02530,BARNARDOS,Care,Adoption Services,"3,725.10",0,"3,725.10",20-Jul-11,ADULT SOCIAL CARE & HEALTH
Nottinghamshire County Council,04-03253,BARNBY COURT CARE HOME,Care,Residential Care,"1,632.00",0,"1,632.00",20-Jul-11,ADULT SOCIAL CARE & HEALTH
Nottinghamshire County Council,04-03257,BARNBY COURT CARE HOME,Care,Residential Care,"1,632.00",0,"1,632.00",20-Jul-11,ADULT SOCIAL CARE & HEALTH
Nottinghamshire County Council,04-03243,BARNBY COURT CARE HOME,Care,Residential Care,"1,800.00",0,"1,800.00",20-Jul-11,ADULT SOCIAL CARE & HEALTH
Nottinghamshire County Council,04-03244,BARNBY COURT CARE HOME,Care,Residential Care,"1,800.00",0,"1,800.00",20-Jul-11,ADULT SOCIAL CARE & HEALTH
Nottinghamshire County Council,04-03245,BARNBY COURT CARE HOME,Care,Residential Care,"1,800.00",0,"1,800.00",20-Jul-11,ADULT SOCIAL CARE & HEALTH
Nottinghamshire County Council,04-03246,BARNBY COURT CARE HOME,Care,Residential Care,"1,800.00",0,"1,800.00",20-Jul-11,ADULT SOCIAL CARE & HEALTH
Nottinghamshire County Council,04-03247,BARNBY COURT CARE HOME,Care,Residential Care,"1,800.00",0,"1,800.00",20-Jul-11,ADULT SOCIAL CARE & HEALTH
Nottinghamshire County Council,04-03248,BARNBY COURT CARE HOME,Care,Residential Care,"1,800.00",0,"1,800.00",20-Jul-11,ADULT SOCIAL CARE & HEALTH
Nottinghamshire County Council,04-03249,BARNBY COURT CARE HOME,Care,Residential Care,"1,800.00",0,"1,800.00",20-Jul-11,ADULT SOCIAL CARE & HEALTH
Nottinghamshire County Council,04-03250,BARNBY COURT CARE HOME,Care,Residential Care,"1,800.00",0,"1,800.00",20-Jul-11,ADULT SOCIAL CARE & HEALTH
Nottinghamshire County Council,04-03251,BARNBY COURT CARE HOME,Care,Residential Care,"1,800.00",0,"1,800.00",20-Jul-11,ADULT SOCIAL CARE & HEALTH
Nottinghamshire County Council,04-03252,BARNBY COURT CARE HOME,Care,Residential Care,"1,800.00",0,"1,800.00",20-Jul-11,ADULT SOCIAL CARE & HEALTH
Nottinghamshire County Council,04-03254,BARNBY COURT CARE HOME,Care,Residential Care,"1,800.00",0,"1,800.00",20-Jul-11,ADULT SOCIAL CARE & HEALTH
Nottinghamshire County Council,04-03255,BARNBY COURT CARE HOME,Care,Residential Care,"1,800.00",0,"1,800.00",20-Jul-11,ADULT SOCIAL CARE & HEALTH
Nottinghamshire County Council,04-03256,BARNBY COURT CARE HOME,Care,Residential Care,"1,800.00",0,"1,800.00",20-Jul-11,ADULT SOCIAL CARE & HEALTH
Nottinghamshire County Council,04-03258,BARNBY COURT CARE HOME,Care,Residential Care,"1,800.00",0,"1,800.00",20-Jul-11,ADULT SOCIAL CARE & HEALTH
Nottinghamshire County Council,04-03249,BARNBY COURT CARE HOME,Care,Residential Care,40,0,40,20-Jul-11,ADULT SOCIAL CARE & HEALTH
Nottinghamshire County Council,04-02567,BARNETT WADDINGHAM LLP,Professional Services,Legal Services,"9,336.25","1,867.25","11,203.50",19-Jul-11,RESOURCES
Nottinghamshire County Council,04-06284,BARNSLEY PREMIER LEISURE,External Services (Highways And Culture),Sports And Recreational Equipment And Supplies,"4,733.33",946.67,"5,680.00",22-Jul-11,CHILDREN & YOUNG PEOPLE
Nottinghamshire County Council,04-04631,BARROW HALL,Care,Residential Care,"1,967.64",0,"1,967.64",20-Jul-11,ADULT SOCIAL CARE & HEALTH
Nottinghamshire County Council,04-04631,BARROW HALL,Care,Residential Care,434.8,0,434.8,20-Jul-11,ADULT SOCIAL CARE & HEALTH
Nottinghamshire County Council,04-07136,BASSETLAW ASSOCIATION FOR MENTAL HEALTH LIMITED,Care,Healthcare Services,"10,000.00",0,"10,000.00",29-Jul-11,ADULT SOCIAL CARE & HEALTH
Nottinghamshire County Council,04-00939,BASSETLAW CITIZENS ADVICE BUREAU LIMITED,Care,Community And Social Services,"5,134.00",0,"5,134.00",26-Jul-11,COMMUNITIES
Nottinghamshire County Council,04-00220,BASSETLAW COMMUNITY HEALTH,Care,Healthcare Services,"67,468.75",0,"67,468.75",07-Jul-11,ADULT SOCIAL CARE & HEALTH
Nottinghamshire County Council,04-00220,BASSETLAW COMMUNITY HEALTH,Care,Healthcare Services,"-9,143.00",0,"-9,143.00",07-Jul-11,ADULT SOCIAL CARE & HEALTH
Nottinghamshire County Council,04-02445,BASSETLAW DISTRICT COUNCIL,Grants And Loans                        ,Grants And Loans                        ,"51,896.39",0,"51,896.39",21-Jul-11,ADULT SOCIAL CARE & HEALTH
Nottinghamshire County Council,04-01665,BASSETLAW LEARNING DISABILITY ASSOCIATION,Care,Community And Social Services,"4,500.00",0,"4,500.00",25-Jul-11,ADULT SOCIAL CARE & HEALTH
Nottinghamshire County Council,04-00807,BASSETLAW PLAY FORUM,Care,Infant Or Child Daycare Services,"3,075.00",0,"3,075.00",07-Jul-11,CHILDREN & YOUNG PEOPLE
Nottinghamshire County Council,04-07367,BASSETLAW PRIMARY CARE TRUST,Care,Healthcare Services,532.22,0,532.22,29-Jul-11,ADULT SOCIAL CARE & HEALTH
Nottinghamshire County Council,04-05194,BASSINGHAM NURSING HOME,Care,Residential Care,"1,595.72",0,"1,595.72",20-Jul-11,ADULT SOCIAL CARE & HEALTH
Nottinghamshire County Council,04-05194,BASSINGHAM NURSING HOME,Care,Residential Care,468.4,0,468.4,20-Jul-11,ADULT SOCIAL CARE & HEALTH
Nottinghamshire County Council,04-01245,BATCHMIX LIMITED,Hard Facilities Management ,Concrete Installation And Repair Services,953.1,190.62,"1,143.72",12-Jul-11,COMMUNITIES
Nottinghamshire County Council,04-01244,BATCHMIX LIMITED,Hard Facilities Management ,Concrete Installation And Repair Services,535.86,107.17,643.03,12-Jul-11,COMMUNITIES
Nottinghamshire County Council,04-00545,BBC,ICT,Telecommunications And Media,783.18,156.64,939.82,01-Jul-11,COMMUNITIES
Nottinghamshire County Council,04-00546,BBC,ICT,Telecommunications And Media,612.42,122.48,734.9,01-Jul-11,COMMUNITIES
Nottinghamshire County Council,04-00517,BCB COATED STONE LIMITED,External Services (Highways And Culture),Highways And Works,642.63,128.53,771.16,01-Jul-11,COMMUNITIES
Nottinghamshire County Council,04-00066,BDF SOLUTIONS LIMITED,People,Vocational Training,"1,447.00",289.4,"1,736.40",25-Jul-11,RESOURCES
Nottinghamshire County Council,04-00434,BDF SOLUTIONS LIMITED,People,Vocational Training,"1,447.00",289.4,"1,736.40",25-Jul-11,RESOURCES
Nottinghamshire County Council,04-07282,BDR VOICE & DATE SOLUTIONS LTD,ICT,Telecommunications & Media,478,95.6,573.6,27-Jul-11,CHILDREN & YOUNG PEOPLE
Nottinghamshire County Council,04-00016,BEATRICE COURT NURSING HOME,Care,Residential Care,-964.29,0,-964.29,28-Jul-11,ADULT SOCIAL CARE & HEALTH
Nottinghamshire County Council,04-00101,BEATRICE COURT NURSING HOME,Care,Residential Care,964.29,0,964.29,28-Jul-11,ADULT SOCIAL CARE & HEALTH
Nottinghamshire County Council,04-00049,BEAUFORT CONSTRUCTION (S-IN-A) LIMITED,Hard Facilities Management ,Building Construction Services,"25,620.00","5,124.00","30,744.00",11-Jul-11,RESOURCES
Nottinghamshire County Council,04-00017,BEAUFORT CONSTRUCTION (S-IN-A) LIMITED,Hard Facilities Management ,Building Construction Services,"-2,200.00",-440,"-2,640.00",11-Jul-11,RESOURCES
Nottinghamshire County Council,04-00050,BEAUFORT CONSTRUCTION (S-IN-A) LIMITED,Hard Facilities Management ,Building Construction Services,"1,930.00",386,"2,316.00",11-Jul-11,TBC
Nottinghamshire County Council,04-02651,BEAUVALE COURT,Care,Residential Care,-937.43,0,-937.43,20-Jul-11,ADULT SOCIAL CARE & HEALTH
Nottinghamshire County Council,04-02659,BEAUVALE COURT,Care,Residential Care,"1,544.00",0,"1,544.00",20-Jul-11,ADULT SOCIAL CARE & HEALTH
Nottinghamshire County Council,04-02649,BEAUVALE COURT,Care,Residential Care,"-1,712.00",0,"-1,712.00",20-Jul-11,ADULT SOCIAL CARE & HEALTH
Nottinghamshire County Council,04-02646,BEAUVALE COURT,Care,Residential Care,"1,724.00",0,"1,724.00",20-Jul-11,ADULT SOCIAL CARE & HEALTH
Nottinghamshire County Council,04-02663,BEAUVALE COURT,Care,Residential Care,"1,544.00",0,"1,544.00",20-Jul-11,ADULT SOCIAL CARE & HEALTH
Nottinghamshire County Council,04-02655,BEAUVALE COURT,Care,Residential Care,"1,544.00",0,"1,544.00",20-Jul-11,ADULT SOCIAL CARE & HEALTH
Nottinghamshire County Council,04-02658,BEAUVALE COURT,Care,Residential Care,"1,544.00",0,"1,544.00",20-Jul-11,ADULT SOCIAL CARE & HEALTH
Nottinghamshire County Council,04-02654,BEAUVALE COURT,Care,Residential Care,"1,712.00",0,"1,712.00",20-Jul-11,ADULT SOCIAL CARE & HEALTH
Nottinghamshire County Council,04-02656,BEAUVALE COURT,Care,Residential Care,"1,712.00",0,"1,712.00",20-Jul-11,ADULT SOCIAL CARE & HEALTH
Nottinghamshire County Council,04-02657,BEAUVALE COURT,Care,Residential Care,"1,712.00",0,"1,712.00",20-Jul-11,ADULT SOCIAL CARE & HEALTH
Nottinghamshire County Council,04-02660,BEAUVALE COURT,Care,Residential Care,"3,092.00",0,"3,092.00",20-Jul-11,ADULT SOCIAL CARE & HEALTH
Nottinghamshire County Council,04-02661,BEAUVALE COURT,Care,Residential Care,"1,956.57",0,"1,956.57",20-Jul-11,ADULT SOCIAL CARE & HEALTH
Nottinghamshire County Council,04-02661,BEAUVALE COURT,Care,Residential Care,856,0,856,20-Jul-11,ADULT SOCIAL CARE & HEALTH
Nottinghamshire County Council,04-02648,BEAUVALE COURT,Care,Residential Care,"3,694.29",0,"3,694.29",20-Jul-11,ADULT SOCIAL CARE & HEALTH
Nottinghamshire County Council,04-02652,BEAUVALE COURT,Care,Residential Care,"1,724.00",0,"1,724.00",20-Jul-11,ADULT SOCIAL CARE & HEALTH
Nottinghamshire County Council,04-02653,BEAUVALE COURT,Care,Residential Care,"1,724.00",0,"1,724.00",20-Jul-11,ADULT SOCIAL CARE & HEALTH
Nottinghamshire County Council,04-02662,BEAUVALE COURT,Care,Residential Care,"1,724.00",0,"1,724.00",20-Jul-11,ADULT SOCIAL CARE & HEALTH
Nottinghamshire County Council,04-02664,BEAUVALE COURT,Care,Residential Care,"1,724.00",0,"1,724.00",20-Jul-11,ADULT SOCIAL CARE & HEALTH
Nottinghamshire County Council,04-02647,BEAUVALE COURT,Care,Residential Care,"1,872.00",0,"1,872.00",20-Jul-11,ADULT SOCIAL CARE & HEALTH
Nottinghamshire County Council,04-02650,BEAUVALE COURT,Care,Residential Care,"1,724.00",0,"1,724.00",20-Jul-11,ADULT SOCIAL CARE & HEALTH
Nottinghamshire County Council,04-02647,BEAUVALE COURT,Care,Residential Care,60,0,60,20-Jul-11,ADULT SOCIAL CARE & HEALTH
Nottinghamshire County Council,04-02650,BEAUVALE COURT,Care,Residential Care,20,0,20,20-Jul-11,ADULT SOCIAL CARE & HEALTH
Nottinghamshire County Council,04-02651,BEAUVALE COURT,Care,Residential Care,-72.86,0,-72.86,20-Jul-11,ADULT SOCIAL CARE & HEALTH
Nottinghamshire County Council,04-02655,BEAUVALE COURT,Care,Residential Care,20,0,20,20-Jul-11,ADULT SOCIAL CARE & HEALTH
Nottinghamshire County Council,04-02657,BEAUVALE COURT,Care,Residential Care,120,0,120,20-Jul-11,ADULT SOCIAL CARE & HEALTH
Nottinghamshire County Council,04-02658,BEAUVALE COURT,Care,Residential Care,80,0,80,20-Jul-11,ADULT SOCIAL CARE & HEALTH
Nottinghamshire County Council,04-02646,BEAUVALE COURT,Care,Residential Care,434.8,0,434.8,20-Jul-11,ADULT SOCIAL CARE & HEALTH
Nottinghamshire County Council,04-02647,BEAUVALE COURT,Care,Residential Care,434.8,0,434.8,20-Jul-11,ADULT SOCIAL CARE & HEALTH
Nottinghamshire County Council,04-02648,BEAUVALE COURT,Care,Residential Care,931.71,0,931.71,20-Jul-11,ADULT SOCIAL CARE & HEALTH
Nottinghamshire County Council,04-02650,BEAUVALE COURT,Care,Residential Care,434.8,0,434.8,20-Jul-11,ADULT SOCIAL CARE & HEALTH
Nottinghamshire County Council,04-02652,BEAUVALE COURT,Care,Residential Care,434.8,0,434.8,20-Jul-11,ADULT SOCIAL CARE & HEALTH
Nottinghamshire County Council,04-02653,BEAUVALE COURT,Care,Residential Care,434.8,0,434.8,20-Jul-11,ADULT SOCIAL CARE & HEALTH
Nottinghamshire County Council,04-02662,BEAUVALE COURT,Care,Residential Care,434.8,0,434.8,20-Jul-11,ADULT SOCIAL CARE & HEALTH
Nottinghamshire County Council,04-02664,BEAUVALE COURT,Care,Residential Care,434.8,0,434.8,20-Jul-11,ADULT SOCIAL CARE & HEALTH
Nottinghamshire County Council,04-05323,BECAUSE WE CARE,Care,Residential Care,"5,000.00",0,"5,000.00",20-Jul-11,ADULT SOCIAL CARE & HEALTH
Nottinghamshire County Council,04-01135,BEECH COURT CARE HOME,Care,Residential Care,944,0,944,07-Jul-11,ADULT SOCIAL CARE & HEALTH
Nottinghamshire County Council,04-04552,BEECH COURT CARE HOME,Care,Residential Care,"1,888.00",0,"1,888.00",20-Jul-11,ADULT SOCIAL CARE & HEALTH
Nottinghamshire County Council,04-04553,BEECH COURT CARE HOME,Care,Residential Care,"1,888.00",0,"1,888.00",20-Jul-11,ADULT SOCIAL CARE & HEALTH
Nottinghamshire County Council,04-04554,BEECH COURT CARE HOME,Care,Residential Care,"1,888.00",0,"1,888.00",20-Jul-11,ADULT SOCIAL CARE & HEALTH
Nottinghamshire County Council,04-04555,BEECH COURT CARE HOME,Care,Residential Care,"1,888.00",0,"1,888.00",20-Jul-11,ADULT SOCIAL CARE & HEALTH
Nottinghamshire County Council,04-04553,BEECH COURT CARE HOME,Care,Residential Care,186.36,0,186.36,20-Jul-11,ADULT SOCIAL CARE & HEALTH
Nottinghamshire County Council,04-03624,BEECH HOUSE CARE HOME,Care,Residential Care,"-1,477.72",0,"-1,477.72",20-Jul-11,ADULT SOCIAL CARE & HEALTH
Nottinghamshire County Council,04-03626,BEECH HOUSE CARE HOME,Care,Residential Care,"1,888.00",0,"1,888.00",20-Jul-11,ADULT SOCIAL CARE & HEALTH
Nottinghamshire County Council,04-03610,BEECH HOUSE CARE HOME,Care,Residential Care,"1,888.00",0,"1,888.00",20-Jul-11,ADULT SOCIAL CARE & HEALTH
Nottinghamshire County Council,04-03611,BEECH HOUSE CARE HOME,Care,Residential Care,"1,888.00",0,"1,888.00",20-Jul-11,ADULT SOCIAL CARE & HEALTH
Nottinghamshire County Council,04-03612,BEECH HOUSE CARE HOME,Care,Residential Care,"1,888.00",0,"1,888.00",20-Jul-11,ADULT SOCIAL CARE & HEALTH
Nottinghamshire County Council,04-03613,BEECH HOUSE CARE HOME,Care,Residential Care,"1,888.00",0,"1,888.00",20-Jul-11,ADULT SOCIAL CARE & HEALTH
Nottinghamshire County Council,04-03614,BEECH HOUSE CARE HOME,Care,Residential Care,"1,888.00",0,"1,888.00",20-Jul-11,ADULT SOCIAL CARE & HEALTH
Nottinghamshire County Council,04-03615,BEECH HOUSE CARE HOME,Care,Residential Care,"1,888.00",0,"1,888.00",20-Jul-11,ADULT SOCIAL CARE & HEALTH
Nottinghamshire County Council,04-03616,BEECH HOUSE CARE HOME,Care,Residential Care,"1,888.00",0,"1,888.00",20-Jul-11,ADULT SOCIAL CARE & HEALTH
Nottinghamshire County Council,04-03617,BEECH HOUSE CARE HOME,Care,Residential Care,"1,888.00",0,"1,888.00",20-Jul-11,ADULT SOCIAL CARE & HEALTH
Nottinghamshire County Council,04-03618,BEECH HOUSE CARE HOME,Care,Residential Care,"1,888.00",0,"1,888.00",20-Jul-11,ADULT SOCIAL CARE & HEALTH
Nottinghamshire County Council,04-03619,BEECH HOUSE CARE HOME,Care,Residential Care,"1,888.00",0,"1,888.00",20-Jul-11,ADULT SOCIAL CARE & HEALTH
Nottinghamshire County Council,04-03620,BEECH HOUSE CARE HOME,Care,Residential Care,"2,697.14",0,"2,697.14",20-Jul-11,ADULT SOCIAL CARE & HEALTH
Nottinghamshire County Council,04-03621,BEECH HOUSE CARE HOME,Care,Residential Care,"1,888.00",0,"1,888.00",20-Jul-11,ADULT SOCIAL CARE & HEALTH
Nottinghamshire County Council,04-03622,BEECH HOUSE CARE HOME,Care,Residential Care,"1,888.00",0,"1,888.00",20-Jul-11,ADULT SOCIAL CARE & HEALTH
Nottinghamshire County Council,04-03623,BEECH HOUSE CARE HOME,Care,Residential Care,"1,888.00",0,"1,888.00",20-Jul-11,ADULT SOCIAL CARE & HEALTH
Nottinghamshire County Council,04-03625,BEECH HOUSE CARE HOME,Care,Residential Care,"1,888.00",0,"1,888.00",20-Jul-11,ADULT SOCIAL CARE & HEALTH
Nottinghamshire County Council,04-03624,BEECH HOUSE CARE HOME,Care,Residential Care,-92.57,0,-92.57,20-Jul-11,ADULT SOCIAL CARE & HEALTH
Nottinghamshire County Council,04-01125,BEECH TREE HALL,Care,Residential Care,"18,396.43",0,"18,396.43",07-Jul-11,ADULT SOCIAL CARE & HEALTH
Nottinghamshire County Council,04-04276,BEECH TREE HALL,Care,Residential Care,"5,100.00",0,"5,100.00",20-Jul-11,ADULT SOCIAL CARE & HEALTH
Nottinghamshire County Council,04-01125,BEECH TREE HALL,Care,Residential Care,"-8,308.03",0,"-8,308.03",07-Jul-11,ADULT SOCIAL CARE & HEALTH
Nottinghamshire County Council,04-01127,BEECH TREE HALL,Care,Residential Care,"13,778.38",0,"13,778.38",07-Jul-11,ADULT SOCIAL CARE & HEALTH
Nottinghamshire County Council,04-01128,BEECH TREE HALL,Care,Residential Care,"12,032.82",0,"12,032.82",07-Jul-11,ADULT SOCIAL CARE & HEALTH
Nottinghamshire County Council,04-04278,BEECH TREE HALL,Care,Residential Care,"7,148.00",0,"7,148.00",20-Jul-11,ADULT SOCIAL CARE & HEALTH
Nottinghamshire County Council,04-04279,BEECH TREE HALL,Care,Residential Care,"6,960.00",0,"6,960.00",20-Jul-11,ADULT SOCIAL CARE & HEALTH
Nottinghamshire County Council,04-01126,BEECH TREE HALL,Care,Residential Care,"16,627.60",0,"16,627.60",07-Jul-11,ADULT SOCIAL CARE & HEALTH
Nottinghamshire County Council,04-04277,BEECH TREE HALL,Care,Residential Care,"8,313.80",0,"8,313.80",20-Jul-11,ADULT SOCIAL CARE & HEALTH
Nottinghamshire County Council,04-05188,BEECHDALE HOUSE NURSING HOME,Care,Residential Care,"1,046.71",0,"1,046.71",20-Jul-11,ADULT SOCIAL CARE & HEALTH
Nottinghamshire County Council,04-07007,BEECHDALE HOUSE NURSING HOME,Care,Residential Care,"1,724.00",0,"1,724.00",28-Jul-11,ADULT SOCIAL CARE & HEALTH
Nottinghamshire County Council,04-05188,BEECHDALE HOUSE NURSING HOME,Care,Residential Care,121.43,0,121.43,20-Jul-11,ADULT SOCIAL CARE & HEALTH
Nottinghamshire County Council,04-07007,BEECHDALE HOUSE NURSING HOME,Care,Residential Care,200,0,200,28-Jul-11,ADULT SOCIAL CARE & HEALTH
Nottinghamshire County Council,04-05188,BEECHDALE HOUSE NURSING HOME,Care,Residential Care,263.99,0,263.99,20-Jul-11,ADULT SOCIAL CARE & HEALTH
Nottinghamshire County Council,04-07007,BEECHDALE HOUSE NURSING HOME,Care,Residential Care,434.8,0,434.8,28-Jul-11,ADULT SOCIAL CARE & HEALTH
Nottinghamshire County Council,04-00244,BEECHDALE HOUSE NURSING HOME,Care,Residential Care,-760.9,0,-760.9,20-Jul-11,ADULT SOCIAL CARE & HEALTH
Nottinghamshire County Council,04-02665,BEECHDENE CARE HOME,Care,Residential Care,"1,472.08",0,"1,472.08",20-Jul-11,ADULT SOCIAL CARE & HEALTH
Nottinghamshire County Council,04-02667,BEECHDENE CARE HOME,Care,Residential Care,"1,472.08",0,"1,472.08",20-Jul-11,ADULT SOCIAL CARE & HEALTH
Nottinghamshire County Council,04-02669,BEECHDENE CARE HOME,Care,Residential Care,"1,472.08",0,"1,472.08",20-Jul-11,ADULT SOCIAL CARE & HEALTH
Nottinghamshire County Council,04-02670,BEECHDENE CARE HOME,Care,Residential Care,"1,472.08",0,"1,472.08",20-Jul-11,ADULT SOCIAL CARE & HEALTH
Nottinghamshire County Council,04-02671,BEECHDENE CARE HOME,Care,Residential Care,"1,472.08",0,"1,472.08",20-Jul-11,ADULT SOCIAL CARE & HEALTH
Nottinghamshire County Council,04-02674,BEECHDENE CARE HOME,Care,Residential Care,"1,472.08",0,"1,472.08",20-Jul-11,ADULT SOCIAL CARE & HEALTH
Nottinghamshire County Council,04-02675,BEECHDENE CARE HOME,Care,Residential Care,"1,472.08",0,"1,472.08",20-Jul-11,ADULT SOCIAL CARE & HEALTH
Nottinghamshire County Council,04-02676,BEECHDENE CARE HOME,Care,Residential Care,"1,664.64",0,"1,664.64",20-Jul-11,ADULT SOCIAL CARE & HEALTH
Nottinghamshire County Council,04-02668,BEECHDENE CARE HOME,Care,Residential Care,914.29,0,914.29,20-Jul-11,ADULT SOCIAL CARE & HEALTH
Nottinghamshire County Council,04-02672,BEECHDENE CARE HOME,Care,Residential Care,"1,472.08",0,"1,472.08",20-Jul-11,ADULT SOCIAL CARE & HEALTH
Nottinghamshire County Council,04-06771,BEECHDENE CARE HOME,Care,Residential Care,685.71,0,685.71,28-Jul-11,ADULT SOCIAL CARE & HEALTH
Nottinghamshire County Council,04-02673,BEECHDENE CARE HOME,Care,Residential Care,"1,716.00",0,"1,716.00",20-Jul-11,ADULT SOCIAL CARE & HEALTH
Nottinghamshire County Council,04-02666,BEECHDENE CARE HOME,Care,Residential Care,"1,472.08",0,"1,472.08",20-Jul-11,ADULT SOCIAL CARE & HEALTH
Nottinghamshire County Council,04-02200,BEECHWOOD TAXIS,Transport And Travel,Taxi,513,0,513,14-Jul-11,CHILDREN & YOUNG PEOPLE
Nottinghamshire County Council,04-06442,BEES KNEES,External Services (Highways And Culture),Farming Forestry And Wildlife Services,660,0,660,27-Jul-11,ADULT SOCIAL CARE & HEALTH
Nottinghamshire County Council,04-05169,BEESTON LODGE CARE HOME,Care,Residential Care,"1,392.00",0,"1,392.00",20-Jul-11,ADULT SOCIAL CARE & HEALTH
Nottinghamshire County Council,04-05171,BEESTON LODGE CARE HOME,Care,Residential Care,"1,392.00",0,"1,392.00",20-Jul-11,ADULT SOCIAL CARE & HEALTH
Nottinghamshire County Council,04-05174,BEESTON LODGE CARE HOME,Care,Residential Care,"1,392.00",0,"1,392.00",20-Jul-11,ADULT SOCIAL CARE & HEALTH
Nottinghamshire County Council,04-05178,BEESTON LODGE CARE HOME,Care,Residential Care,963,0,963,20-Jul-11,ADULT SOCIAL CARE & HEALTH
Nottinghamshire County Council,04-05165,BEESTON LODGE CARE HOME,Care,Residential Care,"1,436.00",0,"1,436.00",20-Jul-11,ADULT SOCIAL CARE & HEALTH
Nottinghamshire County Council,04-05173,BEESTON LODGE CARE HOME,Care,Residential Care,"1,436.00",0,"1,436.00",20-Jul-11,ADULT SOCIAL CARE & HEALTH
Nottinghamshire County Council,04-05177,BEESTON LODGE CARE HOME,Care,Residential Care,"-5,264.14",0,"-5,264.14",20-Jul-11,ADULT SOCIAL CARE & HEALTH
Nottinghamshire County Council,04-05167,BEESTON LODGE CARE HOME,Care,Residential Care,"1,504.00",0,"1,504.00",20-Jul-11,ADULT SOCIAL CARE & HEALTH
Nottinghamshire County Council,04-05168,BEESTON LODGE CARE HOME,Care,Residential Care,"1,764.00",0,"1,764.00",20-Jul-11,ADULT SOCIAL CARE & HEALTH
Nottinghamshire County Council,04-05176,BEESTON LODGE CARE HOME,Care,Residential Care,"1,544.00",0,"1,544.00",20-Jul-11,ADULT SOCIAL CARE & HEALTH
Nottinghamshire County Council,04-05179,BEESTON LODGE CARE HOME,Care,Residential Care,"1,504.00",0,"1,504.00",20-Jul-11,ADULT SOCIAL CARE & HEALTH
Nottinghamshire County Council,04-05180,BEESTON LODGE CARE HOME,Care,Residential Care,"1,504.00",0,"1,504.00",20-Jul-11,ADULT SOCIAL CARE & HEALTH
Nottinghamshire County Council,04-05182,BEESTON LODGE CARE HOME,Care,Residential Care,"1,504.00",0,"1,504.00",20-Jul-11,ADULT SOCIAL CARE & HEALTH
Nottinghamshire County Council,04-01936,BEESTON LODGE CARE HOME,Care,Residential Care,"1,819.71",0,"1,819.71",14-Jul-11,ADULT SOCIAL CARE & HEALTH
Nottinghamshire County Council,04-01937,BEESTON LODGE CARE HOME,Care,Residential Care,"5,669.43",0,"5,669.43",14-Jul-11,ADULT SOCIAL CARE & HEALTH
Nottinghamshire County Council,04-05166,BEESTON LODGE CARE HOME,Care,Residential Care,"1,544.00",0,"1,544.00",20-Jul-11,ADULT SOCIAL CARE & HEALTH
Nottinghamshire County Council,04-05170,BEESTON LODGE CARE HOME,Care,Residential Care,"1,544.00",0,"1,544.00",20-Jul-11,ADULT SOCIAL CARE & HEALTH
Nottinghamshire County Council,04-05172,BEESTON LODGE CARE HOME,Care,Residential Care,-882.28,0,-882.28,20-Jul-11,ADULT SOCIAL CARE & HEALTH
Nottinghamshire County Council,04-05177,BEESTON LODGE CARE HOME,Care,Residential Care,"1,544.00",0,"1,544.00",20-Jul-11,ADULT SOCIAL CARE & HEALTH
Nottinghamshire County Council,04-05181,BEESTON LODGE CARE HOME,Care,Residential Care,"1,824.00",0,"1,824.00",20-Jul-11,ADULT SOCIAL CARE & HEALTH
Nottinghamshire County Council,04-05183,BEESTON LODGE CARE HOME,Care,Residential Care,"1,544.00",0,"1,544.00",20-Jul-11,ADULT SOCIAL CARE & HEALTH
Nottinghamshire County Council,04-05175,BEESTON LODGE CARE HOME,Care,Residential Care,850,0,850,20-Jul-11,ADULT SOCIAL CARE & HEALTH
Nottinghamshire County Council,04-01937,BEESTON LODGE CARE HOME,Care,Residential Care,"1,568.39",0,"1,568.39",14-Jul-11,ADULT SOCIAL CARE & HEALTH
Nottinghamshire County Council,04-05166,BEESTON LODGE CARE HOME,Care,Residential Care,434.8,0,434.8,20-Jul-11,ADULT SOCIAL CARE & HEALTH
Nottinghamshire County Council,04-05167,BEESTON LODGE CARE HOME,Care,Residential Care,434.8,0,434.8,20-Jul-11,ADULT SOCIAL CARE & HEALTH
Nottinghamshire County Council,04-05168,BEESTON LODGE CARE HOME,Care,Residential Care,434.8,0,434.8,20-Jul-11,ADULT SOCIAL CARE & HEALTH
Nottinghamshire County Council,04-05170,BEESTON LODGE CARE HOME,Care,Residential Care,434.8,0,434.8,20-Jul-11,ADULT SOCIAL CARE & HEALTH
Nottinghamshire County Council,04-05176,BEESTON LODGE CARE HOME,Care,Residential Care,434.8,0,434.8,20-Jul-11,ADULT SOCIAL CARE & HEALTH
Nottinghamshire County Council,04-05177,BEESTON LODGE CARE HOME,Care,Residential Care,434.8,0,434.8,20-Jul-11,ADULT SOCIAL CARE & HEALTH
Nottinghamshire County Council,04-05179,BEESTON LODGE CARE HOME,Care,Residential Care,434.8,0,434.8,20-Jul-11,ADULT SOCIAL CARE & HEALTH
Nottinghamshire County Council,04-05180,BEESTON LODGE CARE HOME,Care,Residential Care,434.8,0,434.8,20-Jul-11,ADULT SOCIAL CARE & HEALTH
Nottinghamshire County Council,04-05181,BEESTON LODGE CARE HOME,Care,Residential Care,434.8,0,434.8,20-Jul-11,ADULT SOCIAL CARE & HEALTH
Nottinghamshire County Council,04-05182,BEESTON LODGE CARE HOME,Care,Residential Care,434.8,0,434.8,20-Jul-11,ADULT SOCIAL CARE & HEALTH
Nottinghamshire County Council,04-05183,BEESTON LODGE CARE HOME,Care,Residential Care,434.8,0,434.8,20-Jul-11,ADULT SOCIAL CARE & HEALTH
Nottinghamshire County Council,04-05175,BEESTON LODGE CARE HOME,Care,Residential Care,434.8,0,434.8,20-Jul-11,ADULT SOCIAL CARE & HEALTH
Nottinghamshire County Council,04-00644,BELSHAW COMPUTERS,ICT,Hardware,424.17,84.83,509,15-Jul-11,TBC
Nottinghamshire County Council,04-05505,BELVOIR VALE RESIDENTIAL HOME,Care,Residential Care,"3,299.00",0,"3,299.00",20-Jul-11,ADULT SOCIAL CARE & HEALTH
Nottinghamshire County Council,04-05502,BELVOIR VALE RESIDENTIAL HOME,Care,Residential Care,"1,724.00",0,"1,724.00",20-Jul-11,ADULT SOCIAL CARE & HEALTH
Nottinghamshire County Council,04-05503,BELVOIR VALE RESIDENTIAL HOME,Care,Residential Care,"2,648.00",0,"2,648.00",20-Jul-11,ADULT SOCIAL CARE & HEALTH
Nottinghamshire County Council,04-05504,BELVOIR VALE RESIDENTIAL HOME,Care,Residential Care,"1,724.00",0,"1,724.00",20-Jul-11,ADULT SOCIAL CARE & HEALTH
Nottinghamshire County Council,04-05506,BELVOIR VALE RESIDENTIAL HOME,Care,Residential Care,"1,724.00",0,"1,724.00",20-Jul-11,ADULT SOCIAL CARE & HEALTH
Nottinghamshire County Council,04-05507,BELVOIR VALE RESIDENTIAL HOME,Care,Residential Care,"1,888.00",0,"1,888.00",20-Jul-11,ADULT SOCIAL CARE & HEALTH
Nottinghamshire County Council,04-05502,BELVOIR VALE RESIDENTIAL HOME,Care,Residential Care,"1,496.00",0,"1,496.00",20-Jul-11,ADULT SOCIAL CARE & HEALTH
Nottinghamshire County Council,04-05507,BELVOIR VALE RESIDENTIAL HOME,Care,Residential Care,664,0,664,20-Jul-11,ADULT SOCIAL CARE & HEALTH
Nottinghamshire County Council,04-05608,BENARTY VIEW NURSING HOME,Care,Residential Care,"2,215.24",0,"2,215.24",20-Jul-11,ADULT SOCIAL CARE & HEALTH
Nottinghamshire County Council,04-01343,BERICS MOWING,External Services (Highways And Culture),Farming Forestry And Wildlife Services,"1,155.00",0,"1,155.00",07-Jul-11,COMMUNITIES
Nottinghamshire County Council,04-01345,BERICS MOWING,External Services (Highways And Culture),Farming Forestry And Wildlife Services,798,0,798,07-Jul-11,COMMUNITIES
Nottinghamshire County Council,04-01346,BERICS MOWING,External Services (Highways And Culture),Farming Forestry And Wildlife Services,"1,144.50",0,"1,144.50",07-Jul-11,COMMUNITIES
Nottinghamshire County Council,04-01347,BERICS MOWING,External Services (Highways And Culture),Farming Forestry And Wildlife Services,798,0,798,07-Jul-11,COMMUNITIES
Nottinghamshire County Council,04-01347,BERICS MOWING,External Services (Highways And Culture),Farming Forestry And Wildlife Services,147,0,147,07-Jul-11,COMMUNITIES
Nottinghamshire County Council,04-06254,BERICS MOWING,External Services (Highways And Culture),Farming Forestry And Wildlife Services,"1,134.00",0,"1,134.00",21-Jul-11,COMMUNITIES
Nottinghamshire County Council,04-06255,BERICS MOWING,External Services (Highways And Culture),Farming Forestry And Wildlife Services,"1,134.00",0,"1,134.00",21-Jul-11,COMMUNITIES
Nottinghamshire County Council,04-06257,BERICS MOWING,External Services (Highways And Culture),Farming Forestry And Wildlife Services,"1,018.50",0,"1,018.50",21-Jul-11,COMMUNITIES
Nottinghamshire County Council,04-06258,BERICS MOWING,External Services (Highways And Culture),Farming Forestry And Wildlife Services,"1,092.00",0,"1,092.00",21-Jul-11,COMMUNITIES
Nottinghamshire County Council,04-06668,BESTCHART LIMITED,ICT,Software,"1,995.65",399.13,"2,394.78",26-Jul-11,COMMUNITIES
Nottinghamshire County Council,04-06536,BESTECH SYSTEMS LIMITED,ICT,Software,0,"1,220.23","1,220.23",25-Jul-11,TBC
Nottinghamshire County Council,04-06536,BESTECH SYSTEMS LIMITED,ICT,Software,997.15,0,997.15,25-Jul-11,COMMUNITIES
Nottinghamshire County Council,04-06536,BESTECH SYSTEMS LIMITED,ICT,Software,"5,104.00",0,"5,104.00",25-Jul-11,COMMUNITIES
Nottinghamshire County Council,04-02019,BESTWOOD LODGE HOTEL,Transport And Travel,Hotels And Venues,972,0,972,14-Jul-11,CHILDREN & YOUNG PEOPLE
Nottinghamshire County Council,04-05741,BETTERCARE KEYS LIMITED,Care,Domiciliary Care,"3,250.03",0,"3,250.03",20-Jul-11,CHILDREN & YOUNG PEOPLE
Nottinghamshire County Council,04-05742,BETTERCARE KEYS LIMITED,Care,Domiciliary Care,"12,857.10",0,"12,857.10",20-Jul-11,CHILDREN & YOUNG PEOPLE
Nottinghamshire County Council,04-05743,BETTERCARE KEYS LIMITED,Care,Domiciliary Care,"12,857.10",0,"12,857.10",20-Jul-11,CHILDREN & YOUNG PEOPLE
Nottinghamshire County Council,04-05747,BETTERCARE KEYS LIMITED,Care,Domiciliary Care,"3,268.00",0,"3,268.00",20-Jul-11,CHILDREN & YOUNG PEOPLE
Nottinghamshire County Council,04-00858,BIC U K LIMITED,Soft Facilities Management,Office Supplies And Machines (Non It),976.46,195.29,"1,171.75",05-Jul-11,RESOURCES
Nottinghamshire County Council,04-01525,BIC U K LIMITED,Soft Facilities Management,Office Supplies And Machines (Non It),540.72,108.14,648.86,08-Jul-11,RESOURCES
Nottinghamshire County Council,04-01654,BIFFA WASTE SERVICES LIMITED,Soft Facilities Management,Environmental Services,484.56,96.91,581.47,15-Jul-11,COMMUNITIES
Nottinghamshire County Council,04-02044,BIFFA WASTE SERVICES LIMITED,Soft Facilities Management,Environmental Services,679.05,135.81,814.86,14-Jul-11,RESOURCES
Nottinghamshire County Council,04-01833,BILLY BOWIE SPECIAL PROJECTS LIMITED,Soft Facilities Management,Scrap And Waste Materials,"1,047.20",0,"1,047.20",18-Jul-11,COMMUNITIES
Nottinghamshire County Council,04-01833,BILLY BOWIE SPECIAL PROJECTS LIMITED,Soft Facilities Management,Scrap And Waste Materials,0,209.44,209.44,18-Jul-11,RESOURCES
Nottinghamshire County Council,04-04470,BKR UNIT,Care,Residential Care,"1,616.00",0,"1,616.00",20-Jul-11,ADULT SOCIAL CARE & HEALTH
Nottinghamshire County Council,04-04470,BKR UNIT,Care,Residential Care,80,0,80,20-Jul-11,ADULT SOCIAL CARE & HEALTH
Nottinghamshire County Council,04-02233,BLACKHEATH PRODUCTS LIMITED,Soft Facilities Management,Furniture And Furnishings,467.83,93.57,561.4,19-Jul-11,ADULT SOCIAL CARE & HEALTH
Nottinghamshire County Council,04-05597,BLACKWELL CARE CENTRE,Care,Residential Care,"1,547.56",0,"1,547.56",20-Jul-11,ADULT SOCIAL CARE & HEALTH
Nottinghamshire County Council,04-04849,BLENHEIM LODGE CARE CENTRE,Care,Residential Care,"1,902.16",0,"1,902.16",20-Jul-11,ADULT SOCIAL CARE & HEALTH
Nottinghamshire County Council,04-04850,BLENHEIM LODGE CARE CENTRE,Care,Residential Care,"1,852.00",0,"1,852.00",20-Jul-11,ADULT SOCIAL CARE & HEALTH
Nottinghamshire County Council,04-04851,BLENHEIM LODGE CARE CENTRE,Care,Residential Care,"1,902.16",0,"1,902.16",20-Jul-11,ADULT SOCIAL CARE & HEALTH
Nottinghamshire County Council,04-04849,BLENHEIM LODGE CARE CENTRE,Care,Residential Care,434.8,0,434.8,20-Jul-11,ADULT SOCIAL CARE & HEALTH
Nottinghamshire County Council,04-04851,BLENHEIM LODGE CARE CENTRE,Care,Residential Care,434.8,0,434.8,20-Jul-11,ADULT SOCIAL CARE & HEALTH
Nottinghamshire County Council,04-06634,BLUE BEAR AUDIO LIMITED,ICT,Audio And Visual Equipment,"4,950.00",990,"5,940.00",25-Jul-11,COMMUNITIES
Nottinghamshire County Council,04-06635,BLUE BEAR AUDIO LIMITED,ICT,Audio And Visual Equipment,"1,053.00",210.6,"1,263.60",25-Jul-11,COMMUNITIES
Nottinghamshire County Council,04-05692,BLUE MOUNTAIN HOMES LIMITED,Care,Residential Care,"12,000.00",0,"12,000.00",20-Jul-11,CHILDREN & YOUNG PEOPLE
Nottinghamshire County Council,04-05693,BLUE MOUNTAIN HOMES LIMITED,Care,Residential Care,"8,985.71",0,"8,985.71",20-Jul-11,CHILDREN & YOUNG PEOPLE
Nottinghamshire County Council,04-05215,BLUE SKIES,Care,Residential Care,"3,541.56",0,"3,541.56",20-Jul-11,ADULT SOCIAL CARE & HEALTH
Nottinghamshire County Council,04-05214,BLUE SKIES,Care,Residential Care,"4,365.96",0,"4,365.96",20-Jul-11,ADULT SOCIAL CARE & HEALTH
Nottinghamshire County Council,04-07039,BLUE SKY CARE LTD,Care,Residential Care,"64,452.00",0,"64,452.00",28-Jul-11,ADULT SOCIAL CARE & HEALTH
Nottinghamshire County Council,04-04895,BLUEBELL LODGE,Care,Residential Care,"1,816.00",0,"1,816.00",20-Jul-11,ADULT SOCIAL CARE & HEALTH
Nottinghamshire County Council,04-04897,BLUEBELL LODGE,Care,Residential Care,"3,437.43",0,"3,437.43",20-Jul-11,ADULT SOCIAL CARE & HEALTH
Nottinghamshire County Council,04-04898,BLUEBELL LODGE,Care,Residential Care,"1,816.00",0,"1,816.00",20-Jul-11,ADULT SOCIAL CARE & HEALTH
Nottinghamshire County Council,04-04902,BLUEBELL LODGE,Care,Residential Care,"1,816.00",0,"1,816.00",20-Jul-11,ADULT SOCIAL CARE & HEALTH
Nottinghamshire County Council,04-04904,BLUEBELL LODGE,Care,Residential Care,"1,816.00",0,"1,816.00",20-Jul-11,ADULT SOCIAL CARE & HEALTH
Nottinghamshire County Council,04-04905,BLUEBELL LODGE,Care,Residential Care,"1,816.00",0,"1,816.00",20-Jul-11,ADULT SOCIAL CARE & HEALTH
Nottinghamshire County Council,04-04907,BLUEBELL LODGE,Care,Residential Care,"1,816.00",0,"1,816.00",20-Jul-11,ADULT SOCIAL CARE & HEALTH
Nottinghamshire County Council,04-04916,BLUEBELL LODGE,Care,Residential Care,"1,816.00",0,"1,816.00",20-Jul-11,ADULT SOCIAL CARE & HEALTH
Nottinghamshire County Council,04-04893,BLUEBELL LODGE,Care,Residential Care,"1,980.00",0,"1,980.00",20-Jul-11,ADULT SOCIAL CARE & HEALTH
Nottinghamshire County Council,04-04894,BLUEBELL LODGE,Care,Residential Care,"1,980.00",0,"1,980.00",20-Jul-11,ADULT SOCIAL CARE & HEALTH
Nottinghamshire County Council,04-04896,BLUEBELL LODGE,Care,Residential Care,"1,979.99",0,"1,979.99",20-Jul-11,ADULT SOCIAL CARE & HEALTH
Nottinghamshire County Council,04-04900,BLUEBELL LODGE,Care,Residential Care,"1,980.00",0,"1,980.00",20-Jul-11,ADULT SOCIAL CARE & HEALTH
Nottinghamshire County Council,04-04901,BLUEBELL LODGE,Care,Residential Care,"1,980.00",0,"1,980.00",20-Jul-11,ADULT SOCIAL CARE & HEALTH
Nottinghamshire County Council,04-04903,BLUEBELL LODGE,Care,Residential Care,"1,980.00",0,"1,980.00",20-Jul-11,ADULT SOCIAL CARE & HEALTH
Nottinghamshire County Council,04-04906,BLUEBELL LODGE,Care,Residential Care,"1,980.00",0,"1,980.00",20-Jul-11,ADULT SOCIAL CARE & HEALTH
Nottinghamshire County Council,04-04909,BLUEBELL LODGE,Care,Residential Care,"1,980.00",0,"1,980.00",20-Jul-11,ADULT SOCIAL CARE & HEALTH
Nottinghamshire County Council,04-04910,BLUEBELL LODGE,Care,Residential Care,"1,980.00",0,"1,980.00",20-Jul-11,ADULT SOCIAL CARE & HEALTH
Nottinghamshire County Council,04-04911,BLUEBELL LODGE,Care,Residential Care,"1,980.00",0,"1,980.00",20-Jul-11,ADULT SOCIAL CARE & HEALTH
Nottinghamshire County Council,04-04912,BLUEBELL LODGE,Care,Residential Care,"7,199.14",0,"7,199.14",20-Jul-11,ADULT SOCIAL CARE & HEALTH
Nottinghamshire County Council,04-04914,BLUEBELL LODGE,Care,Residential Care,"1,980.00",0,"1,980.00",20-Jul-11,ADULT SOCIAL CARE & HEALTH
Nottinghamshire County Council,04-04915,BLUEBELL LODGE,Care,Residential Care,"1,980.00",0,"1,980.00",20-Jul-11,ADULT SOCIAL CARE & HEALTH
Nottinghamshire County Council,04-04917,BLUEBELL LODGE,Care,Residential Care,"1,980.00",0,"1,980.00",20-Jul-11,ADULT SOCIAL CARE & HEALTH
Nottinghamshire County Council,04-04918,BLUEBELL LODGE,Care,Residential Care,"1,980.00",0,"1,980.00",20-Jul-11,ADULT SOCIAL CARE & HEALTH
Nottinghamshire County Council,04-04920,BLUEBELL LODGE,Care,Residential Care,"1,980.00",0,"1,980.00",20-Jul-11,ADULT SOCIAL CARE & HEALTH
Nottinghamshire County Council,04-04899,BLUEBELL LODGE,Care,Residential Care,"2,144.00",0,"2,144.00",20-Jul-11,ADULT SOCIAL CARE & HEALTH
Nottinghamshire County Council,04-04908,BLUEBELL LODGE,Care,Residential Care,"1,816.00",0,"1,816.00",20-Jul-11,ADULT SOCIAL CARE & HEALTH
Nottinghamshire County Council,04-04919,BLUEBELL LODGE,Care,Residential Care,"1,816.00",0,"1,816.00",20-Jul-11,ADULT SOCIAL CARE & HEALTH
Nottinghamshire County Council,04-04913,BLUEBELL LODGE,Care,Residential Care,"1,980.00",0,"1,980.00",20-Jul-11,ADULT SOCIAL CARE & HEALTH
Nottinghamshire County Council,04-04899,BLUEBELL LODGE,Care,Residential Care,434.8,0,434.8,20-Jul-11,ADULT SOCIAL CARE & HEALTH
Nottinghamshire County Council,04-01045,BLUEPRINT (NOTTINGHAM) LIMITED,Professional Services,"Reproduction, Photographic And Design Services","2,063.07",0,"2,063.07",08-Jul-11,RESOURCES
Nottinghamshire County Council,04-01045,BLUEPRINT (NOTTINGHAM) LIMITED,Professional Services,"Reproduction, Photographic And Design Services","2,063.07",0,"2,063.07",08-Jul-11,RESOURCES
Nottinghamshire County Council,04-01045,BLUEPRINT (NOTTINGHAM) LIMITED,Professional Services,"Reproduction, Photographic And Design Services",697.5,0,697.5,08-Jul-11,RESOURCES
Nottinghamshire County Council,04-01045,BLUEPRINT (NOTTINGHAM) LIMITED,Professional Services,"Reproduction, Photographic And Design Services","2,283.40",0,"2,283.40",08-Jul-11,RESOURCES
Nottinghamshire County Council,04-01045,BLUEPRINT (NOTTINGHAM) LIMITED,Professional Services,"Reproduction, Photographic And Design Services","2,768.04",0,"2,768.04",08-Jul-11,RESOURCES
Nottinghamshire County Council,04-04881,BLYTH COUNTRY HOUSE CARE HOME,Care,Residential Care,"2,282.80",0,"2,282.80",20-Jul-11,ADULT SOCIAL CARE & HEALTH
Nottinghamshire County Council,04-04885,BLYTH COUNTRY HOUSE CARE HOME,Care,Residential Care,"1,724.00",0,"1,724.00",20-Jul-11,ADULT SOCIAL CARE & HEALTH
Nottinghamshire County Council,04-04886,BLYTH COUNTRY HOUSE CARE HOME,Care,Residential Care,"1,724.00",0,"1,724.00",20-Jul-11,ADULT SOCIAL CARE & HEALTH
Nottinghamshire County Council,04-04887,BLYTH COUNTRY HOUSE CARE HOME,Care,Residential Care,"1,724.00",0,"1,724.00",20-Jul-11,ADULT SOCIAL CARE & HEALTH
Nottinghamshire County Council,04-04889,BLYTH COUNTRY HOUSE CARE HOME,Care,Residential Care,"1,724.00",0,"1,724.00",20-Jul-11,ADULT SOCIAL CARE & HEALTH
Nottinghamshire County Council,04-06964,BLYTH COUNTRY HOUSE CARE HOME,Care,Residential Care,"3,448.00",0,"3,448.00",28-Jul-11,ADULT SOCIAL CARE & HEALTH
Nottinghamshire County Council,04-04883,BLYTH COUNTRY HOUSE CARE HOME,Care,Residential Care,"1,904.00",0,"1,904.00",20-Jul-11,ADULT SOCIAL CARE & HEALTH
Nottinghamshire County Council,04-04884,BLYTH COUNTRY HOUSE CARE HOME,Care,Residential Care,"1,904.00",0,"1,904.00",20-Jul-11,ADULT SOCIAL CARE & HEALTH
Nottinghamshire County Council,04-06963,BLYTH COUNTRY HOUSE CARE HOME,Care,Residential Care,"3,060.00",0,"3,060.00",28-Jul-11,ADULT SOCIAL CARE & HEALTH
Nottinghamshire County Council,04-04882,BLYTH COUNTRY HOUSE CARE HOME,Care,Residential Care,"1,904.00",0,"1,904.00",20-Jul-11,ADULT SOCIAL CARE & HEALTH
Nottinghamshire County Council,04-04888,BLYTH COUNTRY HOUSE CARE HOME,Care,Residential Care,"1,904.00",0,"1,904.00",20-Jul-11,ADULT SOCIAL CARE & HEALTH
Nottinghamshire County Council,04-04882,BLYTH COUNTRY HOUSE CARE HOME,Care,Residential Care,20,0,20,20-Jul-11,ADULT SOCIAL CARE & HEALTH
Nottinghamshire County Council,04-04882,BLYTH COUNTRY HOUSE CARE HOME,Care,Residential Care,434.8,0,434.8,20-Jul-11,ADULT SOCIAL CARE & HEALTH
Nottinghamshire County Council,04-04883,BLYTH COUNTRY HOUSE CARE HOME,Care,Residential Care,434.8,0,434.8,20-Jul-11,ADULT SOCIAL CARE & HEALTH
Nottinghamshire County Council,04-04884,BLYTH COUNTRY HOUSE CARE HOME,Care,Residential Care,434.8,0,434.8,20-Jul-11,ADULT SOCIAL CARE & HEALTH
Nottinghamshire County Council,04-04888,BLYTH COUNTRY HOUSE CARE HOME,Care,Residential Care,434.8,0,434.8,20-Jul-11,ADULT SOCIAL CARE & HEALTH
Nottinghamshire County Council,04-06963,BLYTH COUNTRY HOUSE CARE HOME,Care,Residential Care,698.79,0,698.79,28-Jul-11,ADULT SOCIAL CARE & HEALTH
Nottinghamshire County Council,04-06660,BOLSOVER WOODLAND ENTERPRISE LIMITED,Soft Facilities Management,Security,600,0,600,26-Jul-11,COMMUNITIES
Nottinghamshire County Council,04-01559,BOSS PLANT LTD,External Services (Highways & Culture),Construction Plant & Equipment,"5,420.00","1,084.00","6,504.00",25-Jul-11,COMMUNITIES
Nottinghamshire County Council,04-02756,BOUGHTON MANOR NURSING HOME LIMITED,Care,Residential Care,"1,544.00",0,"1,544.00",20-Jul-11,ADULT SOCIAL CARE & HEALTH
Nottinghamshire County Council,04-02762,BOUGHTON MANOR NURSING HOME LIMITED,Care,Residential Care,"1,544.00",0,"1,544.00",20-Jul-11,ADULT SOCIAL CARE & HEALTH
